Workbook

Sheet camera
U1: tie fighter | Z1: stars in the background | AX1: objects in the world you are zoomin around
A2: origin | B2: -5392 | C2: -3619 | D2: 1436 | U2: img x | V2: img y | Z2: star | AB2: ra | AC2: dec | AE2: As. lat | AF2: As. long | AH2: As. X | AI2: As.Y | AJ2: As.Z | AL2: view.x | AM2: view.y | AN2: view.z | AP2: n | AQ2: e | AS2: img.x | AT2: img.y | AX2: world.x | AY2: world.y | AZ2: world.z | BB2: view.x | BC2: view.y | BD2: view.z | BF2: n | BG2: e | BI2: img.x | BJ2: img.y | BN2: view.x | BO2: view.y | BP2: view.z | BR2: n | BS2: e | BU2: img.x | BV2: img.y
A3: imageWidth | B3: 1000 | U3: 1.8987 | V3: 485 | Z3: 'Polaris' | AB3: 2.52975 | AC3: 89.264109 | AE3: =AC3 -> 89.264109 | AF3: =IF(AB3*15/1>180, (AB3*15/1)-360, AB3*15/1) -> 37.94625 | AH3: =camera!$B$5*COS(RADIANS(AE3))*COS(RADIANS(AF3)) -> 5.064062644 | AI3: =camera!$B$5*COS(RADIANS(AE3))*SIN(RADIANS(AF3)) -> 3.948834442 | AJ3: =camera!$B$5*SIN(RADIANS(AE3)) -> 499.9587603 | AL3: =TRANSPOSE(MMULT(camera!$A$12:$C$14,MMULT(camera!$A$16:$C$18,TRANSPOSE(AH3:AJ3)))) -> -493.1230036 | AM3: -4.700628758 | AN3: -82.50822622 | AP3: =camera!$B$5*AM3/AN3 -> 28.48581877 | AQ3: =camera!$B$5*AL3/AN3 -> 2988.326293 | AS3: =IF( AND( (camera!$B$3) > (AQ3+camera!$B$3/2), 0 < (AQ3+camera!$B$3/2), AN3 >= 0 ), AQ3+camera!$B$3/2, 0)*-1+camera!$B$3 -> 1000 | AT3: =IF( AND( (camera!$B$4) > (AP3+camera!$B$4/2), 0 < (AP3+camera!$B$4/2), AN3 >= 0 ), AP3+camera!$B$4/2, 0) -> 0 | AX3: 0 | AY3: 0 | AZ3: 0 | BB3: =MMULT( MMULT(AX3:AZ3-$B$2:$D$2, TRANSPOSE($A$16:$C$18)), TRANSPOSE($A$12:$C$14)) -> 706.5376763 | BC3: -5056.065179 | BD3: 4262.620135 | BF3: =$B$5*BC3/BD3 -> -593.0701093 | BG3: =$B$5*BB3/BD3 -> 82.87598401 | BI3: =IF( AND( ($B$3) > (BG3+$B$3/2), 0 < (BG3+$B$3/2), BD3 >= 0 ), BG3+$B$3/2, 0)*-1+$B$3 -> 417.124016 | BJ3: =IF( AND( ($B$4) > (BF3+$B$4/2), 0 < (BF3+$B$4/2), BD3 >= 0 ), BF3+$B$4/2, 0) -> 0 | BN3: 25000 | BO3: 15000 | BP3: 25000 | BR3: =$B$5*BO3/BP3 -> 300 | BS3: =$B$5*BN3/BP3 -> 500 | BU3: =BS3+$B$3/2 -> 1000 | BV3: =$B$4/2-BR3 -> 200
A4: imageHeight | B4: 1000 | U4: 1.8987 | V4: 500 | Z4: 'Sol' | AB4: 16 | AC4: 60 | AE4: 60 | AF4: -120 | AH4: =camera!$B$5*COS(RADIANS(AE4))*COS(RADIANS(AF4)) -> -125 | AI4: =camera!$B$5*COS(RADIANS(AE4))*SIN(RADIANS(AF4)) -> -216.5063509 | AJ4: =camera!$B$5*SIN(RADIANS(AE4)) -> 433.0127019 | AL4: =TRANSPOSE(MMULT(camera!$A$12:$C$14,MMULT(camera!$A$16:$C$18,TRANSPOSE(AH4:AJ4)))) -> -387.0895921 | AM4: 105.6545654 | AN4: -298.3266004 | AP4: =camera!$B$5*AM4/AN4 -> -177.0786871 | AQ4: =camera!$B$5*AL4/AN4 -> 648.768148 | AS4: =IF( AND( (camera!$B$3) > (AQ4+camera!$B$3/2), 0 < (AQ4+camera!$B$3/2), AN4 >= 0 ), AQ4+camera!$B$3/2, 0)*-1+camera!$B$3 -> 1000 | AT4: =IF( AND( (camera!$B$4) > (AP4+camera!$B$4/2), 0 < (AP4+camera!$B$4/2), AN4 >= 0 ), AP4+camera!$B$4/2, 0) -> 0 | AX4: 365.6207 | AY4: -317.9841 | AZ4: 2412.638 | BB4: =MMULT( MMULT(AX4:AZ4-$B$2:$D$2, TRANSPOSE($A$16:$C$18)), TRANSPOSE($A$12:$C$14)) -> -1619.973154 | BC4: -5448.008722 | BD4: 3563.090207 | BF4: =$B$5*BC4/BD4 -> -764.5061458 | BG4: =$B$5*BB4/BD4 -> -227.3269914 | BI4: =IF( AND( ($B$3) > (BG4+$B$3/2), 0 < (BG4+$B$3/2), BD4 >= 0 ), BG4+$B$3/2, 0)*-1+$B$3 -> 727.3269914 | BJ4: =IF( AND( ($B$4) > (BF4+$B$4/2), 0 < (BF4+$B$4/2), BD4 >= 0 ), BF4+$B$4/2, 0) -> 0
A5: focalLength | B5: 500 | U5: 1.8987 | V5: 515 | Z5: 'Sirius' | AB5: 6.752481 | AC5: -16.716116 | AE5: -16.716116 | AF5: 101.287215 | AH5: =camera!$B$5*COS(RADIANS(AE5))*COS(RADIANS(AF5)) -> -93.72810338 | AI5: =camera!$B$5*COS(RADIANS(AE5))*SIN(RADIANS(AF5)) -> 469.6086664 | AJ5: =camera!$B$5*SIN(RADIANS(AE5)) -> -143.8149611 | AL5: =TRANSPOSE(MMULT(camera!$A$12:$C$14,MMULT(camera!$A$16:$C$18,TRANSPOSE(AH5:AJ5)))) -> 61.81223127 | AM5: 134.3005318 | AN5: 477.6427695 | AP5: =camera!$B$5*AM5/AN5 -> 140.5867945 | AQ5: =camera!$B$5*AL5/AN5 -> 64.70550297 | AS5: =IF( AND( (camera!$B$3) > (AQ5+camera!$B$3/2), 0 < (AQ5+camera!$B$3/2), AN5 >= 0 ), AQ5+camera!$B$3/2, 0)*-1+camera!$B$3 -> 435.294497 | AT5: =IF( AND( (camera!$B$4) > (AP5+camera!$B$4/2), 0 < (AP5+camera!$B$4/2), AN5 >= 0 ), AP5+camera!$B$4/2, 0) -> 640.5867945 | AX5: 515.2739 | AY5: -90.1509 | AZ5: 2412.638 | BB5: =MMULT( MMULT(AX5:AZ5-$B$2:$D$2, TRANSPOSE($A$16:$C$18)), TRANSPOSE($A$12:$C$14)) -> -1661.650342 | BC5: -5577.235475 | BD5: 3799.453287 | BF5: -733.9523681 | BG5: -218.6696633 | BI5: 718.6696633 | BJ5: 0
U6: 3.3477 | V6: 60 | Z6: 'Canopus' | AB6: 6.399195 | AC6: -52.69566 | AE6: -52.69566 | AF6: 95.987925 | AH6: =camera!$B$5*COS(RADIANS(AE6))*COS(RADIANS(AF6)) -> -31.61115442 | AI6: =camera!$B$5*COS(RADIANS(AE6))*SIN(RADIANS(AF6)) -> 301.3709965 | AJ6: =camera!$B$5*SIN(RADIANS(AE6)) -> -397.7137883 | AL6: =TRANSPOSE(MMULT(camera!$A$12:$C$14,MMULT(camera!$A$16:$C$18,TRANSPOSE(AH6:AJ6)))) -> 340.0166559 | AM6: 57.75707748 | AN6: 362.0121458 | AP6: =camera!$B$5*AM6/AN6 -> 79.77229237 | AQ6: =camera!$B$5*AL6/AN6 -> 469.6205084 | AS6: =IF( AND( (camera!$B$3) > (AQ6+camera!$B$3/2), 0 < (AQ6+camera!$B$3/2), AN6 >= 0 ), AQ6+camera!$B$3/2, 0)*-1+camera!$B$3 -> 30.37949163 | AT6: =IF( AND( (camera!$B$4) > (AP6+camera!$B$4/2), 0 < (AP6+camera!$B$4/2), AN6 >= 0 ), AP6+camera!$B$4/2, 0) -> 579.7722924 | AX6: 571.9277 | AY6: -113.6177 | AZ6: 2513.6864 | BB6: =MMULT( MMULT(AX6:AZ6-$B$2:$D$2, TRANSPOSE($A$16:$C$18)), TRANSPOSE($A$12:$C$14)) -> -1757.961552 | BC6: -5635.718957 | BD6: 3763.746761 | BF6: -748.6846638 | BG6: -233.5387666 | BI6: 733.5387666 | BJ6: 0
U7: 3.3477 | V7: 470 | Z7: 'Arcturus' | AB7: 14.26103 | AC7: 19.18241 | AE7: 19.18241 | AF7: -146.08455 | AH7: =camera!$B$5*COS(RADIANS(AE7))*COS(RADIANS(AF7)) -> -391.8928385 | AI7: =camera!$B$5*COS(RADIANS(AE7))*SIN(RADIANS(AF7)) -> -263.494479 | AJ7: =camera!$B$5*SIN(RADIANS(AE7)) -> 164.2883522 | AL7: =TRANSPOSE(MMULT(camera!$A$12:$C$14,MMULT(camera!$A$16:$C$18,TRANSPOSE(AH7:AJ7)))) -> -110.2801427 | AM7: 367.4365109 | AN7: -320.6691451 | AP7: =camera!$B$5*AM7/AN7 -> -572.9215245 | AQ7: =camera!$B$5*AL7/AN7 -> 171.9531555 | AS7: =IF( AND( (camera!$B$3) > (AQ7+camera!$B$3/2), 0 < (AQ7+camera!$B$3/2), AN7 >= 0 ), AQ7+camera!$B$3/2, 0)*-1+camera!$B$3 -> 1000 | AT7: =IF( AND( (camera!$B$4) > (AP7+camera!$B$4/2), 0 < (AP7+camera!$B$4/2), AN7 >= 0 ), AP7+camera!$B$4/2, 0) -> 0 | AX7: 409.1176 | AY7: -361.4811 | AZ7: 2513.6864 | BB7: =MMULT( MMULT(AX7:AZ7-$B$2:$D$2, TRANSPOSE($A$16:$C$18)), TRANSPOSE($A$12:$C$14)) -> -1712.62027 | BC7: -5495.131117 | BD7: 3506.603569 | BF7: -783.5403987 | BG7: -244.1992994 | BI7: 744.1992994 | BJ7: 0
A8: verticalAngle | B8: 100 | C8: rotation from zenith | U8: 5 | V8: 120 | Z8: 'Rigil Kentaurus' | AB8: 14.660765 | AC8: -60.833976 | AE8: -60.833976 | AF8: -140.088525 | AH8: =camera!$B$5*COS(RADIANS(AE8))*COS(RADIANS(AF8)) -> -186.9045679 | AI8: =camera!$B$5*COS(RADIANS(AE8))*SIN(RADIANS(AF8)) -> -156.3400886 | AJ8: =camera!$B$5*SIN(RADIANS(AE8)) -> -436.6056106 | AL8: =TRANSPOSE(MMULT(camera!$A$12:$C$14,MMULT(camera!$A$16:$C$18,TRANSPOSE(AH8:AJ8)))) -> 459.84615 | AM8: 172.5674031 | AN8: -93.60560734 | AP8: =camera!$B$5*AM8/AN8 -> -921.7791965 | AQ8: =camera!$B$5*AL8/AN8 -> -2456.295958 | AS8: =IF( AND( (camera!$B$3) > (AQ8+camera!$B$3/2), 0 < (AQ8+camera!$B$3/2), AN8 >= 0 ), AQ8+camera!$B$3/2, 0)*-1+camera!$B$3 -> 1000 | AT8: =IF( AND( (camera!$B$4) > (AP8+camera!$B$4/2), 0 < (AP8+camera!$B$4/2), AN8 >= 0 ), AP8+camera!$B$4/2, 0) -> 0 | AX8: 425.1853 | AY8: -377.5487 | AZ8: 2632.0719 | BB8: =MMULT( MMULT(AX8:AZ8-$B$2:$D$2, TRANSPOSE($A$16:$C$18)), TRANSPOSE($A$12:$C$14)) -> -1826.670911 | BC8: -5512.538058 | BD8: 3471.661976 | BF8: -793.9335823 | BG8: -263.0830599 | BI8: 763.0830599 | BJ8: 0
A9: horizontalAngle | B9: 85 | C9: rotation right from 0 azimuth | U9: 5 | V9: 530 | Z9: 'Vega' | AB9: 18.61564 | AC9: 38.783692 | AE9: 38.783692 | AF9: -80.7654 | AH9: =camera!$B$5*COS(RADIANS(AE9))*COS(RADIANS(AF9)) -> 62.54732412 | AI9: =camera!$B$5*COS(RADIANS(AE9))*SIN(RADIANS(AF9)) -> -384.7066947 | AJ9: =camera!$B$5*SIN(RADIANS(AE9)) -> 313.1909822 | AL9: =TRANSPOSE(MMULT(camera!$A$12:$C$14,MMULT(camera!$A$16:$C$18,TRANSPOSE(AH9:AJ9)))) -> -242.8301173 | AM9: -95.83871038 | AN9: -426.436954 | AP9: =camera!$B$5*AM9/AN9 -> 112.3714883 | AQ9: =camera!$B$5*AL9/AN9 -> 284.7198338 | AS9: =IF( AND( (camera!$B$3) > (AQ9+camera!$B$3/2), 0 < (AQ9+camera!$B$3/2), AN9 >= 0 ), AQ9+camera!$B$3/2, 0)*-1+camera!$B$3 -> 1000 | AT9: =IF( AND( (camera!$B$4) > (AP9+camera!$B$4/2), 0 < (AP9+camera!$B$4/2), AN9 >= 0 ), AP9+camera!$B$4/2, 0) -> 0 | AX9: 592.8555 | AY9: -122.2863 | AZ9: 2632.0719 | BB9: =MMULT( MMULT(AX9:AZ9-$B$2:$D$2, TRANSPOSE($A$16:$C$18)), TRANSPOSE($A$12:$C$14)) -> -1873.365682 | BC9: -5657.322638 | BD9: 3736.481183 | BF9: -757.0388236 | BG9: -250.6858178 | BI9: 750.6858178 | BJ9: 0
U10: 6.8987 | V10: 75 | Z10: 'Capella' | AB10: 5.27815 | AC10: 45.997991 | AE10: 45.997991 | AF10: 79.17225 | AH10: =camera!$B$5*COS(RADIANS(AE10))*COS(RADIANS(AF10)) -> 65.25060266 | AI10: =camera!$B$5*COS(RADIANS(AE10))*SIN(RADIANS(AF10)) -> 341.1578555 | AJ10: =camera!$B$5*SIN(RADIANS(AE10)) -> 359.6577213 | AL10: =TRANSPOSE(MMULT(camera!$A$12:$C$14,MMULT(camera!$A$16:$C$18,TRANSPOSE(AH10:AJ10)))) -> -414.1972518 | AM10: -35.26843813 | AN10: 277.8430742 | AP10: =camera!$B$5*AM10/AN10 -> -63.46826932 | AQ10: =camera!$B$5*AL10/AN10 -> -745.3798389 | AS10: =IF( AND( (camera!$B$3) > (AQ10+camera!$B$3/2), 0 < (AQ10+camera!$B$3/2), AN10 >= 0 ), AQ10+camera!$B$3/2, 0)*-1+camera!$B$3 -> 1000 | AT10: =IF( AND( (camera!$B$4) > (AP10+camera!$B$4/2), 0 < (AP10+camera!$B$4/2), AN10 >= 0 ), AP10+camera!$B$4/2, 0) -> 436.5317307 | AX10: 654.7926 | AY10: 176.7723 | AZ10: 2632.0719 | BB10: =MMULT( MMULT(AX10:AZ10-$B$2:$D$2, TRANSPOSE($A$16:$C$18)), TRANSPOSE($A$12:$C$14)) -> -1926.036433 | BC10: -5692.959374 | BD10: 4035.191855 | BF10: -705.4137175 | BG10: -238.6548772 | BI10: 738.6548772 | BJ10: 0
A11: x | B11: y | C11: z | U11: 6.8987 | V11: 90 | Z11: 'Rigel' | AB11: 5.242298 | AC11: -8.20164 | AE11: -8.20164 | AF11: 78.63447 | AH11: =camera!$B$5*COS(RADIANS(AE11))*COS(RADIANS(AF11)) -> 97.52599049 | AI11: =camera!$B$5*COS(RADIANS(AE11))*SIN(RADIANS(AF11)) -> 485.181314 | AJ11: =camera!$B$5*SIN(RADIANS(AE11)) -> -71.3286322 | AL11: =TRANSPOSE(MMULT(camera!$A$12:$C$14,MMULT(camera!$A$16:$C$18,TRANSPOSE(AH11:AJ11)))) -> -15.16126193 | AM11: -54.86853687 | AN11: 496.7490109 | AP11: =camera!$B$5*AM11/AN11 -> -55.22762569 | AQ11: =camera!$B$5*AL11/AN11 -> -15.26048527 | AS11: =IF( AND( (camera!$B$3) > (AQ11+camera!$B$3/2), 0 < (AQ11+camera!$B$3/2), AN11 >= 0 ), AQ11+camera!$B$3/2, 0)*-1+camera!$B$3 -> 515.2604853 | AT11: =IF( AND( (camera!$B$4) > (AP11+camera!$B$4/2), 0 < (AP11+camera!$B$4/2), AN11 >= 0 ), AP11+camera!$B$4/2, 0) -> 444.7723743 | AX11: 632.0694 | AY11: 176.7723 | AZ11: 2513.6864 | BB11: =MMULT( MMULT(AX11:AZ11-$B$2:$D$2, TRANSPOSE($A$16:$C$18)), TRANSPOSE($A$12:$C$14)) -> -1809.105572 | BC11: -5670.322643 | BD11: 4053.798912 | BF11: -699.3838084 | BG11: -223.1370637 | BI11: 723.1370637 | BJ11: 0
A12: =COS(RADIANS(B8)) -> -0.1736481777 | B12: 0 | C12: =-SIN(RADIANS(B8)) -> -0.984807753 | U12: 6.8987 | V12: 105 | Z12: 'Procyon' | AB12: 7.655033 | AC12: 5.224993 | AE12: 5.224993 | AF12: 114.825495 | AH12: =camera!$B$5*COS(RADIANS(AE12))*COS(RADIANS(AF12)) -> -209.0556888 | AI12: =camera!$B$5*COS(RADIANS(AE12))*SIN(RADIANS(AF12)) -> 451.9097476 | AJ12: =camera!$B$5*SIN(RADIANS(AE12)) -> 45.53349322 | AL12: =TRANSPOSE(MMULT(camera!$A$12:$C$14,MMULT(camera!$A$16:$C$18,TRANSPOSE(AH12:AJ12)))) -> -119.8524867 | AM12: 247.6466985 | AN12: 417.5002924 | AP12: =camera!$B$5*AM12/AN12 -> 296.5826648 | AQ12: =camera!$B$5*AL12/AN12 -> -143.5358117 | AS12: =IF( AND( (camera!$B$3) > (AQ12+camera!$B$3/2), 0 < (AQ12+camera!$B$3/2), AN12 >= 0 ), AQ12+camera!$B$3/2, 0)*-1+camera!$B$3 -> 643.5358117 | AT12: =IF( AND( (camera!$B$4) > (AP12+camera!$B$4/2), 0 < (AP12+camera!$B$4/2), AN12 >= 0 ), AP12+camera!$B$4/2, 0) -> 796.5826648 | AX12: 570.5555 | AY12: 176.7723 | AZ12: 2412.638 | BB12: =MMULT( MMULT(AX12:AZ12-$B$2:$D$2, TRANSPOSE($A$16:$C$18)), TRANSPOSE($A$12:$C$14)) -> -1708.661346 | BC12: -5609.042822 | BD12: 4066.065943 | BF12: -689.7383 | BG12: -210.1123507 | BI12: 710.1123507 | BJ12: 0
A13: 0 | B13: 1 | C13: 0 | U13: 6.8987 | V13: 485 | Z13: 'Achernar' | AB13: 1.628556 | AC13: -57.236757 | AE13: -57.236757 | AF13: 24.42834 | AH13: =camera!$B$5*COS(RADIANS(AE13))*COS(RADIANS(AF13)) -> 246.3614952 | AI13: =camera!$B$5*COS(RADIANS(AE13))*SIN(RADIANS(AF13)) -> 111.9014951 | AJ13: =camera!$B$5*SIN(RADIANS(AE13)) -> -420.4569765 | AL13: =TRANSPOSE(MMULT(camera!$A$12:$C$14,MMULT(camera!$A$16:$C$18,TRANSPOSE(AH13:AJ13)))) -> 390.9832 | AM13: -235.6711575 | AN13: 203.9393118 | AP13: =camera!$B$5*AM13/AN13 -> -577.7972756 | AQ13: =camera!$B$5*AL13/AN13 -> 958.5773252 | AS13: =IF( AND( (camera!$B$3) > (AQ13+camera!$B$3/2), 0 < (AQ13+camera!$B$3/2), AN13 >= 0 ), AQ13+camera!$B$3/2, 0)*-1+camera!$B$3 -> 1000 | AT13: =IF( AND( (camera!$B$4) > (AP13+camera!$B$4/2), 0 < (AP13+camera!$B$4/2), AN13 >= 0 ), AP13+camera!$B$4/2, 0) -> 0 | AX13: 221.819 | AY13: -174.1825 | AZ13: 2321.7455 | BB13: =MMULT( MMULT(AX13:AZ13-$B$2:$D$2, TRANSPOSE($A$16:$C$18)), TRANSPOSE($A$12:$C$14)) -> -1553.161021 | BC13: -5292.221096 | BD13: 3707.608822 | BF13: -713.6973384 | BG13: -209.4558914 | BI13: 709.4558914 | BJ13: 0
A14: =SIN(RADIANS(B8)) -> 0.984807753 | B14: 0 | C14: =COS(RADIANS(B8)) -> -0.1736481777 | U14: 6.8987 | V14: 500 | Z14: 'Betelgeuse' | AB14: 5.919529 | AC14: 7.407063 | AE14: 7.407063 | AF14: 88.792935 | AH14: =camera!$B$5*COS(RADIANS(AE14))*COS(RADIANS(AF14)) -> 10.44495639 | AI14: =camera!$B$5*COS(RADIANS(AE14))*SIN(RADIANS(AF14)) -> 495.7176116 | AJ14: =camera!$B$5*SIN(RADIANS(AE14)) -> 64.45892074 | AL14: =TRANSPOSE(MMULT(camera!$A$12:$C$14,MMULT(camera!$A$16:$C$18,TRANSPOSE(AH14:AJ14)))) -> -149.3906212 | AM14: 32.79942645 | AN14: 476.0321837 | AP14: =camera!$B$5*AM14/AN14 -> 34.45084973 | AQ14: =camera!$B$5*AL14/AN14 -> -156.9123121 | AS14: =IF( AND( (camera!$B$3) > (AQ14+camera!$B$3/2), 0 < (AQ14+camera!$B$3/2), AN14 >= 0 ), AQ14+camera!$B$3/2, 0)*-1+camera!$B$3 -> 656.9123121 | AT14: =IF( AND( (camera!$B$4) > (AP14+camera!$B$4/2), 0 < (AP14+camera!$B$4/2), AN14 >= 0 ), AP14+camera!$B$4/2, 0) -> 534.4508497 | AX14: 327.9754 | AY14: -12.5693 | AZ14: 2321.7455 | BB14: =MMULT( MMULT(AX14:AZ14-$B$2:$D$2, TRANSPOSE($A$16:$C$18)), TRANSPOSE($A$12:$C$14)) -> -1582.724685 | BC14: -5383.88802 | BD14: 3875.272689 | BF14: -694.6463452 | BG14: -204.2081695 | BI14: 704.2081695 | BJ14: 0
A15: x | B15: y | C15: z | U15: 6.8987 | V15: 515 | Z15: 'Hadar' | AB15: 14.063729 | AC15: -60.373039 | AE15: -60.373039 | AF15: -149.044065 | AH15: =camera!$B$5*COS(RADIANS(AE15))*COS(RADIANS(AF15)) -> -211.9685837 | AI15: =camera!$B$5*COS(RADIANS(AE15))*SIN(RADIANS(AF15)) -> -127.1418003 | AJ15: =camera!$B$5*SIN(RADIANS(AE15)) -> -434.6312024 | AL15: =TRANSPOSE(MMULT(camera!$A$12:$C$14,MMULT(camera!$A$16:$C$18,TRANSPOSE(AH15:AJ15)))) -> 453.2301315 | AM15: 200.0808412 | AN15: -67.45446523 | AP15: =camera!$B$5*AM15/AN15 -> -1483.080776 | AQ15: =camera!$B$5*AL15/AN15 -> -3359.526533 | AS15: =IF( AND( (camera!$B$3) > (AQ15+camera!$B$3/2), 0 < (AQ15+camera!$B$3/2), AN15 >= 0 ), AQ15+camera!$B$3/2, 0)*-1+camera!$B$3 -> 1000 | AT15: =IF( AND( (camera!$B$4) > (AP15+camera!$B$4/2), 0 < (AP15+camera!$B$4/2), AN15 >= 0 ), AP15+camera!$B$4/2, 0) -> 0 | AX15: 429.0237 | AY15: -54.4249 | AZ15: 2346.264 | BB15: =MMULT( MMULT(AX15:AZ15-$B$2:$D$2, TRANSPOSE($A$16:$C$18)), TRANSPOSE($A$12:$C$14)) -> -1601.159512 | BC15: -5488.199757 | BD15: 3838.625373 | BF15: -714.8652478 | BG15: -208.5589705 | BI15: 708.5589705 | BJ15: 0
A16: =COS(RADIANS(B9)) -> 0.08715574275 | B16: =SIN(RADIANS(B9)) -> 0.9961946981 | C16: 0 | U16: 8.3477 | V16: 60 | Z16: 'Altair' | AB16: 19.846388 | AC16: 8.868322 | AE16: 8.868322 | AF16: -62.30418 | AH16: =camera!$B$5*COS(RADIANS(AE16))*COS(RADIANS(AF16)) -> 229.6105767 | AI16: =camera!$B$5*COS(RADIANS(AE16))*SIN(RADIANS(AF16)) -> -437.4212363 | AJ16: =camera!$B$5*SIN(RADIANS(AE16)) -> 77.08206705 | AL16: =TRANSPOSE(MMULT(camera!$A$12:$C$14,MMULT(camera!$A$16:$C$18,TRANSPOSE(AH16:AJ16)))) -> -3.717684081 | AM16: -266.8606119 | AN16: -422.8138984 | AP16: =camera!$B$5*AM16/AN16 -> 315.5769157 | AQ16: =camera!$B$5*AL16/AN16 -> 4.396359836 | AS16: =IF( AND( (camera!$B$3) > (AQ16+camera!$B$3/2), 0 < (AQ16+camera!$B$3/2), AN16 >= 0 ), AQ16+camera!$B$3/2, 0)*-1+camera!$B$3 -> 1000 | AT16: =IF( AND( (camera!$B$4) > (AP16+camera!$B$4/2), 0 < (AP16+camera!$B$4/2), AN16 >= 0 ), AP16+camera!$B$4/2, 0) -> 0 | AX16: 299.4006 | AY16: -251.7641 | AZ16: 2346.264 | BB16: =MMULT( MMULT(AX16:AZ16-$B$2:$D$2, TRANSPOSE($A$16:$C$18)), TRANSPOSE($A$12:$C$14)) -> -1565.060545 | BC16: -5376.269157 | BD16: 3633.897961 | BF16: -739.7385967 | BG16: -215.3418398 | BI16: 715.3418398 | BJ16: 0
A17: =-SIN(RADIANS(B9)) -> -0.9961946981 | B17: =COS(RADIANS(B9)) -> 0.08715574275 | C17: 0 | U17: 8.3477 | V17: 470 | Z17: 'Acrux' | AB17: 12.443311 | AC17: -63.099092 | AE17: -63.099092 | AF17: -173.350335 | AH17: =camera!$B$5*COS(RADIANS(AE17))*COS(RADIANS(AF17)) -> -224.7025557 | AI17: =camera!$B$5*COS(RADIANS(AE17))*SIN(RADIANS(AF17)) -> -26.19637631 | AJ17: =camera!$B$5*SIN(RADIANS(AE17)) -> -445.8951797 | AL17: =TRANSPOSE(MMULT(camera!$A$12:$C$14,MMULT(camera!$A$16:$C$18,TRANSPOSE(AH17:AJ17)))) -> 447.0534193 | AM17: 221.56433 | AN17: 32.4420702 | AP17: =camera!$B$5*AM17/AN17 -> 3414.768673 | AQ17: =camera!$B$5*AL17/AN17 -> 6890.026077 | AS17: =IF( AND( (camera!$B$3) > (AQ17+camera!$B$3/2), 0 < (AQ17+camera!$B$3/2), AN17 >= 0 ), AQ17+camera!$B$3/2, 0)*-1+camera!$B$3 -> 1000 | AT17: =IF( AND( (camera!$B$4) > (AP17+camera!$B$4/2), 0 < (AP17+camera!$B$4/2), AN17 >= 0 ), AP17+camera!$B$4/2, 0) -> 0 | AX17: 476.9062 | AY17: 176.7723 | AZ17: 2346.264 | BB17: =MMULT( MMULT(AX17:AZ17-$B$2:$D$2, TRANSPOSE($A$16:$C$18)), TRANSPOSE($A$12:$C$14)) -> -1641.878387 | BC17: -5515.749886 | BD17: 4069.553593 | BF17: -677.6848812 | BG17: -201.7270875 | BI17: 701.7270875 | BJ17: 0
A18: 0 | B18: 0 | C18: 1 | U18: 10 | V18: 120 | Z18: 'Aldebaran' | AB18: 4.598677 | AC18: 16.509301 | AE18: 16.509301 | AF18: 68.980155 | AH18: =camera!$B$5*COS(RADIANS(AE18))*COS(RADIANS(AF18)) -> 171.9518697 | AI18: =camera!$B$5*COS(RADIANS(AE18))*SIN(RADIANS(AF18)) -> 447.4866107 | AJ18: =camera!$B$5*SIN(RADIANS(AE18)) -> 142.0854946 | AL18: =TRANSPOSE(MMULT(camera!$A$12:$C$14,MMULT(camera!$A$16:$C$18,TRANSPOSE(AH18:AJ18)))) -> -219.9388338 | AM18: -132.296513 | AN18: 429.0973573 | AP18: =camera!$B$5*AM18/AN18 -> -154.1567557 | AQ18: =camera!$B$5*AL18/AN18 -> -256.2808067 | AS18: =IF( AND( (camera!$B$3) > (AQ18+camera!$B$3/2), 0 < (AQ18+camera!$B$3/2), AN18 >= 0 ), AQ18+camera!$B$3/2, 0)*-1+camera!$B$3 -> 756.2808067 | AT18: =IF( AND( (camera!$B$4) > (AP18+camera!$B$4/2), 0 < (AP18+camera!$B$4/2), AN18 >= 0 ), AP18+camera!$B$4/2, 0) -> 345.8432443 | AX18: 367.1893 | AY18: 176.7723 | AZ18: 2321.7455 | BB18: =MMULT( MMULT(AX18:AZ18-$B$2:$D$2, TRANSPOSE($A$16:$C$18)), TRANSPOSE($A$12:$C$14)) -> -1616.071875 | BC18: -5406.450492 | BD18: 4064.394003 | BF18: -665.0992113 | BG18: -198.8084661 | BI18: 698.8084661 | BJ18: 0
U19: 10 | V19: 530 | Z19: '' | AB19: 5.277926 | AC19: 46.000842 | AE19: 46.000842 | AF19: 79.16889 | AH19: =camera!$B$5*COS(RADIANS(AE19))*COS(RADIANS(AF19)) -> 65.26724602 | AI19: =camera!$B$5*COS(RADIANS(AE19))*SIN(RADIANS(AF19)) -> 341.1364505 | AJ19: =camera!$B$5*SIN(RADIANS(AE19)) -> 359.6750044 | AL19: =TRANSPOSE(MMULT(camera!$A$12:$C$14,MMULT(camera!$A$16:$C$18,TRANSPOSE(AH19:AJ19)))) -> -414.2108214 | AM19: -35.28688373 | AN19: 277.820502 | AP19: =camera!$B$5*AM19/AN19 -> -63.50662295 | AQ19: =camera!$B$5*AL19/AN19 -> -745.4648207 | AS19: =IF( AND( (camera!$B$3) > (AQ19+camera!$B$3/2), 0 < (AQ19+camera!$B$3/2), AN19 >= 0 ), AQ19+camera!$B$3/2, 0)*-1+camera!$B$3 -> 1000 | AT19: =IF( AND( (camera!$B$4) > (AP19+camera!$B$4/2), 0 < (AP19+camera!$B$4/2), AN19 >= 0 ), AP19+camera!$B$4/2, 0) -> 436.4933771 | AX19: 78.0174 | AY19: -30.3809 | AZ19: 2412.638 | BB19: =MMULT( MMULT(AX19:AZ19-$B$2:$D$2, TRANSPOSE($A$16:$C$18)), TRANSPOSE($A$12:$C$14)) -> -1665.372168 | BC19: -5136.433569 | BD19: 3820.560812 | BF19: -672.2093722 | BG19: -217.9486534 | BI19: 717.9486534 | BJ19: 0
A20: traverseDelta | B20: 250 | U20: 11.8987 | V20: 90 | Z20: 'Spica' | AB20: 13.419883 | AC20: -11.161322 | AE20: -11.161322 | AF20: -158.701755 | AH20: =camera!$B$5*COS(RADIANS(AE20))*COS(RADIANS(AF20)) -> -457.0400916 | AI20: =camera!$B$5*COS(RADIANS(AE20))*SIN(RADIANS(AF20)) -> -178.1763584 | AJ20: =camera!$B$5*SIN(RADIANS(AE20)) -> -96.78605247 | AL20: =TRANSPOSE(MMULT(camera!$A$12:$C$14,MMULT(camera!$A$16:$C$18,TRANSPOSE(AH20:AJ20)))) -> 133.0549627 | AM20: 439.7718232 | AN20: -197.223529 | AP20: =camera!$B$5*AM20/AN20 -> -1114.907094 | AQ20: =camera!$B$5*AL20/AN20 -> -337.3202057 | AS20: =IF( AND( (camera!$B$3) > (AQ20+camera!$B$3/2), 0 < (AQ20+camera!$B$3/2), AN20 >= 0 ), AQ20+camera!$B$3/2, 0)*-1+camera!$B$3 -> 1000 | AT20: =IF( AND( (camera!$B$4) > (AP20+camera!$B$4/2), 0 < (AP20+camera!$B$4/2), AN20 >= 0 ), AP20+camera!$B$4/2, 0) -> 0 | AX20: 140.6768 | AY20: 65.0123 | AZ20: 2412.638 | BB20: =MMULT( MMULT(AX20:AZ20-$B$2:$D$2, TRANSPOSE($A$16:$C$18)), TRANSPOSE($A$12:$C$14)) -> -1682.822304 | BC20: -5190.540466 | BD20: 3919.525449 | BF20: -662.1388907 | BG20: -214.6716899 | BI20: 714.6716899 | BJ20: 0
U21: 11.8987 | V21: 75 | Z21: 'Antares' | AB21: 16.490128 | AC21: -26.432002 | AE21: -26.432002 | AF21: -112.64808 | AH21: =camera!$B$5*COS(RADIANS(AE21))*COS(RADIANS(AF21)) -> -172.407978 | AI21: =camera!$B$5*COS(RADIANS(AE21))*SIN(RADIANS(AF21)) -> -413.2058904 | AJ21: =camera!$B$5*SIN(RADIANS(AE21)) -> -222.5677004 | AL21: =TRANSPOSE(MMULT(camera!$A$12:$C$14,MMULT(camera!$A$16:$C$18,TRANSPOSE(AH21:AJ21)))) -> 293.2751046 | AM21: 135.7386474 | AN21: -381.529465 | AP21: =camera!$B$5*AM21/AN21 -> -177.8875026 | AQ21: =camera!$B$5*AL21/AN21 -> -384.341357 | AS21: =IF( AND( (camera!$B$3) > (AQ21+camera!$B$3/2), 0 < (AQ21+camera!$B$3/2), AN21 >= 0 ), AQ21+camera!$B$3/2, 0)*-1+camera!$B$3 -> 1000 | AT21: =IF( AND( (camera!$B$4) > (AP21+camera!$B$4/2), 0 < (AP21+camera!$B$4/2), AN21 >= 0 ), AP21+camera!$B$4/2, 0) -> 0 | AX21: 226.927 | AY21: 29.2863 | AZ21: 2346.264 | BB21: =MMULT( MMULT(AX21:AZ21-$B$2:$D$2, TRANSPOSE($A$16:$C$18)), TRANSPOSE($A$12:$C$14)) -> -1612.581874 | BC21: -5279.576184 | BD21: 3903.404811 | BF21: -676.2783312 | BG21: -206.5609323 | BI21: 706.5609323 | BJ21: 0
U22: 11.8987 | V22: 105 | Z22: 'Pollux' | AB22: 7.755277 | AC22: 28.026199 | AE22: 28.026199 | AF22: 116.329155 | AH22: =camera!$B$5*COS(RADIANS(AE22))*COS(RADIANS(AF22)) -> -195.7580594 | AI22: =camera!$B$5*COS(RADIANS(AE22))*SIN(RADIANS(AF22)) -> 395.5794417 | AJ22: =camera!$B$5*SIN(RADIANS(AE22)) -> 234.9376246 | AL22: =TRANSPOSE(MMULT(camera!$A$12:$C$14,MMULT(camera!$A$16:$C$18,TRANSPOSE(AH22:AJ22)))) -> -296.8359631 | AM22: 229.490161 | AN22: 330.4885429 | AP22: =camera!$B$5*AM22/AN22 -> 347.1983611 | AQ22: =camera!$B$5*AL22/AN22 -> -449.0866166 | AS22: =IF( AND( (camera!$B$3) > (AQ22+camera!$B$3/2), 0 < (AQ22+camera!$B$3/2), AN22 >= 0 ), AQ22+camera!$B$3/2, 0)*-1+camera!$B$3 -> 949.0866166 | AT22: =IF( AND( (camera!$B$4) > (AP22+camera!$B$4/2), 0 < (AP22+camera!$B$4/2), AN22 >= 0 ), AP22+camera!$B$4/2, 0) -> 847.1983611 | AX22: 144.2374 | AY22: -96.6009 | AZ22: 2346.264 | BB22: =MMULT( MMULT(AX22:AZ22-$B$2:$D$2, TRANSPOSE($A$16:$C$18)), TRANSPOSE($A$12:$C$14)) -> -1589.553515 | BC22: -5208.173035 | BD22: 3772.804497 | BF22: -690.2256716 | BG22: -210.6594069 | BI22: 710.6594069 | BJ22: 0
U23: 11.8987 | V23: 500 | Z23: 'Fomalhaut' | AB23: 22.960838 | AC23: -29.622236 | AE23: -29.622236 | AF23: -15.58743 | AH23: =camera!$B$5*COS(RADIANS(AE23))*COS(RADIANS(AF23)) -> 418.6657694 | AI23: =camera!$B$5*COS(RADIANS(AE23))*SIN(RADIANS(AF23)) -> -116.7945788 | AJ23: =camera!$B$5*SIN(RADIANS(AE23)) -> -247.1396364 | AL23: =TRANSPOSE(MMULT(camera!$A$12:$C$14,MMULT(camera!$A$16:$C$18,TRANSPOSE(AH23:AJ23)))) -> 257.2527496 | AM23: -427.251938 | AN23: -35.73239833 | AP23: =camera!$B$5*AM23/AN23 -> 5978.495119 | AQ23: =camera!$B$5*AL23/AN23 -> -3599.712889 | AS23: =IF( AND( (camera!$B$3) > (AQ23+camera!$B$3/2), 0 < (AQ23+camera!$B$3/2), AN23 >= 0 ), AQ23+camera!$B$3/2, 0)*-1+camera!$B$3 -> 1000 | AT23: =IF( AND( (camera!$B$4) > (AP23+camera!$B$4/2), 0 < (AP23+camera!$B$4/2), AN23 >= 0 ), AP23+camera!$B$4/2, 0) -> 0 | AX23: 257.4723 | AY23: 176.7723 | AZ23: 2346.264 | BB23: =MMULT( MMULT(AX23:AZ23-$B$2:$D$2, TRANSPOSE($A$16:$C$18)), TRANSPOSE($A$12:$C$14)) -> -1638.557379 | BC23: -5297.150998 | BD23: 4050.719219 | BF23: -653.8531446 | BG23: -202.255117 | BI23: 702.255117 | BJ23: 0
U24: 11.8987 | V24: 485 | Z24: 'Becrux' | AB24: 12.795359 | AC24: -59.688764 | AE24: -59.688764 | AF24: -168.069615 | AH24: =camera!$B$5*COS(RADIANS(AE24))*COS(RADIANS(AF24)) -> -246.8976106 | AI24: =camera!$B$5*COS(RADIANS(AE24))*SIN(RADIANS(AF24)) -> -52.16625136 | AJ24: =camera!$B$5*SIN(RADIANS(AE24)) -> -431.6482968 | AL24: =TRANSPOSE(MMULT(camera!$A$12:$C$14,MMULT(camera!$A$16:$C$18,TRANSPOSE(AH24:AJ24)))) -> 437.8513492 | AM24: 241.4115023 | AN24: 2.5850743 | AP24: =camera!$B$5*AM24/AN24 -> 46693.3392 | AQ24: =camera!$B$5*AL24/AN24 -> 84688.34903 | AS24: =IF( AND( (camera!$B$3) > (AQ24+camera!$B$3/2), 0 < (AQ24+camera!$B$3/2), AN24 >= 0 ), AQ24+camera!$B$3/2, 0)*-1+camera!$B$3 -> 1000 | AT24: =IF( AND( (camera!$B$4) > (AP24+camera!$B$4/2), 0 < (AP24+camera!$B$4/2), AN24 >= 0 ), AP24+camera!$B$4/2, 0) -> 0 | AX24: 163.8231 | AY24: 176.7723 | AZ24: 2412.638 | BB24: =MMULT( MMULT(AX24:AZ24-$B$2:$D$2, TRANSPOSE($A$16:$C$18)), TRANSPOSE($A$12:$C$14)) -> -1702.505681 | BC24: -5203.858162 | BD24: 4031.155429 | BF24: -645.454914 | BG24: -211.1684492 | BI24: 711.1684492 | BJ24: 0
U25: 11.8987 | V25: 515 | Z25: 'Deneb' | AB25: 20.690532 | AC25: 45.280338 | AE25: 45.280338 | AF25: -49.64202 | AH25: =camera!$B$5*COS(RADIANS(AE25))*COS(RADIANS(AF25)) -> 227.8245315 | AI25: =camera!$B$5*COS(RADIANS(AE25))*SIN(RADIANS(AF25)) -> -268.0910239 | AJ25: =camera!$B$5*SIN(RADIANS(AE25)) -> 355.2790252 | AL25: =TRANSPOSE(MMULT(camera!$A$12:$C$14,MMULT(camera!$A$16:$C$18,TRANSPOSE(AH25:AJ25)))) -> -306.9531667 | AM25: -250.3232627 | AN25: -305.1524498 | AP25: =camera!$B$5*AM25/AN25 -> 410.1609914 | AQ25: =camera!$B$5*AL25/AN25 -> 502.9505202 | AS25: =IF( AND( (camera!$B$3) > (AQ25+camera!$B$3/2), 0 < (AQ25+camera!$B$3/2), AN25 >= 0 ), AQ25+camera!$B$3/2, 0)*-1+camera!$B$3 -> 1000 | AT25: =IF( AND( (camera!$B$4) > (AP25+camera!$B$4/2), 0 < (AP25+camera!$B$4/2), AN25 >= 0 ), AP25+camera!$B$4/2, 0) -> 0 | AX25: 18.4528 | AY25: 29.1837 | AZ25: 2632.0719 | BB25: =MMULT( MMULT(AX25:AZ25-$B$2:$D$2, TRANSPOSE($A$16:$C$18)), TRANSPOSE($A$12:$C$14)) -> -1890.874822 | BC25: -5071.904234 | BD25: 3835.780449 | BF25: -661.1306749 | BG25: -246.4784999 | BI25: 746.4784999 | BJ25: 0
U26: 13.3477 | V26: 60 | Z26: '' | AB26: 14.660346 | AC26: -60.8383 | AE26: -60.8383 | AF26: -140.09481 | AH26: =camera!$B$5*COS(RADIANS(AE26))*COS(RADIANS(AF26)) -> -186.8964398 | AI26: =camera!$B$5*COS(RADIANS(AE26))*SIN(RADIANS(AF26)) -> -156.298447 | AJ26: =camera!$B$5*SIN(RADIANS(AE26)) -> -436.6239987 | AL26: =TRANSPOSE(MMULT(camera!$A$12:$C$14,MMULT(camera!$A$16:$C$18,TRANSPOSE(AH26:AJ26)))) -> 459.8569323 | AM26: 172.5629352 | AN26: -93.56086372 | AP26: =camera!$B$5*AM26/AN26 -> -922.1961423 | AQ26: =camera!$B$5*AL26/AN26 -> -2457.528255 | AS26: =IF( AND( (camera!$B$3) > (AQ26+camera!$B$3/2), 0 < (AQ26+camera!$B$3/2), AN26 >= 0 ), AQ26+camera!$B$3/2, 0)*-1+camera!$B$3 -> 1000 | AT26: =IF( AND( (camera!$B$4) > (AP26+camera!$B$4/2), 0 < (AP26+camera!$B$4/2), AN26 >= 0 ), AP26+camera!$B$4/2, 0) -> 0 | AX26: 63.0952 | AY26: 97.1476 | AZ26: 2632.0719 | BB26: =MMULT( MMULT(AX26:AZ26-$B$2:$D$2, TRANSPOSE($A$16:$C$18)), TRANSPOSE($A$12:$C$14)) -> -1903.307358 | BC26: -5110.453312 | BD26: 3906.288861 | BF26: -654.1315163 | BG26: -243.6209181 | BI26: 743.6209181 | BJ26: 0
U27: 13.3477 | V27: 470 | Z27: 'Regulus' | AB27: 10.139532 | AC27: 11.967207 | AE27: 11.967207 | AF27: 152.09298 | AH27: =camera!$B$5*COS(RADIANS(AE27))*COS(RADIANS(AF27)) -> -432.2510813 | AI27: =camera!$B$5*COS(RADIANS(AE27))*SIN(RADIANS(AF27)) -> 228.9329783 | AJ27: =camera!$B$5*SIN(RADIANS(AE27)) -> 103.6759091 | AL27: =TRANSPOSE(MMULT(camera!$A$12:$C$14,MMULT(camera!$A$16:$C$18,TRANSPOSE(AH27:AJ27)))) -> -135.1614821 | AM27: 450.5590592 | AN27: 169.493091 | AP27: =camera!$B$5*AM27/AN27 -> 1329.136947 | AQ27: =camera!$B$5*AL27/AN27 -> -398.722689 | AS27: =IF( AND( (camera!$B$3) > (AQ27+camera!$B$3/2), 0 < (AQ27+camera!$B$3/2), AN27 >= 0 ), AQ27+camera!$B$3/2, 0)*-1+camera!$B$3 -> 898.722689 | AT27: =IF( AND( (camera!$B$4) > (AP27+camera!$B$4/2), 0 < (AP27+camera!$B$4/2), AN27 >= 0 ), AP27+camera!$B$4/2, 0) -> 0 | AX27: 84.023 | AY27: 88.479 | AZ27: 2513.6864 | BB27: =MMULT( MMULT(AX27:AZ27-$B$2:$D$2, TRANSPOSE($A$16:$C$18)), TRANSPOSE($A$12:$C$14)) -> -1785.537571 | BC27: -5132.056993 | BD27: 3920.138136 | BF27: -654.5760398 | BG27: -227.7391139 | BI27: 727.7391139 | BJ27: 0
U28: 15 | V28: 120 | Z28: 'Adhara' | AB28: 6.977097 | AC28: -28.972084 | AE28: -28.972084 | AF28: 104.656455 | AH28: =camera!$B$5*COS(RADIANS(AE28))*COS(RADIANS(AF28)) -> -110.6792096 | AI28: =camera!$B$5*COS(RADIANS(AE28))*SIN(RADIANS(AF28)) -> 423.194148 | AJ28: =camera!$B$5*SIN(RADIANS(AE28)) -> -242.1917126 | AL28: =TRANSPOSE(MMULT(camera!$A$12:$C$14,MMULT(camera!$A$16:$C$18,TRANSPOSE(AH28:AJ28)))) -> 166.9800909 | AM28: 147.1418421 | AN28: 447.735332 | AP28: =camera!$B$5*AM28/AN28 -> 164.3178811 | AQ28: =camera!$B$5*AL28/AN28 -> 186.4718718 | AS28: =IF( AND( (camera!$B$3) > (AQ28+camera!$B$3/2), 0 < (AQ28+camera!$B$3/2), AN28 >= 0 ), AQ28+camera!$B$3/2, 0)*-1+camera!$B$3 -> 313.5281282 | AT28: =IF( AND( (camera!$B$4) > (AP28+camera!$B$4/2), 0 < (AP28+camera!$B$4/2), AN28 >= 0 ), AP28+camera!$B$4/2, 0) -> 664.3178811 | AX28: 34.5205 | AY28: 13.116 | AZ28: 2513.6864 | BB28: =MMULT( MMULT(AX28:AZ28-$B$2:$D$2, TRANSPOSE($A$16:$C$18)), TRANSPOSE($A$12:$C$14)) -> -1771.75153 | BC28: -5089.311183 | BD28: 3841.95361 | BF28: -662.3337629 | BG28: -230.5795058 | BI28: 730.5795058 | BJ28: 0
U29: 15 | V29: 530 | Z29: 'Castor' | AB29: 7.576634 | AC29: 31.888276 | AE29: 31.888276 | AF29: 113.64951 | AH29: =camera!$B$5*COS(RADIANS(AE29))*COS(RADIANS(AF29)) -> -170.3002427 | AI29: =camera!$B$5*COS(RADIANS(AE29))*SIN(RADIANS(AF29)) -> 388.8855283 | AJ29: =camera!$B$5*SIN(RADIANS(AE29)) -> 264.1323025 | AL29: =TRANSPOSE(MMULT(camera!$A$12:$C$14,MMULT(camera!$A$16:$C$18,TRANSPOSE(AH29:AJ29)))) -> -324.8144353 | AM29: 203.5458059 | AN29: 321.0368943 | AP29: =camera!$B$5*AM29/AN29 -> 317.0131058 | AQ29: =camera!$B$5*AL29/AN29 -> -505.883344 | AS29: =IF( AND( (camera!$B$3) > (AQ29+camera!$B$3/2), 0 < (AQ29+camera!$B$3/2), AN29 >= 0 ), AQ29+camera!$B$3/2, 0)*-1+camera!$B$3 -> 1000 | AT29: =IF( AND( (camera!$B$4) > (AP29+camera!$B$4/2), 0 < (AP29+camera!$B$4/2), AN29 >= 0 ), AP29+camera!$B$4/2, 0) -> 817.0131058 | AX29: 102.3091 | AY29: 176.7723 | AZ29: 2513.6864 | BB29: =MMULT( MMULT(AX29:AZ29-$B$2:$D$2, TRANSPOSE($A$16:$C$18)), TRANSPOSE($A$12:$C$14)) -> -1801.087949 | BC29: -5142.578241 | BD29: 4008.328711 | BF29: -641.4865911 | BG29: -224.6681945 | BI29: 724.6681945 | BJ29: 0
U30: 16.8987 | V30: 75 | Z30: 'Gacrux' | AB30: 12.519429 | AC30: -57.113212 | AE30: -57.113212 | AF30: -172.208565 | AH30: =camera!$B$5*COS(RADIANS(AE30))*COS(RADIANS(AF30)) -> -268.9840449 | AI30: =camera!$B$5*COS(RADIANS(AE30))*SIN(RADIANS(AF30)) -> -36.80526742 | AJ30: =camera!$B$5*SIN(RADIANS(AE30)) -> -419.8725472 | AL30: =TRANSPOSE(MMULT(camera!$A$12:$C$14,MMULT(camera!$A$16:$C$18,TRANSPOSE(AH30:AJ30)))) -> 423.9315088 | AM30: 264.752689 | AN30: 13.71457265 | AP30: =camera!$B$5*AM30/AN30 -> 9652.239837 | AQ30: =camera!$B$5*AL30/AN30 -> 15455.51289 | AS30: =IF( AND( (camera!$B$3) > (AQ30+camera!$B$3/2), 0 < (AQ30+camera!$B$3/2), AN30 >= 0 ), AQ30+camera!$B$3/2, 0)*-1+camera!$B$3 -> 1000 | AT30: =IF( AND( (camera!$B$4) > (AP30+camera!$B$4/2), 0 < (AP30+camera!$B$4/2), AN30 >= 0 ), AP30+camera!$B$4/2, 0) -> 0 | AX30: 79.586 | AY30: 176.7723 | AZ30: 2632.0719 | BB30: =MMULT( MMULT(AX30:AZ30-$B$2:$D$2, TRANSPOSE($A$16:$C$18)), TRANSPOSE($A$12:$C$14)) -> -1917.331006 | BC30: -5119.941609 | BD30: 3985.820923 | BF30: -642.269398 | BG30: -240.51896 | BI30: 740.51896 | BJ30: 0
A31: view As. Lat | B31: =90-B8 -> -10 | U31: 16.8987 | V31: 105 | Z31: 'Shaula' | AB31: 17.560145 | AC31: -37.103821 | AE31: -37.103821 | AF31: -96.597825 | AH31: =camera!$B$5*COS(RADIANS(AE31))*COS(RADIANS(AF31)) -> -45.81866266 | AI31: =camera!$B$5*COS(RADIANS(AE31))*SIN(RADIANS(AF31)) -> -396.1308349 | AJ31: =camera!$B$5*SIN(RADIANS(AE31)) -> -301.6305883 | AL31: =TRANSPOSE(MMULT(camera!$A$12:$C$14,MMULT(camera!$A$16:$C$18,TRANSPOSE(AH31:AJ31)))) -> 366.2672223 | AM31: 11.11923168 | AN31: -340.1833103 | AP31: =camera!$B$5*AM31/AN31 -> -16.34299999 | AQ31: =camera!$B$5*AL31/AN31 -> -538.3380242 | AS31: =IF( AND( (camera!$B$3) > (AQ31+camera!$B$3/2), 0 < (AQ31+camera!$B$3/2), AN31 >= 0 ), AQ31+camera!$B$3/2, 0)*-1+camera!$B$3 -> 1000 | AT31: =IF( AND( (camera!$B$4) > (AP31+camera!$B$4/2), 0 < (AP31+camera!$B$4/2), AN31 >= 0 ), AP31+camera!$B$4/2, 0) -> 0 | AX31: 78.0174 | AY31: -30.3809 | AZ31: 2851.5058 | BB31: =MMULT( MMULT(AX31:AZ31-$B$2:$D$2, TRANSPOSE($A$16:$C$18)), TRANSPOSE($A$12:$C$14)) -> -2097.57258 | BC31: -5136.433569 | BD31: 3744.352218 | BF31: -685.8908124 | BG31: -280.0981929 | BI31: 780.0981929 | BJ31: 0
A32: view As. Long | B32: =IF(B9>180,(B9)-360,-1*B9) -> -85 | U32: 16.8987 | V32: 90 | Z32: 'Bellatrix' | AB32: 5.418851 | AC32: 6.349702 | AE32: 6.349702 | AF32: 81.282765 | AH32: =camera!$B$5*COS(RADIANS(AE32))*COS(RADIANS(AF32)) -> 75.31420486 | AI32: =camera!$B$5*COS(RADIANS(AE32))*SIN(RADIANS(AF32)) -> 491.1922988 | AJ32: =camera!$B$5*SIN(RADIANS(AE32)) -> 55.29824729 | AL32: =TRANSPOSE(MMULT(camera!$A$12:$C$14,MMULT(camera!$A$16:$C$18,TRANSPOSE(AH32:AJ32)))) -> -140.5680564 | AM32: -32.21738194 | AN32: 478.7511481 | AP32: =camera!$B$5*AM32/AN32 -> -33.64731559 | AQ32: =camera!$B$5*AL32/AN32 -> -146.8070175 | AS32: =IF( AND( (camera!$B$3) > (AQ32+camera!$B$3/2), 0 < (AQ32+camera!$B$3/2), AN32 >= 0 ), AQ32+camera!$B$3/2, 0)*-1+camera!$B$3 -> 646.8070175 | AT32: =IF( AND( (camera!$B$4) > (AP32+camera!$B$4/2), 0 < (AP32+camera!$B$4/2), AN32 >= 0 ), AP32+camera!$B$4/2, 0) -> 466.3526844 | AX32: 140.6768 | AY32: 65.0123 | AZ32: 2851.5058 | BB32: =MMULT( MMULT(AX32:AZ32-$B$2:$D$2, TRANSPOSE($A$16:$C$18)), TRANSPOSE($A$12:$C$14)) -> -2115.022716 | BC32: -5190.540466 | BD32: 3843.316855 | BF32: -675.2683504 | BG32: -275.1559129 | BI32: 775.1559129 | BJ32: 0
U33: 16.8987 | V33: 485 | Z33: 'Alnath' | AB33: 5.438198 | AC33: 28.60745 | AE33: 28.60745 | AF33: 81.57297 | AH33: =camera!$B$5*COS(RADIANS(AE33))*COS(RADIANS(AF33)) -> 64.32951554 | AI33: =camera!$B$5*COS(RADIANS(AE33))*SIN(RADIANS(AF33)) -> 434.221042 | AJ33: =camera!$B$5*SIN(RADIANS(AE33)) -> 239.4030077 | AL33: =TRANSPOSE(MMULT(camera!$A$12:$C$14,MMULT(camera!$A$16:$C$18,TRANSPOSE(AH33:AJ33)))) -> -311.8542955 | AM33: -26.23986487 | AN33: 389.9466219 | AP33: =camera!$B$5*AM33/AN33 -> -33.64545736 | AQ33: =camera!$B$5*AL33/AN33 -> -399.867928 | AS33: =IF( AND( (camera!$B$3) > (AQ33+camera!$B$3/2), 0 < (AQ33+camera!$B$3/2), AN33 >= 0 ), AQ33+camera!$B$3/2, 0)*-1+camera!$B$3 -> 899.867928 | AT33: =IF( AND( (camera!$B$4) > (AP33+camera!$B$4/2), 0 < (AP33+camera!$B$4/2), AN33 >= 0 ), AP33+camera!$B$4/2, 0) -> 466.3545426 | AX33: 84.023 | AY33: 88.479 | AZ33: 2750.4574 | BB33: =MMULT( MMULT(AX33:AZ33-$B$2:$D$2, TRANSPOSE($A$16:$C$18)), TRANSPOSE($A$12:$C$14)) -> -2018.711488 | BC33: -5132.056993 | BD33: 3879.023284 | BF33: -661.5140743 | BG33: -260.2087356 | BI33: 760.2087356 | BJ33: 0
A34: instrumentZenith | B34: 90 | C34: where the instrument iteself is pointing relative to stars (90 to -90) | U34: 16.8987 | V34: 515 | Z34: 'Miaplacidus' | AB34: 9.220041 | AC34: -69.717208 | AE34: -69.717208 | AF34: 138.300615 | AH34: =camera!$B$5*COS(RADIANS(AE34))*COS(RADIANS(AF34)) -> -129.4137766 | AI34: =camera!$B$5*COS(RADIANS(AE34))*SIN(RADIANS(AF34)) -> 115.3009772 | AJ34: =camera!$B$5*SIN(RADIANS(AE34)) -> -468.9965448 | AL34: =TRANSPOSE(MMULT(camera!$A$12:$C$14,MMULT(camera!$A$16:$C$18,TRANSPOSE(AH34:AJ34)))) -> 443.8844224 | AM34: 138.9704604 | AN34: 183.4498042 | AP34: =camera!$B$5*AM34/AN34 -> 378.769716 | AQ34: =camera!$B$5*AL34/AN34 -> 1209.825283 | AS34: =IF( AND( (camera!$B$3) > (AQ34+camera!$B$3/2), 0 < (AQ34+camera!$B$3/2), AN34 >= 0 ), AQ34+camera!$B$3/2, 0)*-1+camera!$B$3 -> 1000 | AT34: =IF( AND( (camera!$B$4) > (AP34+camera!$B$4/2), 0 < (AP34+camera!$B$4/2), AN34 >= 0 ), AP34+camera!$B$4/2, 0) -> 878.769716 | AX34: 34.5205 | AY34: 13.116 | AZ34: 2750.4574 | BB34: =MMULT( MMULT(AX34:AZ34-$B$2:$D$2, TRANSPOSE($A$16:$C$18)), TRANSPOSE($A$12:$C$14)) -> -2004.925446 | BC34: -5089.311183 | BD34: 3800.838758 | BF34: -669.4984328 | BG34: -263.7477639 | BI34: 763.7477639 | BJ34: 0
A35: azimuthAngleREF | B35: 0 | C35: where the horizontal angle references (angle right 0 -360) | U35: 16.8987 | V35: 500 | Z35: 'Alnilam' | AB35: 5.603559 | AC35: -1.20192 | AE35: -1.20192 | AF35: 84.053385 | AH35: =camera!$B$5*COS(RADIANS(AE35))*COS(RADIANS(AF35)) -> 51.78949193 | AI35: =camera!$B$5*COS(RADIANS(AE35))*SIN(RADIANS(AF35)) -> 497.2000113 | AJ35: =camera!$B$5*SIN(RADIANS(AE35)) -> -10.48796142 | AL35: =TRANSPOSE(MMULT(camera!$A$12:$C$14,MMULT(camera!$A$16:$C$18,TRANSPOSE(AH35:AJ35)))) -> -76.46451323 | AM35: -8.258580999 | AN35: 494.0495664 | AP35: =camera!$B$5*AM35/AN35 -> -8.35804903 | AQ35: =camera!$B$5*AL35/AN35 -> -77.3854674 | AS35: =IF( AND( (camera!$B$3) > (AQ35+camera!$B$3/2), 0 < (AQ35+camera!$B$3/2), AN35 >= 0 ), AQ35+camera!$B$3/2, 0)*-1+camera!$B$3 -> 577.3854674 | AT35: =IF( AND( (camera!$B$4) > (AP35+camera!$B$4/2), 0 < (AP35+camera!$B$4/2), AN35 >= 0 ), AP35+camera!$B$4/2, 0) -> 491.641951 | AX35: 102.3091 | AY35: 176.7723 | AZ35: 2750.4574 | BB35: =MMULT( MMULT(AX35:AZ35-$B$2:$D$2, TRANSPOSE($A$16:$C$18)), TRANSPOSE($A$12:$C$14)) -> -2034.261866 | BC35: -5142.578241 | BD35: 3967.213858 | BF35: -648.1347395 | BG35: -256.3841954 | BI35: 756.3841954 | BJ35: 0
U36: 18.3477 | V36: 60 | Z36: 'Alnair' | AB36: 22.137209 | AC36: -46.960975 | AE36: -46.960975 | AF36: -27.941865 | AH36: =camera!$B$5*COS(RADIANS(AE36))*COS(RADIANS(AF36)) -> 301.466647 | AI36: =camera!$B$5*COS(RADIANS(AE36))*SIN(RADIANS(AF36)) -> -159.9005112 | AJ36: =camera!$B$5*SIN(RADIANS(AE36)) -> -365.4445064 | AL36: =TRANSPOSE(MMULT(camera!$A$12:$C$14,MMULT(camera!$A$16:$C$18,TRANSPOSE(AH36:AJ36)))) -> 382.9908283 | AM36: -314.2557232 | AN36: -67.53788477 | AP36: =camera!$B$5*AM36/AN36 -> 2326.514402 | AQ36: =camera!$B$5*AL36/AN36 -> -2835.377726 | AS36: =IF( AND( (camera!$B$3) > (AQ36+camera!$B$3/2), 0 < (AQ36+camera!$B$3/2), AN36 >= 0 ), AQ36+camera!$B$3/2, 0)*-1+camera!$B$3 -> 1000 | AT36: =IF( AND( (camera!$B$4) > (AP36+camera!$B$4/2), 0 < (AP36+camera!$B$4/2), AN36 >= 0 ), AP36+camera!$B$4/2, 0) -> 0 | AX36: 163.8231 | AY36: 176.7723 | AZ36: 2851.5058 | BB36: =MMULT( MMULT(AX36:AZ36-$B$2:$D$2, TRANSPOSE($A$16:$C$18)), TRANSPOSE($A$12:$C$14)) -> -2134.706093 | BC36: -5203.858162 | BD36: 3954.946836 | BF36: -657.8923027 | BG36: -269.8779758 | BI36: 769.8779758 | BJ36: 0
B37: x | C37: y | D37: z | U37: 18.3477 | V37: 470 | Z37: 'Alnitak' | AB37: 5.679313 | AC37: -1.942572 | AE37: -1.942572 | AF37: 85.189695 | AH37: =camera!$B$5*COS(RADIANS(AE37))*COS(RADIANS(AF37)) -> 41.90443757 | AI37: =camera!$B$5*COS(RADIANS(AE37))*SIN(RADIANS(AF37)) -> 497.9525612 | AJ37: =camera!$B$5*SIN(RADIANS(AE37)) -> -16.94889112 | AL37: =TRANSPOSE(MMULT(camera!$A$12:$C$14,MMULT(camera!$A$16:$C$18,TRANSPOSE(AH37:AJ37)))) -> -70.08231651 | AM37: 1.654446789 | AN37: 495.0613414 | AP37: =camera!$B$5*AM37/AN37 -> 1.670951305 | AQ37: =camera!$B$5*AL37/AN37 -> -70.78144732 | AS37: =IF( AND( (camera!$B$3) > (AQ37+camera!$B$3/2), 0 < (AQ37+camera!$B$3/2), AN37 >= 0 ), AQ37+camera!$B$3/2, 0)*-1+camera!$B$3 -> 570.7814473 | AT37: =IF( AND( (camera!$B$4) > (AP37+camera!$B$4/2), 0 < (AP37+camera!$B$4/2), AN37 >= 0 ), AP37+camera!$B$4/2, 0) -> 501.6709513 | AX37: 221.819 | AY37: -174.1825 | AZ37: 2942.3983 | BB37: =MMULT( MMULT(AX37:AZ37-$B$2:$D$2, TRANSPOSE($A$16:$C$18)), TRANSPOSE($A$12:$C$14)) -> -2164.384711 | BC37: -5292.221096 | BD37: 3599.833594 | BF37: -735.0646853 | BG37: -300.6228835 | BI37: 800.6228835 | BJ37: 0
A38: instrumentOrigin | B38: 0 | C38: 0 | D38: 10000 | U38: 20 | V38: 120 | Z38: '' | AB38: 8.158876 | AC38: -47.336588 | AE38: -47.336588 | AF38: 122.38314 | AH38: =camera!$B$5*COS(RADIANS(AE38))*COS(RADIANS(AF38)) -> -181.4780964 | AI38: =camera!$B$5*COS(RADIANS(AE38))*SIN(RADIANS(AF38)) -> 286.1498072 | AJ38: =camera!$B$5*SIN(RADIANS(AE38)) -> -367.6737526 | AL38: =TRANSPOSE(MMULT(camera!$A$12:$C$14,MMULT(camera!$A$16:$C$18,TRANSPOSE(AH38:AJ38)))) -> 315.3342213 | AM38: 205.7271165 | AN38: 328.9995173 | AP38: =camera!$B$5*AM38/AN38 -> 312.6556509 | AQ38: =camera!$B$5*AL38/AN38 -> 479.2320425 | AS38: =IF( AND( (camera!$B$3) > (AQ38+camera!$B$3/2), 0 < (AQ38+camera!$B$3/2), AN38 >= 0 ), AQ38+camera!$B$3/2, 0)*-1+camera!$B$3 -> 20.76795753 | AT38: =IF( AND( (camera!$B$4) > (AP38+camera!$B$4/2), 0 < (AP38+camera!$B$4/2), AN38 >= 0 ), AP38+camera!$B$4/2, 0) -> 812.6556509 | AX38: 327.9754 | AY38: -12.5693 | AZ38: 2942.3983 | BB38: =MMULT( MMULT(AX38:AZ38-$B$2:$D$2, TRANSPOSE($A$16:$C$18)), TRANSPOSE($A$12:$C$14)) -> -2193.948374 | BC38: -5383.88802 | BD38: 3767.497462 | BF38: -714.5178033 | BG38: -291.1678636 | BI38: 791.1678636 | BJ38: 0
A39: instrumentHeight | B39: 0 | U39: 20 | V39: 530 | Z39: 'Alioth' | AB39: 12.900472 | AC39: 55.959821 | AE39: 55.959821 | AF39: -166.49292 | AH39: =camera!$B$5*COS(RADIANS(AE39))*COS(RADIANS(AF39)) -> -272.1456889 | AI39: =camera!$B$5*COS(RADIANS(AE39))*SIN(RADIANS(AF39)) -> -65.37196747 | AJ39: =camera!$B$5*SIN(RADIANS(AE39)) -> 414.3226157 | AL39: =TRANSPOSE(MMULT(camera!$A$12:$C$14,MMULT(camera!$A$16:$C$18,TRANSPOSE(AH39:AJ39)))) -> -392.6008264 | AM39: 265.41255 | AN39: -159.4389206 | AP39: =camera!$B$5*AM39/AN39 -> -832.3329994 | AQ39: =camera!$B$5*AL39/AN39 -> 1231.195072 | AS39: =IF( AND( (camera!$B$3) > (AQ39+camera!$B$3/2), 0 < (AQ39+camera!$B$3/2), AN39 >= 0 ), AQ39+camera!$B$3/2, 0)*-1+camera!$B$3 -> 1000 | AT39: =IF( AND( (camera!$B$4) > (AP39+camera!$B$4/2), 0 < (AP39+camera!$B$4/2), AN39 >= 0 ), AP39+camera!$B$4/2, 0) -> 0 | AX39: 226.927 | AY39: 29.2863 | AZ39: 2917.8799 | BB39: =MMULT( MMULT(AX39:AZ39-$B$2:$D$2, TRANSPOSE($A$16:$C$18)), TRANSPOSE($A$12:$C$14)) -> -2175.513644 | BC39: -5279.576184 | BD39: 3804.144752 | BF39: -693.9241969 | BG39: -285.9399137 | BI39: 785.9399137 | BJ39: 0
U40: 21.8987 | V40: 75 | Z40: 'Mirphak' | AB40: 3.405378 | AC40: 49.86118 | AE40: 49.86118 | AF40: 51.08067 | AH40: =camera!$B$5*COS(RADIANS(AE40))*COS(RADIANS(AF40)) -> 202.4902167 | AI40: =camera!$B$5*COS(RADIANS(AE40))*SIN(RADIANS(AF40)) -> 250.7757101 | AJ40: =camera!$B$5*SIN(RADIANS(AE40)) -> 382.242404 | AL40: =TRANSPOSE(MMULT(camera!$A$12:$C$14,MMULT(camera!$A$16:$C$18,TRANSPOSE(AH40:AJ40)))) -> -422.8808947 | AM40: -179.863137 | AN40: 197.0304567 | AP40: =camera!$B$5*AM40/AN40 -> -456.4348579 | AQ40: =camera!$B$5*AL40/AN40 -> -1073.135854 | AS40: =IF( AND( (camera!$B$3) > (AQ40+camera!$B$3/2), 0 < (AQ40+camera!$B$3/2), AN40 >= 0 ), AQ40+camera!$B$3/2, 0)*-1+camera!$B$3 -> 1000 | AT40: =IF( AND( (camera!$B$4) > (AP40+camera!$B$4/2), 0 < (AP40+camera!$B$4/2), AN40 >= 0 ), AP40+camera!$B$4/2, 0) -> 43.56514205 | AX40: 144.2374 | AY40: -96.6009 | AZ40: 2917.8799 | BB40: =MMULT( MMULT(AX40:AZ40-$B$2:$D$2, TRANSPOSE($A$16:$C$18)), TRANSPOSE($A$12:$C$14)) -> -2152.485285 | BC40: -5208.173035 | BD40: 3673.544438 | BF40: -708.8757362 | BG40: -292.9711783 | BI40: 792.9711783 | BJ40: 0
U41: 21.8987 | V41: 105 | Z41: 'Kaus Australis' | AB41: 18.402868 | AC41: -34.384616 | AE41: -34.384616 | AF41: -83.95698 | AH41: =camera!$B$5*COS(RADIANS(AE41))*COS(RADIANS(AF41)) -> 43.43996153 | AI41: =camera!$B$5*COS(RADIANS(AE41))*SIN(RADIANS(AF41)) -> -410.3396362 | AJ41: =camera!$B$5*SIN(RADIANS(AE41)) -> -282.3727194 | AL41: =TRANSPOSE(MMULT(camera!$A$12:$C$14,MMULT(camera!$A$16:$C$18,TRANSPOSE(AH41:AJ41)))) -> 348.4089883 | AM41: -79.03811514 | AN41: -349.8058793 | AP41: =camera!$B$5*AM41/AN41 -> 112.974252 | AQ41: =camera!$B$5*AL41/AN41 -> -498.003334 | AS41: =IF( AND( (camera!$B$3) > (AQ41+camera!$B$3/2), 0 < (AQ41+camera!$B$3/2), AN41 >= 0 ), AQ41+camera!$B$3/2, 0)*-1+camera!$B$3 -> 1000 | AT41: =IF( AND( (camera!$B$4) > (AP41+camera!$B$4/2), 0 < (AP41+camera!$B$4/2), AN41 >= 0 ), AP41+camera!$B$4/2, 0) -> 0 | AX41: 257.4723 | AY41: 176.7723 | AZ41: 2917.8799 | BB41: =MMULT( MMULT(AX41:AZ41-$B$2:$D$2, TRANSPOSE($A$16:$C$18)), TRANSPOSE($A$12:$C$14)) -> -2201.489149 | BC41: -5297.150998 | BD41: 3951.459159 | BF41: -670.2778372 | BG41: -278.566608 | BI41: 778.566608 | BJ41: 0
U42: 21.8987 | V42: 90 | Z42: 'Dubhe' | AB42: 11.062155 | AC42: 61.751033 | AE42: 61.751033 | AF42: 165.932325 | AH42: =camera!$B$5*COS(RADIANS(AE42))*COS(RADIANS(AF42)) -> -229.5545375 | AI42: =camera!$B$5*COS(RADIANS(AE42))*SIN(RADIANS(AF42)) -> 57.52245323 | AJ42: =camera!$B$5*SIN(RADIANS(AE42)) -> 440.4496358 | AL42: =TRANSPOSE(MMULT(camera!$A$12:$C$14,MMULT(camera!$A$16:$C$18,TRANSPOSE(AH42:AJ42)))) -> -440.234697 | AM42: 233.6944253 | AN42: -39.75332855 | AP42: =camera!$B$5*AM42/AN42 -> -2939.30639 | AQ42: =camera!$B$5*AL42/AN42 -> 5537.0797 | AS42: =IF( AND( (camera!$B$3) > (AQ42+camera!$B$3/2), 0 < (AQ42+camera!$B$3/2), AN42 >= 0 ), AQ42+camera!$B$3/2, 0)*-1+camera!$B$3 -> 1000 | AT42: =IF( AND( (camera!$B$4) > (AP42+camera!$B$4/2), 0 < (AP42+camera!$B$4/2), AN42 >= 0 ), AP42+camera!$B$4/2, 0) -> 0 | AX42: 367.1893 | AY42: 176.7723 | AZ42: 2942.3983 | BB42: =MMULT( MMULT(AX42:AZ42-$B$2:$D$2, TRANSPOSE($A$16:$C$18)), TRANSPOSE($A$12:$C$14)) -> -2227.295564 | BC42: -5406.450492 | BD42: 3956.618775 | BF42: -683.2159982 | BG42: -281.4645144 | BI42: 781.4645144 | BJ42: 0
U43: 21.8987 | V43: 485 | Z43: 'Wezen' | AB43: 7.139857 | AC43: -26.3932 | AE43: -26.3932 | AF43: 107.097855 | AH43: =camera!$B$5*COS(RADIANS(AE43))*COS(RADIANS(AF43)) -> -131.6794197 | AI43: =camera!$B$5*COS(RADIANS(AE43))*SIN(RADIANS(AF43)) -> 428.0876676 | AJ43: =camera!$B$5*SIN(RADIANS(AE43)) -> -222.2644354 | AL43: =TRANSPOSE(MMULT(camera!$A$12:$C$14,MMULT(camera!$A$16:$C$18,TRANSPOSE(AH43:AJ43)))) -> 146.826863 | AM43: 168.4886384 | AN43: 447.2733516 | AP43: =camera!$B$5*AM43/AN43 -> 188.3508572 | AQ43: =camera!$B$5*AL43/AN43 -> 164.1354917 | AS43: =IF( AND( (camera!$B$3) > (AQ43+camera!$B$3/2), 0 < (AQ43+camera!$B$3/2), AN43 >= 0 ), AQ43+camera!$B$3/2, 0)*-1+camera!$B$3 -> 335.8645083 | AT43: =IF( AND( (camera!$B$4) > (AP43+camera!$B$4/2), 0 < (AP43+camera!$B$4/2), AN43 >= 0 ), AP43+camera!$B$4/2, 0) -> 688.3508572 | AX43: 365.6207 | AY43: -317.9841 | AZ43: 2851.5058 | BB43: =MMULT( MMULT(AX43:AZ43-$B$2:$D$2, TRANSPOSE($A$16:$C$18)), TRANSPOSE($A$12:$C$14)) -> -2052.173566 | BC43: -5448.008722 | BD43: 3486.881613 | BF43: -781.2150406 | BG43: -294.270611 | BI43: 794.270611 | BJ43: 0
A44: calculated values | U44: 21.8987 | V44: 515 | Z44: 'Alkaid' | AB44: 13.792354 | AC44: 49.313265 | AE44: 49.313265 | AF44: -153.11469 | AH44: =camera!$B$5*COS(RADIANS(AE44))*COS(RADIANS(AF44)) -> -290.7294018 | AI44: =camera!$B$5*COS(RADIANS(AE44))*SIN(RADIANS(AF44)) -> -147.4017309 | AJ44: =camera!$B$5*SIN(RADIANS(AE44)) -> 379.1426442 | AL44: =TRANSPOSE(MMULT(camera!$A$12:$C$14,MMULT(camera!$A$16:$C$18,TRANSPOSE(AH44:AJ44)))) -> -343.4839487 | AM44: 276.7761813 | AN44: -235.4011947 | AP44: =camera!$B$5*AM44/AN44 -> -587.8818537 | AQ44: =camera!$B$5*AL44/AN44 -> 729.5713796 | AS44: =IF( AND( (camera!$B$3) > (AQ44+camera!$B$3/2), 0 < (AQ44+camera!$B$3/2), AN44 >= 0 ), AQ44+camera!$B$3/2, 0)*-1+camera!$B$3 -> 1000 | AT44: =IF( AND( (camera!$B$4) > (AP44+camera!$B$4/2), 0 < (AP44+camera!$B$4/2), AN44 >= 0 ), AP44+camera!$B$4/2, 0) -> 0 | AX44: 515.2739 | AY44: -90.1509 | AZ44: 2851.5058 | BB44: =MMULT( MMULT(AX44:AZ44-$B$2:$D$2, TRANSPOSE($A$16:$C$18)), TRANSPOSE($A$12:$C$14)) -> -2093.850754 | BC44: -5577.235475 | BD44: 3723.244693 | BF44: -748.9751459 | BG44: -281.186294 | BI44: 781.186294 | BJ44: 0
A45: variable names | U45: 21.8987 | V45: 500 | Z45: 'Avior' | AB45: 8.375236 | AC45: -59.509483 | AE45: -59.509483 | AF45: 125.62854 | AH45: =camera!$B$5*COS(RADIANS(AE45))*COS(RADIANS(AF45)) -> -147.7860942 | AI45: =camera!$B$5*COS(RADIANS(AE45))*SIN(RADIANS(AF45)) -> 206.2083453 | AJ45: =camera!$B$5*SIN(RADIANS(AE45)) -> -430.8565755 | AL45: =TRANSPOSE(MMULT(camera!$A$12:$C$14,MMULT(camera!$A$16:$C$18,TRANSPOSE(AH45:AJ45)))) -> 390.8761109 | AM45: 165.195965 | AN45: 264.435548 | AP45: =camera!$B$5*AM45/AN45 -> 312.3558202 | AQ45: =camera!$B$5*AL45/AN45 -> 739.0763343 | AS45: =IF( AND( (camera!$B$3) > (AQ45+camera!$B$3/2), 0 < (AQ45+camera!$B$3/2), AN45 >= 0 ), AQ45+camera!$B$3/2, 0)*-1+camera!$B$3 -> 1000 | AT45: =IF( AND( (camera!$B$4) > (AP45+camera!$B$4/2), 0 < (AP45+camera!$B$4/2), AN45 >= 0 ), AP45+camera!$B$4/2, 0) -> 812.3558202 | AX45: 429.0237 | AY45: -54.4249 | AZ45: 2917.8799 | BB45: =MMULT( MMULT(AX45:AZ45-$B$2:$D$2, TRANSPOSE($A$16:$C$18)), TRANSPOSE($A$12:$C$14)) -> -2164.091282 | BC45: -5488.199757 | BD45: 3739.365314 | BF45: -733.8410795 | BG45: -289.3661223 | BI45: 789.3661223 | BJ45: 0
A46: not in use yet | U46: 23.3477 | V46: 60 | Z46: 'Sargas' | AB46: 17.62198 | AC46: -42.997824 | AE46: -42.997824 | AF46: -95.6703 | AH46: =camera!$B$5*COS(RADIANS(AE46))*COS(RADIANS(AF46)) -> -36.13159194 | AI46: =camera!$B$5*COS(RADIANS(AE46))*SIN(RADIANS(AF46)) -> -363.9004517 | AJ46: =camera!$B$5*SIN(RADIANS(AE46)) -> -340.985292 | AL46: =TRANSPOSE(MMULT(camera!$A$12:$C$14,MMULT(camera!$A$16:$C$18,TRANSPOSE(AH46:AJ46)))) -> 399.3019812 | AM46: 4.278086176 | AN46: -300.8980322 | AP46: =camera!$B$5*AM46/AN46 -> -7.108863667 | AQ46: =camera!$B$5*AL46/AN46 -> -663.5171031 | AS46: =IF( AND( (camera!$B$3) > (AQ46+camera!$B$3/2), 0 < (AQ46+camera!$B$3/2), AN46 >= 0 ), AQ46+camera!$B$3/2, 0)*-1+camera!$B$3 -> 1000 | AT46: =IF( AND( (camera!$B$4) > (AP46+camera!$B$4/2), 0 < (AP46+camera!$B$4/2), AN46 >= 0 ), AP46+camera!$B$4/2, 0) -> 0 | AX46: 299.4006 | AY46: -251.7641 | AZ46: 2917.8799 | BB46: =MMULT( MMULT(AX46:AZ46-$B$2:$D$2, TRANSPOSE($A$16:$C$18)), TRANSPOSE($A$12:$C$14)) -> -2127.992315 | BC46: -5376.269157 | BD46: 3534.637902 | BF46: -760.5120108 | BG46: -301.0198462 | BI46: 801.0198462 | BJ46: 0
A47: input here | U47: 23.3477 | V47: 470 | Z47: 'Menkalinan' | AB47: 5.992149 | AC47: 44.947433 | AE47: 44.947433 | AF47: 89.882235 | AH47: =camera!$B$5*COS(RADIANS(AE47))*COS(RADIANS(AF47)) -> 0.7273549359 | AI47: =camera!$B$5*COS(RADIANS(AE47))*SIN(RADIANS(AF47)) -> 353.8768679 | AJ47: =camera!$B$5*SIN(RADIANS(AE47)) -> 353.2288682 | AL47: =TRANSPOSE(MMULT(camera!$A$12:$C$14,MMULT(camera!$A$16:$C$18,TRANSPOSE(AH47:AJ47)))) -> -409.0897732 | AM47: 30.11781413 | AN47: 285.8994136 | AP47: =camera!$B$5*AM47/AN47 -> 52.672046 | AQ47: =camera!$B$5*AL47/AN47 -> -715.4435332 | AS47: =IF( AND( (camera!$B$3) > (AQ47+camera!$B$3/2), 0 < (AQ47+camera!$B$3/2), AN47 >= 0 ), AQ47+camera!$B$3/2, 0)*-1+camera!$B$3 -> 1000 | AT47: =IF( AND( (camera!$B$4) > (AP47+camera!$B$4/2), 0 < (AP47+camera!$B$4/2), AN47 >= 0 ), AP47+camera!$B$4/2, 0) -> 552.672046 | AX47: 476.9062 | AY47: 176.7723 | AZ47: 2917.8799 | BB47: =MMULT( MMULT(AX47:AZ47-$B$2:$D$2, TRANSPOSE($A$16:$C$18)), TRANSPOSE($A$12:$C$14)) -> -2204.810157 | BC47: -5515.749886 | BD47: 3970.293533 | BF47: -694.6274676 | BG47: -277.6633691 | BI47: 777.6633691 | BJ47: 0
A48: notes | U48: 25 | V48: 120 | Z48: 'Atria' | AB48: 16.811077 | AC48: -69.027715 | AE48: -69.027715 | AF48: -107.833845 | AH48: =camera!$B$5*COS(RADIANS(AE48))*COS(RADIANS(AF48)) -> -54.80731073 | AI48: =camera!$B$5*COS(RADIANS(AE48))*SIN(RADIANS(AF48)) -> -170.3589779 | AJ48: =camera!$B$5*SIN(RADIANS(AE48)) -> -466.8768331 | AL48: =TRANSPOSE(MMULT(camera!$A$12:$C$14,MMULT(camera!$A$16:$C$18,TRANSPOSE(AH48:AJ48)))) -> 490.0833583 | AM48: 39.75098911 | AN48: -90.76431425 | AP48: =camera!$B$5*AM48/AN48 -> -218.9791739 | AQ48: =camera!$B$5*AL48/AN48 -> -2699.757952 | AS48: =IF( AND( (camera!$B$3) > (AQ48+camera!$B$3/2), 0 < (AQ48+camera!$B$3/2), AN48 >= 0 ), AQ48+camera!$B$3/2, 0)*-1+camera!$B$3 -> 1000 | AT48: =IF( AND( (camera!$B$4) > (AP48+camera!$B$4/2), 0 < (AP48+camera!$B$4/2), AN48 >= 0 ), AP48+camera!$B$4/2, 0) -> 0 | AX48: 570.5555 | AY48: 176.7723 | AZ48: 2851.5058 | BB48: =MMULT( MMULT(AX48:AZ48-$B$2:$D$2, TRANSPOSE($A$16:$C$18)), TRANSPOSE($A$12:$C$14)) -> -2140.861758 | BC48: -5609.042822 | BD48: 3989.857349 | BF48: -702.9127023 | BG48: -268.2880077 | BI48: 768.2880077 | BJ48: 0
U49: 25 | V49: 530 | Z49: 'Alhena' | AB49: 6.628528 | AC49: 16.399252 | AE49: 16.399252 | AF49: 99.42792 | AH49: =camera!$B$5*COS(RADIANS(AE49))*COS(RADIANS(AF49)) -> -78.57132791 | AI49: =camera!$B$5*COS(RADIANS(AE49))*SIN(RADIANS(AF49)) -> 473.1798177 | AJ49: =camera!$B$5*SIN(RADIANS(AE49)) -> 141.1644665 | AL49: =TRANSPOSE(MMULT(camera!$A$12:$C$14,MMULT(camera!$A$16:$C$18,TRANSPOSE(AH49:AJ49)))) -> -219.6848718 | AM49: 119.5126787 | AN49: 432.9610568 | AP49: =camera!$B$5*AM49/AN49 -> 138.0178158 | AQ49: =camera!$B$5*AL49/AN49 -> -253.7004984 | AS49: =IF( AND( (camera!$B$3) > (AQ49+camera!$B$3/2), 0 < (AQ49+camera!$B$3/2), AN49 >= 0 ), AQ49+camera!$B$3/2, 0)*-1+camera!$B$3 -> 753.7004984 | AT49: =IF( AND( (camera!$B$4) > (AP49+camera!$B$4/2), 0 < (AP49+camera!$B$4/2), AN49 >= 0 ), AP49+camera!$B$4/2, 0) -> 638.0178158 | AX49: 571.9277 | AY49: -113.6177 | AZ49: 2750.4574 | BB49: =MMULT( MMULT(AX49:AZ49-$B$2:$D$2, TRANSPOSE($A$16:$C$18)), TRANSPOSE($A$12:$C$14)) -> -1991.135469 | BC49: -5635.718957 | BD49: 3722.631908 | BF49: -756.9535608 | BG49: -267.4365231 | BI49: 767.4365231 | BJ49: 0
U50: 26.8987 | V50: 75 | Z50: '' | AB50: 8.745059 | AC50: -54.708821 | AE50: -54.708821 | AF50: 131.175885 | AH50: =camera!$B$5*COS(RADIANS(AE50))*COS(RADIANS(AF50)) -> -190.181484 | AI50: =camera!$B$5*COS(RADIANS(AE50))*SIN(RADIANS(AF50)) -> 217.4271373 | AJ50: =camera!$B$5*SIN(RADIANS(AE50)) -> -408.1132724 | AL50: =TRANSPOSE(MMULT(camera!$A$12:$C$14,MMULT(camera!$A$16:$C$18,TRANSPOSE(AH50:AJ50)))) -> 367.1792504 | AM50: 208.4078097 | AN50: 267.8536596 | AP50: =camera!$B$5*AM50/AN50 -> 389.0329706 | AQ50: =camera!$B$5*AL50/AN50 -> 685.4101807 | AS50: =IF( AND( (camera!$B$3) > (AQ50+camera!$B$3/2), 0 < (AQ50+camera!$B$3/2), AN50 >= 0 ), AQ50+camera!$B$3/2, 0)*-1+camera!$B$3 -> 1000 | AT50: =IF( AND( (camera!$B$4) > (AP50+camera!$B$4/2), 0 < (AP50+camera!$B$4/2), AN50 >= 0 ), AP50+camera!$B$4/2, 0) -> 889.0329706 | AX50: 409.1176 | AY50: -361.4811 | AZ50: 2750.4574 | BB50: =MMULT( MMULT(AX50:AZ50-$B$2:$D$2, TRANSPOSE($A$16:$C$18)), TRANSPOSE($A$12:$C$14)) -> -1945.794186 | BC50: -5495.131117 | BD50: 3465.488716 | BF50: -792.8363886 | BG50: -280.7387854 | BI50: 780.7387854 | BJ50: 0
U51: 26.8987 | V51: 105 | Z51: 'Peacock' | AB51: 20.427459 | AC51: -56.73509 | AE51: -56.73509 | AF51: -53.588115 | AH51: =camera!$B$5*COS(RADIANS(AE51))*COS(RADIANS(AF51)) -> 162.7941314 | AI51: =camera!$B$5*COS(RADIANS(AE51))*SIN(RADIANS(AF51)) -> -220.712721 | AJ51: =camera!$B$5*SIN(RADIANS(AE51)) -> -418.071723 | AL51: =TRANSPOSE(MMULT(camera!$A$12:$C$14,MMULT(camera!$A$16:$C$18,TRANSPOSE(AH51:AJ51)))) -> 447.4369952 | AM51: -181.4110317 | AN51: -129.962198 | AP51: =camera!$B$5*AM51/AN51 -> 697.9376868 | AQ51: =camera!$B$5*AL51/AN51 -> -1721.41208 | AS51: =IF( AND( (camera!$B$3) > (AQ51+camera!$B$3/2), 0 < (AQ51+camera!$B$3/2), AN51 >= 0 ), AQ51+camera!$B$3/2, 0)*-1+camera!$B$3 -> 1000 | AT51: =IF( AND( (camera!$B$4) > (AP51+camera!$B$4/2), 0 < (AP51+camera!$B$4/2), AN51 >= 0 ), AP51+camera!$B$4/2, 0) -> 0 | AX51: 632.0694 | AY51: 176.7723 | AZ51: 2750.4574 | BB51: =MMULT( MMULT(AX51:AZ51-$B$2:$D$2, TRANSPOSE($A$16:$C$18)), TRANSPOSE($A$12:$C$14)) -> -2042.279489 | BC51: -5670.322643 | BD51: 4012.684059 | BF51: -706.5498504 | BG51: -254.4779827 | BI51: 754.4779827 | BJ51: 0
U52: 26.8987 | V52: 90 | Z52: 'Polaris' | AB52: 2.52975 | AC52: 89.264109 | AE52: 89.264109 | AF52: 37.94625 | AH52: =camera!$B$5*COS(RADIANS(AE52))*COS(RADIANS(AF52)) -> 5.064062644 | AI52: =camera!$B$5*COS(RADIANS(AE52))*SIN(RADIANS(AF52)) -> 3.948834442 | AJ52: =camera!$B$5*SIN(RADIANS(AE52)) -> 499.9587603 | AL52: =TRANSPOSE(MMULT(camera!$A$12:$C$14,MMULT(camera!$A$16:$C$18,TRANSPOSE(AH52:AJ52)))) -> -493.1230036 | AM52: -4.700628758 | AN52: -82.50822622 | AP52: =camera!$B$5*AM52/AN52 -> 28.48581877 | AQ52: =camera!$B$5*AL52/AN52 -> 2988.326293 | AS52: =IF( AND( (camera!$B$3) > (AQ52+camera!$B$3/2), 0 < (AQ52+camera!$B$3/2), AN52 >= 0 ), AQ52+camera!$B$3/2, 0)*-1+camera!$B$3 -> 1000 | AT52: =IF( AND( (camera!$B$4) > (AP52+camera!$B$4/2), 0 < (AP52+camera!$B$4/2), AN52 >= 0 ), AP52+camera!$B$4/2, 0) -> 0 | AX52: -129.1358 | AY52: -522.919 | AZ52: 2412.638 | BB52: =MMULT( MMULT(AX52:AZ52-$B$2:$D$2, TRANSPOSE($A$16:$C$18)), TRANSPOSE($A$12:$C$14)) -> -1577.034139 | BC52: -4972.996174 | BD52: 3319.570953 | BF52: -749.0420064 | BG52: -237.5358384 | BI52: 737.5358384 | BJ52: 0
U53: 26.8987 | V53: 485 | Z53: 'Mirzam' | AB53: 6.378329 | AC53: -17.955918 | AE53: -17.955918 | AF53: 95.674935 | AH53: =camera!$B$5*COS(RADIANS(AE53))*COS(RADIANS(AF53)) -> -47.03408483 | AI53: =camera!$B$5*COS(RADIANS(AE53))*SIN(RADIANS(AF53)) -> 473.3158104 | AJ53: =camera!$B$5*SIN(RADIANS(AE53)) -> -154.1425914 | AL53: =TRANSPOSE(MMULT(camera!$A$12:$C$14,MMULT(camera!$A$16:$C$18,TRANSPOSE(AH53:AJ53)))) -> 70.63498492 | AM53: 88.10729695 | AN53: 487.0809 | AP53: =camera!$B$5*AM53/AN53 -> 90.4442126 | AQ53: =camera!$B$5*AL53/AN53 -> 72.50847336 | AS53: =IF( AND( (camera!$B$3) > (AQ53+camera!$B$3/2), 0 < (AQ53+camera!$B$3/2), AN53 >= 0 ), AQ53+camera!$B$3/2, 0)*-1+camera!$B$3 -> 427.4915266 | AT53: =IF( AND( (camera!$B$4) > (AP53+camera!$B$4/2), 0 < (AP53+camera!$B$4/2), AN53 >= 0 ), AP53+camera!$B$4/2, 0) -> 590.4442126 | AX53: 137.7874 | AY53: -467.6374 | AZ53: 2412.638 | BB53: =MMULT( MMULT(AX53:AZ53-$B$2:$D$2, TRANSPOSE($A$16:$C$18)), TRANSPOSE($A$12:$C$14)) -> -1590.636891 | BC53: -5234.085541 | BD53: 3396.715993 | BF53: -770.4626399 | BG53: -234.1433452 | BI53: 734.1433452 | BJ53: 0
U54: 26.8987 | V54: 515 | Z54: 'Alphard' | AB54: 9.45979 | AC54: -8.658603 | AE54: -8.658603 | AF54: 141.89685 | AH54: =camera!$B$5*COS(RADIANS(AE54))*COS(RADIANS(AF54)) -> -388.9663601 | AI54: =camera!$B$5*COS(RADIANS(AE54))*SIN(RADIANS(AF54)) -> 305.023118 | AJ54: =camera!$B$5*SIN(RADIANS(AE54)) -> -75.2732901 | AL54: =TRANSPOSE(MMULT(camera!$A$12:$C$14,MMULT(camera!$A$16:$C$18,TRANSPOSE(AH54:AJ54)))) -> 27.25135187 | AM54: 414.0707421 | AN54: 278.9315048 | AP54: =camera!$B$5*AM54/AN54 -> 742.2444846 | AQ54: =camera!$B$5*AL54/AN54 -> 48.84954083 | AS54: =IF( AND( (camera!$B$3) > (AQ54+camera!$B$3/2), 0 < (AQ54+camera!$B$3/2), AN54 >= 0 ), AQ54+camera!$B$3/2, 0)*-1+camera!$B$3 -> 451.1504592 | AT54: =IF( AND( (camera!$B$4) > (AP54+camera!$B$4/2), 0 < (AP54+camera!$B$4/2), AN54 >= 0 ), AP54+camera!$B$4/2, 0) -> 0 | AX54: 161.2542 | AY54: -524.2912 | AZ54: 2513.6864 | BB54: =MMULT( MMULT(AX54:AZ54-$B$2:$D$2, TRANSPOSE($A$16:$C$18)), TRANSPOSE($A$12:$C$14)) -> -1680.704902 | BC54: -5262.400747 | BD54: 3325.602525 | BF54: -791.1950854 | BG54: -252.6917889 | BI54: 752.6917889 | BJ54: 0
U55: 26.8987 | V55: 500 | Z55: 'Hamal' | AB55: 2.119555 | AC55: 23.462423 | AE55: 23.462423 | AF55: 31.793325 | AH55: =camera!$B$5*COS(RADIANS(AE55))*COS(RADIANS(AF55)) -> 389.8405297 | AI55: =camera!$B$5*COS(RADIANS(AE55))*SIN(RADIANS(AF55)) -> 241.6484973 | AJ55: =camera!$B$5*SIN(RADIANS(AE55)) -> 199.0737682 | AL55: =TRANSPOSE(MMULT(camera!$A$12:$C$14,MMULT(camera!$A$16:$C$18,TRANSPOSE(AH55:AJ55)))) -> -243.7515506 | AM55: -367.2960145 | AN55: 235.9635974 | AP55: =camera!$B$5*AM55/AN55 -> -778.289572 | AQ55: =camera!$B$5*AL55/AN55 -> -516.5024464 | AS55: =IF( AND( (camera!$B$3) > (AQ55+camera!$B$3/2), 0 < (AQ55+camera!$B$3/2), AN55 >= 0 ), AQ55+camera!$B$3/2, 0)*-1+camera!$B$3 -> 1000 | AT55: =IF( AND( (camera!$B$4) > (AP55+camera!$B$4/2), 0 < (AP55+camera!$B$4/2), AN55 >= 0 ), AP55+camera!$B$4/2, 0) -> 0 | AX55: -129.1358 | AY55: -584.4329 | AZ55: 2513.6864 | BB55: =MMULT( MMULT(AX55:AZ55-$B$2:$D$2, TRANSPOSE($A$16:$C$18)), TRANSPOSE($A$12:$C$14)) -> -1665.906257 | BC55: -4978.357463 | BD55: 3241.67524 | BF55: -767.8680151 | BG55: -256.9514424 | BI55: 756.9514424 | BJ55: 0
U56: 28.3477 | V56: 60 | Z56: 'Algieba' | AB56: 10.332873 | AC56: 19.841489 | AE56: 19.841489 | AF56: 154.993095 | AH56: =camera!$B$5*COS(RADIANS(AE56))*COS(RADIANS(AF56)) -> -426.2285621 | AI56: =camera!$B$5*COS(RADIANS(AE56))*SIN(RADIANS(AF56)) -> 198.8161825 | AJ56: =camera!$B$5*SIN(RADIANS(AE56)) -> 169.7095708 | AL56: =TRANSPOSE(MMULT(camera!$A$12:$C$14,MMULT(camera!$A$16:$C$18,TRANSPOSE(AH56:AJ56)))) -> -195.0732655 | AM56: 441.9346058 | AN56: 128.9969971 | AP56: =camera!$B$5*AM56/AN56 -> 1712.964703 | AQ56: =camera!$B$5*AL56/AN56 -> -756.1155294 | AS56: =IF( AND( (camera!$B$3) > (AQ56+camera!$B$3/2), 0 < (AQ56+camera!$B$3/2), AN56 >= 0 ), AQ56+camera!$B$3/2, 0)*-1+camera!$B$3 -> 1000 | AT56: =IF( AND( (camera!$B$4) > (AP56+camera!$B$4/2), 0 < (AP56+camera!$B$4/2), AN56 >= 0 ), AP56+camera!$B$4/2, 0) -> 0 | AX56: -129.1358 | AY56: -607.156 | AZ56: 2632.0719 | BB56: =MMULT( MMULT(AX56:AZ56-$B$2:$D$2, TRANSPOSE($A$16:$C$18)), TRANSPOSE($A$12:$C$14)) -> -1778.562406 | BC56: -4980.337912 | BD56: 3198.825083 | BF56: -778.4636207 | BG56: -278.0024477 | BI56: 778.0024477 | BJ56: 0
U57: 28.3477 | V57: 470 | Z57: 'Diphda' | AB57: 0.72649 | AC57: -17.986605 | AE57: -17.986605 | AF57: 10.89735 | AH57: =camera!$B$5*COS(RADIANS(AE57))*COS(RADIANS(AF57)) -> 466.9887326 | AI57: =camera!$B$5*COS(RADIANS(AE57))*SIN(RADIANS(AF57)) -> 89.90545598 | AJ57: =camera!$B$5*SIN(RADIANS(AE57)) -> -154.3973207 | AL57: =TRANSPOSE(MMULT(camera!$A$12:$C$14,MMULT(camera!$A$16:$C$18,TRANSPOSE(AH57:AJ57)))) -> 129.4315569 | AM57: -457.3759227 | AN57: 155.0958976 | AP57: =camera!$B$5*AM57/AN57 -> -1474.493941 | AQ57: =camera!$B$5*AL57/AN57 -> 417.2629932 | AS57: =IF( AND( (camera!$B$3) > (AQ57+camera!$B$3/2), 0 < (AQ57+camera!$B$3/2), AN57 >= 0 ), AQ57+camera!$B$3/2, 0)*-1+camera!$B$3 -> 82.73700685 | AT57: =IF( AND( (camera!$B$4) > (AP57+camera!$B$4/2), 0 < (AP57+camera!$B$4/2), AN57 >= 0 ), AP57+camera!$B$4/2, 0) -> 0 | AX57: 169.9228 | AY57: -545.219 | AZ57: 2632.0719 | BB57: =MMULT( MMULT(AX57:AZ57-$B$2:$D$2, TRANSPOSE($A$16:$C$18)), TRANSPOSE($A$12:$C$14)) -> -1793.802809 | BC57: -5272.860338 | BD57: 3285.257706 | BF57: -802.5033058 | BG57: -273.0079296 | BI57: 773.0079296 | BJ57: 0
U58: 30 | V58: 120 | Z58: 'Nunki' | AB58: 18.92109 | AC58: -26.296722 | AE58: -26.296722 | AF58: -76.18365 | AH58: =camera!$B$5*COS(RADIANS(AE58))*COS(RADIANS(AF58)) -> 107.0482453 | AI58: =camera!$B$5*COS(RADIANS(AE58))*SIN(RADIANS(AF58)) -> -435.2861302 | AJ58: =camera!$B$5*SIN(RADIANS(AE58)) -> -221.5099502 | AL58: =TRANSPOSE(MMULT(camera!$A$12:$C$14,MMULT(camera!$A$16:$C$18,TRANSPOSE(AH58:AJ58)))) -> 291.8236148 | AM58: -144.5785803 | AN58: -379.3889982 | AP58: =camera!$B$5*AM58/AN58 -> 190.5413455 | AQ58: =camera!$B$5*AL58/AN58 -> -384.5968336 | AS58: =IF( AND( (camera!$B$3) > (AQ58+camera!$B$3/2), 0 < (AQ58+camera!$B$3/2), AN58 >= 0 ), AQ58+camera!$B$3/2, 0)*-1+camera!$B$3 -> 1000 | AT58: =IF( AND( (camera!$B$4) > (AP58+camera!$B$4/2), 0 < (AP58+camera!$B$4/2), AN58 >= 0 ), AP58+camera!$B$4/2, 0) -> 0 | AX58: -129.1358 | AY58: -319.5528 | AZ58: 2321.7455 | BB58: =MMULT( MMULT(AX58:AZ58-$B$2:$D$2, TRANSPOSE($A$16:$C$18)), TRANSPOSE($A$12:$C$14)) -> -1522.702289 | BC58: -4955.271641 | BD58: 3534.868767 | BF58: -700.9130986 | BG58: -215.3831428 | BI58: 715.3831428 | BJ58: 0
U59: 30 | V59: 530 | Z59: 'Menkent' | AB59: 14.111395 | AC59: -36.369954 | AE59: -36.369954 | AF59: -148.329075 | AH59: =camera!$B$5*COS(RADIANS(AE59))*COS(RADIANS(AF59)) -> -342.6459382 | AI59: =camera!$B$5*COS(RADIANS(AE59))*SIN(RADIANS(AF59)) -> -211.382318 | AJ59: =camera!$B$5*SIN(RADIANS(AE59)) -> -296.4983587 | AL59: =TRANSPOSE(MMULT(camera!$A$12:$C$14,MMULT(camera!$A$16:$C$18,TRANSPOSE(AH59:AJ59)))) -> 333.7461117 | AM59: 322.918884 | AN59: -185.3022593 | AP59: =camera!$B$5*AM59/AN59 -> -871.3301319 | AQ59: =camera!$B$5*AL59/AN59 -> -900.545177 | AS59: =IF( AND( (camera!$B$3) > (AQ59+camera!$B$3/2), 0 < (AQ59+camera!$B$3/2), AN59 >= 0 ), AQ59+camera!$B$3/2, 0)*-1+camera!$B$3 -> 1000 | AT59: =IF( AND( (camera!$B$4) > (AP59+camera!$B$4/2), 0 < (AP59+camera!$B$4/2), AN59 >= 0 ), AP59+camera!$B$4/2, 0) -> 0 | AX59: 60.2058 | AY59: -280.3388 | AZ59: 2321.7455 | BB59: =MMULT( MMULT(AX59:AZ59-$B$2:$D$2, TRANSPOSE($A$16:$C$18)), TRANSPOSE($A$12:$C$14)) -> -1532.351395 | BC59: -5140.475014 | BD59: 3589.591567 | BF59: -716.0250573 | BG59: -213.4436978 | BI59: 713.4436978 | BJ59: 0
U60: 31.8987 | V60: 75 | Z60: 'Alpheratz' | AB60: 0.139791 | AC60: 29.090432 | AE60: 29.090432 | AF60: 2.096865 | AH60: =camera!$B$5*COS(RADIANS(AE60))*COS(RADIANS(AF60)) -> 436.6341454 | AI60: =camera!$B$5*COS(RADIANS(AE60))*SIN(RADIANS(AF60)) -> 15.98672431 | AJ60: =camera!$B$5*SIN(RADIANS(AE60)) -> 243.0947299 | AL60: =TRANSPOSE(MMULT(camera!$A$12:$C$14,MMULT(camera!$A$16:$C$18,TRANSPOSE(AH60:AJ60)))) -> -248.7752879 | AM60: -433.5792859 | AN60: 10.94801276 | AP60: =camera!$B$5*AM60/AN60 -> -19801.73458 | AQ60: =camera!$B$5*AL60/AN60 -> -11361.66414 | AS60: =IF( AND( (camera!$B$3) > (AQ60+camera!$B$3/2), 0 < (AQ60+camera!$B$3/2), AN60 >= 0 ), AQ60+camera!$B$3/2, 0)*-1+camera!$B$3 -> 1000 | AT60: =IF( AND( (camera!$B$4) > (AP60+camera!$B$4/2), 0 < (AP60+camera!$B$4/2), AN60 >= 0 ), AP60+camera!$B$4/2, 0) -> 0 | AX60: 102.0615 | AY60: -381.3872 | AZ60: 2346.264 | BB60: =MMULT( MMULT(AX60:AZ60-$B$2:$D$2, TRANSPOSE($A$16:$C$18)), TRANSPOSE($A$12:$C$14)) -> -1539.650767 | BC60: -5190.978389 | BD60: 3489.791948 | BF60: -743.737516 | BG60: -220.5934895 | BI60: 720.5934895 | BJ60: 0
U61: 31.8987 | V61: 105 | Z61: 'Mirach' | AB61: 1.162194 | AC61: 35.620558 | AE61: 35.620558 | AF61: 17.43291 | AH61: =camera!$B$5*COS(RADIANS(AE61))*COS(RADIANS(AF61)) -> 387.777211 | AI61: =camera!$B$5*COS(RADIANS(AE61))*SIN(RADIANS(AF61)) -> 121.7666646 | AJ61: =camera!$B$5*SIN(RADIANS(AE61)) -> 291.2073386 | AL61: =TRANSPOSE(MMULT(camera!$A$12:$C$14,MMULT(camera!$A$16:$C$18,TRANSPOSE(AH61:AJ61)))) -> -313.7161321 | AM61: -375.6889375 | AN61: 102.1763705 | AP61: =camera!$B$5*AM61/AN61 -> -1838.433562 | AQ61: =camera!$B$5*AL61/AN61 -> -1535.16968 | AS61: =IF( AND( (camera!$B$3) > (AQ61+camera!$B$3/2), 0 < (AQ61+camera!$B$3/2), AN61 >= 0 ), AQ61+camera!$B$3/2, 0)*-1+camera!$B$3 -> 1000 | AT61: =IF( AND( (camera!$B$4) > (AP61+camera!$B$4/2), 0 < (AP61+camera!$B$4/2), AN61 >= 0 ), AP61+camera!$B$4/2, 0) -> 0 | AX61: -129.1358 | AY61: -429.2697 | AZ61: 2346.264 | BB61: =MMULT( MMULT(AX61:AZ61-$B$2:$D$2, TRANSPOSE($A$16:$C$18)), TRANSPOSE($A$12:$C$14)) -> -1527.868657 | BC61: -4964.834099 | BD61: 3422.972284 | BF61: -725.2226556 | BG61: -223.1786486 | BI61: 723.1786486 | BJ61: 0
U62: 31.8987 | V62: 90 | Z62: 'Saiph' | AB62: 5.795941 | AC62: -9.669605 | AE62: -9.669605 | AF62: 86.939115 | AH62: =camera!$B$5*COS(RADIANS(AE62))*COS(RADIANS(AF62)) -> 26.31924288 | AI62: =camera!$B$5*COS(RADIANS(AE62))*SIN(RADIANS(AF62)) -> 492.193169 | AJ62: =camera!$B$5*SIN(RADIANS(AE62)) -> -83.98322363 | AL62: =TRANSPOSE(MMULT(camera!$A$12:$C$14,MMULT(camera!$A$16:$C$18,TRANSPOSE(AH62:AJ62)))) -> -2.834210751 | AM62: 16.678371 | AN62: 499.7137172 | AP62: =camera!$B$5*AM62/AN62 -> 16.68792594 | AQ62: =camera!$B$5*AL62/AN62 -> -2.835834452 | AS62: =IF( AND( (camera!$B$3) > (AQ62+camera!$B$3/2), 0 < (AQ62+camera!$B$3/2), AN62 >= 0 ), AQ62+camera!$B$3/2, 0)*-1+camera!$B$3 -> 502.8358345 | AT62: =IF( AND( (camera!$B$4) > (AP62+camera!$B$4/2), 0 < (AP62+camera!$B$4/2), AN62 >= 0 ), AP62+camera!$B$4/2, 0) -> 516.6879259 | AX62: -129.1358 | AY62: -116.1865 | AZ62: 2412.638 | BB62: =MMULT( MMULT(AX62:AZ62-$B$2:$D$2, TRANSPOSE($A$16:$C$18)), TRANSPOSE($A$12:$C$14)) -> -1647.393734 | BC62: -4937.547101 | BD62: 3718.600046 | BF62: -663.89865 | BG62: -221.5072492 | BI62: 721.5072492 | BJ62: 0
U63: 31.8987 | V63: 485 | Z63: 'Kochab' | AB63: 14.845105 | AC63: 74.155505 | AE63: 74.155505 | AF63: -137.323425 | AH63: =camera!$B$5*COS(RADIANS(AE63))*COS(RADIANS(AF63)) -> -100.3637551 | AI63: =camera!$B$5*COS(RADIANS(AE63))*SIN(RADIANS(AF63)) -> -92.53706318 | AJ63: =camera!$B$5*SIN(RADIANS(AE63)) -> 481.0031274 | AL63: =TRANSPOSE(MMULT(camera!$A$12:$C$14,MMULT(camera!$A$16:$C$18,TRANSPOSE(AH63:AJ63)))) -> -456.1689149 | AM63: 91.91670427 | AN63: -182.9241388 | AP63: =camera!$B$5*AM63/AN63 -> -251.2426869 | AQ63: =camera!$B$5*AL63/AN63 -> 1246.88004 | AS63: =IF( AND( (camera!$B$3) > (AQ63+camera!$B$3/2), 0 < (AQ63+camera!$B$3/2), AN63 >= 0 ), AQ63+camera!$B$3/2, 0)*-1+camera!$B$3 -> 1000 | AT63: =IF( AND( (camera!$B$4) > (AP63+camera!$B$4/2), 0 < (AP63+camera!$B$4/2), AN63 >= 0 ), AP63+camera!$B$4/2, 0) -> 0 | AX63: -17.3758 | AY63: -93.0403 | AZ63: 2412.638 | BB63: =MMULT( MMULT(AX63:AZ63-$B$2:$D$2, TRANSPOSE($A$16:$C$18)), TRANSPOSE($A$12:$C$14)) -> -1653.089159 | BC63: -5046.864496 | BD63: 3750.900408 | BF63: -672.7537319 | BG63: -220.3589778 | BI63: 720.3589778 | BJ63: 0
U64: 31.8987 | V64: 515 | Z64: '' | AB64: 22.711115 | AC64: -46.884577 | AE64: -46.884577 | AF64: -19.333275 | AH64: =camera!$B$5*COS(RADIANS(AE64))*COS(RADIANS(AF64)) -> 322.4643076 | AI64: =camera!$B$5*COS(RADIANS(AE64))*SIN(RADIANS(AF64)) -> -113.1356777 | AJ64: =camera!$B$5*SIN(RADIANS(AE64)) -> -364.9891625 | AL64: =TRANSPOSE(MMULT(camera!$A$12:$C$14,MMULT(camera!$A$16:$C$18,TRANSPOSE(AH64:AJ64)))) -> 374.1348877 | AM64: -331.0976575 | AN64: -19.93557075 | AP64: =camera!$B$5*AM64/AN64 -> 8304.193085 | AQ64: =camera!$B$5*AL64/AN64 -> -9383.601111 | AS64: =IF( AND( (camera!$B$3) > (AQ64+camera!$B$3/2), 0 < (AQ64+camera!$B$3/2), AN64 >= 0 ), AQ64+camera!$B$3/2, 0)*-1+camera!$B$3 -> 1000 | AT64: =IF( AND( (camera!$B$4) > (AP64+camera!$B$4/2), 0 < (AP64+camera!$B$4/2), AN64 >= 0 ), AP64+camera!$B$4/2, 0) -> 0 | AX64: 18.3502 | AY64: -179.2905 | AZ64: 2346.264 | BB64: =MMULT( MMULT(AX64:AZ64-$B$2:$D$2, TRANSPOSE($A$16:$C$18)), TRANSPOSE($A$12:$C$14)) -> -1573.344025 | BC64: -5089.971748 | BD64: 3680.87591 | BF64: -691.4076801 | BG64: -213.7186995 | BI64: 713.7186995 | BJ64: 0
U65: 31.8987 | V65: 500 | Z65: 'Rasalhague' | AB65: 17.582241 | AC65: 12.560035 | AE65: 12.560035 | AF65: -96.266385 | AH65: =camera!$B$5*COS(RADIANS(AE65))*COS(RADIANS(AF65)) -> -53.26950619 | AI65: =camera!$B$5*COS(RADIANS(AE65))*SIN(RADIANS(AF65)) -> -485.1184172 | AJ65: =camera!$B$5*SIN(RADIANS(AE65)) -> 108.7312331 | AL65: =TRANSPOSE(MMULT(camera!$A$12:$C$14,MMULT(camera!$A$16:$C$18,TRANSPOSE(AH65:AJ65)))) -> -22.35378665 | AM65: 10.78594367 | AN65: -499.3835917 | AP65: =camera!$B$5*AM65/AN65 -> -10.79925717 | AQ65: =camera!$B$5*AL65/AN65 -> 22.38137879 | AS65: =IF( AND( (camera!$B$3) > (AQ65+camera!$B$3/2), 0 < (AQ65+camera!$B$3/2), AN65 >= 0 ), AQ65+camera!$B$3/2, 0)*-1+camera!$B$3 -> 1000 | AT65: =IF( AND( (camera!$B$4) > (AP65+camera!$B$4/2), 0 < (AP65+camera!$B$4/2), AN65 >= 0 ), AP65+camera!$B$4/2, 0) -> 0 | AX65: -129.1358 | AY65: -209.8358 | AZ65: 2346.264 | BB65: =MMULT( MMULT(AX65:AZ65-$B$2:$D$2, TRANSPOSE($A$16:$C$18)), TRANSPOSE($A$12:$C$14)) -> -1565.827956 | BC65: -4945.709175 | BD65: 3638.250163 | BF65: -679.6823958 | BG65: -215.1897046 | BI65: 715.1897046 | BJ65: 0
U66: 33.3477 | V66: 60 | Z66: 'Algol' | AB66: 3.136148 | AC66: 40.955648 | AE66: 40.955648 | AF66: 47.04222 | AH66: =camera!$B$5*COS(RADIANS(AE66))*COS(RADIANS(AF66)) -> 257.3248764 | AI66: =camera!$B$5*COS(RADIANS(AE66))*SIN(RADIANS(AF66)) -> 276.3551401 | AJ66: =camera!$B$5*SIN(RADIANS(AE66)) -> 327.7373103 | AL66: =TRANSPOSE(MMULT(camera!$A$12:$C$14,MMULT(camera!$A$16:$C$18,TRANSPOSE(AH66:AJ66)))) -> -374.4586664 | AM66: -232.2597401 | AN66: 236.2966785 | AP66: =camera!$B$5*AM66/AN66 -> -491.4579027 | AQ66: =camera!$B$5*AL66/AN66 -> -792.3485611 | AS66: =IF( AND( (camera!$B$3) > (AQ66+camera!$B$3/2), 0 < (AQ66+camera!$B$3/2), AN66 >= 0 ), AQ66+camera!$B$3/2, 0)*-1+camera!$B$3 -> 1000 | AT66: =IF( AND( (camera!$B$4) > (AP66+camera!$B$4/2), 0 < (AP66+camera!$B$4/2), AN66 >= 0 ), AP66+camera!$B$4/2, 0) -> 8.54209735 | AX66: -129.1358 | AY66: -31.9495 | AZ66: 2632.0719 | BB66: =MMULT( MMULT(AX66:AZ66-$B$2:$D$2, TRANSPOSE($A$16:$C$18)), TRANSPOSE($A$12:$C$14)) -> -1878.065879 | BC66: -4930.205362 | BD66: 3763.137322 | BF66: -655.065832 | BG66: -249.5345928 | BI66: 749.5345928 | BJ66: 0
U67: 33.3477 | V67: 470 | Z67: 'Almaak' | AB67: 2.064984 | AC67: 42.329725 | AE67: =AC67 -> 42.329725 | AF67: =IF(AB67*15/1>180, (AB67*15/1)-360, AB67*15/1) -> 30.97476 | AH67: =camera!$B$5*COS(RADIANS(AE67))*COS(RADIANS(AF67)) -> 316.9279437 | AI67: =camera!$B$5*COS(RADIANS(AE67))*SIN(RADIANS(AF67)) -> 190.2395521 | AJ67: =camera!$B$5*SIN(RADIANS(AE67)) -> 336.6980714 | AL67: =TRANSPOSE(MMULT(camera!$A$12:$C$14,MMULT(camera!$A$16:$C$18,TRANSPOSE(AH67:AJ67)))) -> -369.2884412 | AM67: -299.1414677 | AN67: 155.3719071 | AP67: =camera!$B$5*AM67/AN67 -> -962.6626633 | AQ67: =camera!$B$5*AL67/AN67 -> -1188.401585 | AS67: =IF( AND( (camera!$B$3) > (AQ67+camera!$B$3/2), 0 < (AQ67+camera!$B$3/2), AN67 >= 0 ), AQ67+camera!$B$3/2, 0)*-1+camera!$B$3 -> 1000 | AT67: =IF( AND( (camera!$B$4) > (AP67+camera!$B$4/2), 0 < (AP67+camera!$B$4/2), AN67 >= 0 ), AP67+camera!$B$4/2, 0) -> 0 | AX67: -49.5111 | AY67: -15.4587 | AZ67: 2632.0719 | BB67: =MMULT( MMULT(AX67:AZ67-$B$2:$D$2, TRANSPOSE($A$16:$C$18)), TRANSPOSE($A$12:$C$14)) -> -1882.123654 | BC67: -5008.089798 | BD67: 3786.15011 | BF67: -661.3696832 | BG67: -248.5537551 | BI67: 748.5537551 | BJ67: 0
U68: 35 | V68: 120 | Z68: 'Denebola' | AB68: 11.817663 | AC68: 14.57206 | AE68: 14.57206 | AF68: 177.264945 | AH68: =camera!$B$5*COS(RADIANS(AE68))*COS(RADIANS(AF68)) -> -483.3647433 | AI68: =camera!$B$5*COS(RADIANS(AE68))*SIN(RADIANS(AF68)) -> 23.09130365 | AJ68: =camera!$B$5*SIN(RADIANS(AE68)) -> 125.7987149 | AL68: =TRANSPOSE(MMULT(camera!$A$12:$C$14,MMULT(camera!$A$16:$C$18,TRANSPOSE(AH68:AJ68)))) -> -120.5666014 | AM68: 483.5379342 | AN68: -40.67875121 | AP68: =camera!$B$5*AM68/AN68 -> -5943.372397 | AQ68: =camera!$B$5*AL68/AN68 -> 1481.935874 | AS68: =IF( AND( (camera!$B$3) > (AQ68+camera!$B$3/2), 0 < (AQ68+camera!$B$3/2), AN68 >= 0 ), AQ68+camera!$B$3/2, 0)*-1+camera!$B$3 -> 1000 | AT68: =IF( AND( (camera!$B$4) > (AP68+camera!$B$4/2), 0 < (AP68+camera!$B$4/2), AN68 >= 0 ), AP68+camera!$B$4/2, 0) -> 0 | AX68: -40.8425 | AY68: -36.3865 | AZ68: 2513.6864 | BB68: =MMULT( MMULT(AX68:AZ68-$B$2:$D$2, TRANSPOSE($A$16:$C$18)), TRANSPOSE($A$12:$C$14)) -> -1762.047645 | BC68: -5018.54939 | BD68: 3786.920144 | BF68: =$B$5*BC68/BD68 -> -662.6162156 | BG68: =$B$5*BB68/BD68 -> -232.6491684 | BI68: =IF( AND( ($B$3) > (BG68+$B$3/2), 0 < (BG68+$B$3/2), BD68 >= 0 ), BG68+$B$3/2, 0)*-1+$B$3 -> 732.6491684 | BJ68: =IF( AND( ($B$4) > (BF68+$B$4/2), 0 < (BF68+$B$4/2), BD68 >= 0 ), BF68+$B$4/2, 0) -> 0
U69: 35 | V69: 530 | Z69: 'Cih' | AB69: 0.945143 | AC69: 60.71674 | AE69: 60.71674 | AF69: 14.177145 | AH69: =camera!$B$5*COS(RADIANS(AE69))*COS(RADIANS(AF69)) -> 237.1151702 | AI69: =camera!$B$5*COS(RADIANS(AE69))*SIN(RADIANS(AF69)) -> 59.89873208 | AJ69: =camera!$B$5*SIN(RADIANS(AE69)) -> 436.1061086 | AL69: =TRANSPOSE(MMULT(camera!$A$12:$C$14,MMULT(camera!$A$16:$C$18,TRANSPOSE(AH69:AJ69)))) -> -443.4310068 | AM69: -230.9923569 | AN69: 3.387221356 | AP69: =camera!$B$5*AM69/AN69 -> -34097.61759 | AQ69: =camera!$B$5*AL69/AN69 -> -65456.45534 | AS69: =IF( AND( (camera!$B$3) > (AQ69+camera!$B$3/2), 0 < (AQ69+camera!$B$3/2), AN69 >= 0 ), AQ69+camera!$B$3/2, 0)*-1+camera!$B$3 -> 1000 | AT69: =IF( AND( (camera!$B$4) > (AP69+camera!$B$4/2), 0 < (AP69+camera!$B$4/2), AN69 >= 0 ), AP69+camera!$B$4/2, 0) -> 0 | AX69: -129.1358 | AY69: -54.6726 | AZ69: 2513.6864 | BB69: =MMULT( MMULT(AX69:AZ69-$B$2:$D$2, TRANSPOSE($A$16:$C$18)), TRANSPOSE($A$12:$C$14)) -> -1757.548111 | BC69: -4932.185811 | BD69: 3761.402018 | BF69: -655.6313027 | BG69: -233.629389 | BI69: 733.629389 | BJ69: 0
U70: 36.8987 | V70: 105 | Z70: '' | AB70: 12.691971 | AC70: -48.959888 | AE70: -48.959888 | AF70: -169.620435 | AH70: =camera!$B$5*COS(RADIANS(AE70))*COS(RADIANS(AF70)) -> -322.92135 | AI70: =camera!$B$5*COS(RADIANS(AE70))*SIN(RADIANS(AF70)) -> -59.14811405 | AJ70: =camera!$B$5*SIN(RADIANS(AE70)) -> -377.1250486 | AL70: =TRANSPOSE(MMULT(camera!$A$12:$C$14,MMULT(camera!$A$16:$C$18,TRANSPOSE(AH70:AJ70)))) -> 386.5147823 | AM70: 316.537439 | AN70: -20.25765951 | AP70: =camera!$B$5*AM70/AN70 -> -7812.78407 | AQ70: =camera!$B$5*AL70/AN70 -> -9539.966406 | AS70: =IF( AND( (camera!$B$3) > (AQ70+camera!$B$3/2), 0 < (AQ70+camera!$B$3/2), AN70 >= 0 ), AQ70+camera!$B$3/2, 0)*-1+camera!$B$3 -> 1000 | AT70: =IF( AND( (camera!$B$4) > (AP70+camera!$B$4/2), 0 < (AP70+camera!$B$4/2), AN70 >= 0 ), AP70+camera!$B$4/2, 0) -> 0 | AX70: -129.1358 | AY70: -116.1865 | AZ70: 2851.5058 | BB70: =MMULT( MMULT(AX70:AZ70-$B$2:$D$2, TRANSPOSE($A$16:$C$18)), TRANSPOSE($A$12:$C$14)) -> -2079.594146 | BC70: -4937.547101 | BD70: 3642.391452 | BF70: -677.7891895 | BG70: -285.4709843 | BI70: 785.4709843 | BJ70: 0
U71: 36.8987 | V71: 90 | Z71: 'Naos' | AB71: 8.059737 | AC71: -40.003148 | AE71: -40.003148 | AF71: 120.896055 | AH71: =camera!$B$5*COS(RADIANS(AE71))*COS(RADIANS(AF71)) -> -196.6660141 | AI71: =camera!$B$5*COS(RADIANS(AE71))*SIN(RADIANS(AF71)) -> 328.6563158 | AJ71: =camera!$B$5*SIN(RADIANS(AE71)) -> -321.4148487 | AL71: =TRANSPOSE(MMULT(camera!$A$12:$C$14,MMULT(camera!$A$16:$C$18,TRANSPOSE(AH71:AJ71)))) -> 262.6548646 | AM71: 224.5619258 | AN71: 361.3645854 | AP71: =camera!$B$5*AM71/AN71 -> 310.7137983 | AQ71: =camera!$B$5*AL71/AN71 -> 363.4208708 | AS71: =IF( AND( (camera!$B$3) > (AQ71+camera!$B$3/2), 0 < (AQ71+camera!$B$3/2), AN71 >= 0 ), AQ71+camera!$B$3/2, 0)*-1+camera!$B$3 -> 136.5791292 | AT71: =IF( AND( (camera!$B$4) > (AP71+camera!$B$4/2), 0 < (AP71+camera!$B$4/2), AN71 >= 0 ), AP71+camera!$B$4/2, 0) -> 810.7137983 | AX71: -17.3758 | AY71: -93.0403 | AZ71: 2851.5058 | BB71: =MMULT( MMULT(AX71:AZ71-$B$2:$D$2, TRANSPOSE($A$16:$C$18)), TRANSPOSE($A$12:$C$14)) -> -2085.289571 | BC71: -5046.864496 | BD71: 3674.691815 | BF71: -686.7058178 | BG71: -283.736661 | BI71: 783.736661 | BJ71: 0
U72: 36.8987 | V72: 75 | Z72: 'Tureis' | AB72: 9.284838 | AC72: -59.275229 | AE72: -59.275229 | AF72: 139.27257 | AH72: =camera!$B$5*COS(RADIANS(AE72))*COS(RADIANS(AF72)) -> -193.5911833 | AI72: =camera!$B$5*COS(RADIANS(AE72))*SIN(RADIANS(AF72)) -> 166.6760021 | AJ72: =camera!$B$5*SIN(RADIANS(AE72)) -> -429.8157327 | AL72: =TRANSPOSE(MMULT(camera!$A$12:$C$14,MMULT(camera!$A$16:$C$18,TRANSPOSE(AH72:AJ72)))) -> 397.3829121 | AM72: 207.3812811 | AN72: 221.5396701 | AP72: =camera!$B$5*AM72/AN72 -> 468.045477 | AQ72: =camera!$B$5*AL72/AN72 -> 896.8662629 | AS72: =IF( AND( (camera!$B$3) > (AQ72+camera!$B$3/2), 0 < (AQ72+camera!$B$3/2), AN72 >= 0 ), AQ72+camera!$B$3/2, 0)*-1+camera!$B$3 -> 1000 | AT72: =IF( AND( (camera!$B$4) > (AP72+camera!$B$4/2), 0 < (AP72+camera!$B$4/2), AN72 >= 0 ), AP72+camera!$B$4/2, 0) -> 968.045477 | AX72: -40.8425 | AY72: -36.3865 | AZ72: 2750.4574 | BB72: =MMULT( MMULT(AX72:AZ72-$B$2:$D$2, TRANSPOSE($A$16:$C$18)), TRANSPOSE($A$12:$C$14)) -> -1995.221562 | BC72: -5018.54939 | BD72: 3745.805291 | BF72: -669.8892493 | BG72: -266.3274525 | BI72: 766.3274525 | BJ72: 0
U73: 36.8987 | V73: 515 | Z73: 'Alphekka' | AB73: 15.578128 | AC73: 26.714693 | AE73: 26.714693 | AF73: -126.32808 | AH73: =camera!$B$5*COS(RADIANS(AE73))*COS(RADIANS(AF73)) -> -264.5860777 | AI73: =camera!$B$5*COS(RADIANS(AE73))*SIN(RADIANS(AF73)) -> -359.8205639 | AJ73: =camera!$B$5*SIN(RADIANS(AE73)) -> 224.7740405 | AL73: =TRANSPOSE(MMULT(camera!$A$12:$C$14,MMULT(camera!$A$16:$C$18,TRANSPOSE(AH73:AJ73)))) -> -155.1104351 | AM73: 232.2188193 | AN73: -414.7471192 | AP73: =camera!$B$5*AM73/AN73 -> -279.9522992 | AQ73: =camera!$B$5*AL73/AN73 -> 186.9939874 | AS73: =IF( AND( (camera!$B$3) > (AQ73+camera!$B$3/2), 0 < (AQ73+camera!$B$3/2), AN73 >= 0 ), AQ73+camera!$B$3/2, 0)*-1+camera!$B$3 -> 1000 | AT73: =IF( AND( (camera!$B$4) > (AP73+camera!$B$4/2), 0 < (AP73+camera!$B$4/2), AN73 >= 0 ), AP73+camera!$B$4/2, 0) -> 0 | AX73: -129.1358 | AY73: -54.6726 | AZ73: 2750.4574 | BB73: =MMULT( MMULT(AX73:AZ73-$B$2:$D$2, TRANSPOSE($A$16:$C$18)), TRANSPOSE($A$12:$C$14)) -> -1990.722027 | BC73: -4932.185811 | BD73: 3720.287166 | BF73: -662.8770295 | BG73: -267.5495115 | BI73: 767.5495115 | BJ73: 0
U74: 36.8987 | V74: 500 | Z74: '' | AB74: 9.133268 | AC74: -43.432589 | AE74: -43.432589 | AF74: 136.99902 | AH74: =camera!$B$5*COS(RADIANS(AE74))*COS(RADIANS(AF74)) -> -265.5443506 | AI74: =camera!$B$5*COS(RADIANS(AE74))*SIN(RADIANS(AF74)) -> 247.6326046 | AJ74: =camera!$B$5*SIN(RADIANS(AE74)) -> -343.7503323 | AL74: =TRANSPOSE(MMULT(camera!$A$12:$C$14,MMULT(camera!$A$16:$C$18,TRANSPOSE(AH74:AJ74)))) -> 299.7095374 | AM74: 286.1164778 | AN74: 279.8420167 | AP74: =camera!$B$5*AM74/AN74 -> 511.2107201 | AQ74: =camera!$B$5*AL74/AN74 -> 535.4977442 | AS74: =IF( AND( (camera!$B$3) > (AQ74+camera!$B$3/2), 0 < (AQ74+camera!$B$3/2), AN74 >= 0 ), AQ74+camera!$B$3/2, 0)*-1+camera!$B$3 -> 1000 | AT74: =IF( AND( (camera!$B$4) > (AP74+camera!$B$4/2), 0 < (AP74+camera!$B$4/2), AN74 >= 0 ), AP74+camera!$B$4/2, 0) -> 0 | AX74: -129.1358 | AY74: -319.5528 | AZ74: 2942.3983 | BB74: =MMULT( MMULT(AX74:AZ74-$B$2:$D$2, TRANSPOSE($A$16:$C$18)), TRANSPOSE($A$12:$C$14)) -> -2133.925978 | BC74: -4955.271641 | BD74: 3427.09354 | BF74: -722.9554116 | BG74: -311.3317383 | BI74: 811.3317383 | BJ74: 0
U75: 36.8987 | V75: 485 | Z75: 'Mizar' | AB75: 13.398747 | AC75: 54.925362 | AE75: 54.925362 | AF75: -159.018795 | AH75: =camera!$B$5*COS(RADIANS(AE75))*COS(RADIANS(AF75)) -> -268.2715101 | AI75: =camera!$B$5*COS(RADIANS(AE75))*SIN(RADIANS(AF75)) -> -102.8788274 | AJ75: =camera!$B$5*SIN(RADIANS(AE75)) -> 409.2020818 | AL75: =TRANSPOSE(MMULT(camera!$A$12:$C$14,MMULT(camera!$A$16:$C$18,TRANSPOSE(AH75:AJ75)))) -> -381.1285045 | AM75: 258.2841754 | AN75: -195.0137119 | AP75: =camera!$B$5*AM75/AN75 -> -662.2205508 | AQ75: =camera!$B$5*AL75/AN75 -> 977.1838626 | AS75: =IF( AND( (camera!$B$3) > (AQ75+camera!$B$3/2), 0 < (AQ75+camera!$B$3/2), AN75 >= 0 ), AQ75+camera!$B$3/2, 0)*-1+camera!$B$3 -> 1000 | AT75: =IF( AND( (camera!$B$4) > (AP75+camera!$B$4/2), 0 < (AP75+camera!$B$4/2), AN75 >= 0 ), AP75+camera!$B$4/2, 0) -> 0 | AX75: 60.2058 | AY75: -280.3388 | AZ75: 2942.3983 | BB75: =MMULT( MMULT(AX75:AZ75-$B$2:$D$2, TRANSPOSE($A$16:$C$18)), TRANSPOSE($A$12:$C$14)) -> -2143.575084 | BC75: -5140.475014 | BD75: 3481.816339 | BF75: -738.1887087 | BG75: -307.8242612 | BI75: 807.8242612 | BJ75: 0
U76: 37.9959 | V76: 124.3767 | Z76: 'Sadr' | AB76: 20.370473 | AC76: 40.256679 | AE76: 40.256679 | AF76: -54.442905 | AH76: =camera!$B$5*COS(RADIANS(AE76))*COS(RADIANS(AF76)) -> 221.8932554 | AI76: =camera!$B$5*COS(RADIANS(AE76))*SIN(RADIANS(AF76)) -> -310.4280761 | AJ76: =camera!$B$5*SIN(RADIANS(AE76)) -> 323.1064728 | AL76: =TRANSPOSE(MMULT(camera!$A$12:$C$14,MMULT(camera!$A$16:$C$18,TRANSPOSE(AH76:AJ76)))) -> -267.8558449 | AM76: -248.1044741 | AN76: -341.6100354 | AP76: =camera!$B$5*AM76/AN76 -> 363.1399087 | AQ76: =camera!$B$5*AL76/AN76 -> 392.0491454 | AS76: =IF( AND( (camera!$B$3) > (AQ76+camera!$B$3/2), 0 < (AQ76+camera!$B$3/2), AN76 >= 0 ), AQ76+camera!$B$3/2, 0)*-1+camera!$B$3 -> 1000 | AT76: =IF( AND( (camera!$B$4) > (AP76+camera!$B$4/2), 0 < (AP76+camera!$B$4/2), AN76 >= 0 ), AP76+camera!$B$4/2, 0) -> 0 | AX76: 18.3502 | AY76: -179.2905 | AZ76: 2917.8799 | BB76: =MMULT( MMULT(AX76:AZ76-$B$2:$D$2, TRANSPOSE($A$16:$C$18)), TRANSPOSE($A$12:$C$14)) -> -2136.275795 | BC76: -5089.971748 | BD76: 3581.615851 | BF76: -710.5691899 | BG76: -298.2279346 | BI76: 798.2279346 | BJ76: 0
U77: 37.9959 | V77: 534.3767 | Z77: 'Shedir' | AB77: 0.675116 | AC77: 56.537331 | AE77: 56.537331 | AF77: 10.12674 | AH77: =camera!$B$5*COS(RADIANS(AE77))*COS(RADIANS(AF77)) -> 271.4017585 | AI77: =camera!$B$5*COS(RADIANS(AE77))*SIN(RADIANS(AF77)) -> 48.47470966 | AJ77: =camera!$B$5*SIN(RADIANS(AE77)) -> 417.1226295 | AL77: =TRANSPOSE(MMULT(camera!$A$12:$C$14,MMULT(camera!$A$16:$C$18,TRANSPOSE(AH77:AJ77)))) -> -423.2786257 | AM77: -266.1441435 | AN77: -1.581112045 | AP77: =camera!$B$5*AM77/AN77 -> 84163.59372 | AQ77: =camera!$B$5*AL77/AN77 -> 133854.7218 | AS77: =IF( AND( (camera!$B$3) > (AQ77+camera!$B$3/2), 0 < (AQ77+camera!$B$3/2), AN77 >= 0 ), AQ77+camera!$B$3/2, 0)*-1+camera!$B$3 -> 1000 | AT77: =IF( AND( (camera!$B$4) > (AP77+camera!$B$4/2), 0 < (AP77+camera!$B$4/2), AN77 >= 0 ), AP77+camera!$B$4/2, 0) -> 0 | AX77: -129.1358 | AY77: -209.8358 | AZ77: 2917.8799 | BB77: =MMULT( MMULT(AX77:AZ77-$B$2:$D$2, TRANSPOSE($A$16:$C$18)), TRANSPOSE($A$12:$C$14)) -> -2128.759726 | BC77: -4945.709175 | BD77: 3538.990104 | BF77: -698.7458328 | BG77: -300.7580783 | BI77: 800.7580783 | BJ77: 0
U78: 38.3477 | V78: 60 | Z78: 'Etamin' | AB78: 17.943437 | AC78: 51.488895 | AE78: 51.488895 | AF78: -90.848445 | AH78: =camera!$B$5*COS(RADIANS(AE78))*COS(RADIANS(AF78)) -> -4.610102294 | AI78: =camera!$B$5*COS(RADIANS(AE78))*SIN(RADIANS(AF78)) -> -311.2990204 | AJ78: =camera!$B$5*SIN(RADIANS(AE78)) -> 391.2437436 | AL78: =TRANSPOSE(MMULT(camera!$A$12:$C$14,MMULT(camera!$A$16:$C$18,TRANSPOSE(AH78:AJ78)))) -> -331.3792944 | AM78: -22.53893787 | AN78: -373.7375543 | AP78: =camera!$B$5*AM78/AN78 -> 30.15342934 | AQ78: =camera!$B$5*AL78/AN78 -> 443.3315445 | AS78: =IF( AND( (camera!$B$3) > (AQ78+camera!$B$3/2), 0 < (AQ78+camera!$B$3/2), AN78 >= 0 ), AQ78+camera!$B$3/2, 0)*-1+camera!$B$3 -> 1000 | AT78: =IF( AND( (camera!$B$4) > (AP78+camera!$B$4/2), 0 < (AP78+camera!$B$4/2), AN78 >= 0 ), AP78+camera!$B$4/2, 0) -> 0 | AX78: -129.1358 | AY78: -522.919 | AZ78: 2851.5058 | BB78: =MMULT( MMULT(AX78:AZ78-$B$2:$D$2, TRANSPOSE($A$16:$C$18)), TRANSPOSE($A$12:$C$14)) -> -2009.234551 | BC78: -4972.996174 | BD78: 3243.362359 | BF78: -766.6420867 | BG78: -309.7456171 | BI78: 809.7456171 | BJ78: 0
U79: 38.3477 | V79: 470 | Z79: 'Mintaka' | AB79: 5.533445 | AC79: -0.299092 | AE79: -0.299092 | AF79: 83.001675 | AH79: =camera!$B$5*COS(RADIANS(AE79))*COS(RADIANS(AF79)) -> 60.91933347 | AI79: =camera!$B$5*COS(RADIANS(AE79))*SIN(RADIANS(AF79)) -> 496.2680953 | AJ79: =camera!$B$5*SIN(RADIANS(AE79)) -> -2.610058229 | AL79: =TRANSPOSE(MMULT(camera!$A$12:$C$14,MMULT(camera!$A$16:$C$18,TRANSPOSE(AH79:AJ79)))) -> -84.19969866 | AM79: -17.43490256 | AN79: 492.5509465 | AP79: =camera!$B$5*AM79/AN79 -> -17.69857787 | AQ79: =camera!$B$5*AL79/AN79 -> -85.47308584 | AS79: =IF( AND( (camera!$B$3) > (AQ79+camera!$B$3/2), 0 < (AQ79+camera!$B$3/2), AN79 >= 0 ), AQ79+camera!$B$3/2, 0)*-1+camera!$B$3 -> 585.4730858 | AT79: =IF( AND( (camera!$B$4) > (AP79+camera!$B$4/2), 0 < (AP79+camera!$B$4/2), AN79 >= 0 ), AP79+camera!$B$4/2, 0) -> 482.3014221 | AX79: 137.7874 | AY79: -467.6374 | AZ79: 2851.5058 | BB79: =MMULT( MMULT(AX79:AZ79-$B$2:$D$2, TRANSPOSE($A$16:$C$18)), TRANSPOSE($A$12:$C$14)) -> -2022.837303 | BC79: -5234.085541 | BD79: 3320.507399 | BF79: -788.1454417 | BG79: -304.5976201 | BI79: 804.5976201 | BJ79: 0
U80: 40 | V80: 120 | Z80: 'Caph' | AB80: 0.152887 | AC80: 59.14978 | AE80: 59.14978 | AF80: 2.293305 | AH80: =camera!$B$5*COS(RADIANS(AE80))*COS(RADIANS(AF80)) -> 256.1924204 | AI80: =camera!$B$5*COS(RADIANS(AE80))*SIN(RADIANS(AF80)) -> 10.25976635 | AJ80: =camera!$B$5*SIN(RADIANS(AE80)) -> 429.2553796 | AL80: =TRANSPOSE(MMULT(camera!$A$12:$C$14,MMULT(camera!$A$16:$C$18,TRANSPOSE(AH80:AJ80)))) -> -428.3861639 | AM80: -254.3233333 | AN80: -42.48454689 | AP80: =camera!$B$5*AM80/AN80 -> 2993.127524 | AQ80: =camera!$B$5*AL80/AN80 -> 5041.670386 | AS80: =IF( AND( (camera!$B$3) > (AQ80+camera!$B$3/2), 0 < (AQ80+camera!$B$3/2), AN80 >= 0 ), AQ80+camera!$B$3/2, 0)*-1+camera!$B$3 -> 1000 | AT80: =IF( AND( (camera!$B$4) > (AP80+camera!$B$4/2), 0 < (AP80+camera!$B$4/2), AN80 >= 0 ), AP80+camera!$B$4/2, 0) -> 0 | AX80: 102.0615 | AY80: -381.3872 | AZ80: 2917.8799 | BB80: =MMULT( MMULT(AX80:AZ80-$B$2:$D$2, TRANSPOSE($A$16:$C$18)), TRANSPOSE($A$12:$C$14)) -> -2102.582537 | BC80: -5190.978389 | BD80: 3390.531888 | BF80: -765.5109227 | BG80: -310.0667692 | BI80: 810.0667692 | BJ80: 0
U81: 40 | V81: 530 | Z81: '' | AB81: 13.664796 | AC81: -53.466394 | AE81: -53.466394 | AF81: -155.02806 | AH81: =camera!$B$5*COS(RADIANS(AE81))*COS(RADIANS(AF81)) -> -269.8214456 | AI81: =camera!$B$5*COS(RADIANS(AE81))*SIN(RADIANS(AF81)) -> -125.6589676 | AJ81: =camera!$B$5*SIN(RADIANS(AE81)) -> -401.7539189 | AL81: =TRANSPOSE(MMULT(camera!$A$12:$C$14,MMULT(camera!$A$16:$C$18,TRANSPOSE(AH81:AJ81)))) -> 421.4713868 | AM81: 257.8427929 | AN81: -76.67440401 | AP81: =camera!$B$5*AM81/AN81 -> -1681.413741 | AQ81: =camera!$B$5*AL81/AN81 -> -2748.449057 | AS81: =IF( AND( (camera!$B$3) > (AQ81+camera!$B$3/2), 0 < (AQ81+camera!$B$3/2), AN81 >= 0 ), AQ81+camera!$B$3/2, 0)*-1+camera!$B$3 -> 1000 | AT81: =IF( AND( (camera!$B$4) > (AP81+camera!$B$4/2), 0 < (AP81+camera!$B$4/2), AN81 >= 0 ), AP81+camera!$B$4/2, 0) -> 0 | AX81: -129.1358 | AY81: -429.2697 | AZ81: 2917.8799 | BB81: =MMULT( MMULT(AX81:AZ81-$B$2:$D$2, TRANSPOSE($A$16:$C$18)), TRANSPOSE($A$12:$C$14)) -> -2090.800427 | BC81: -4964.834099 | BD81: 3323.712224 | BF81: -746.8808615 | BG81: -314.5278962 | BI81: 814.5278962 | BJ81: 0
U82: 40.4134 | V82: 128.7535 | Z82: 'Dschubba' | AB82: 16.005557 | AC82: -22.62171 | AE82: -22.62171 | AF82: -119.916645 | AH82: =camera!$B$5*COS(RADIANS(AE82))*COS(RADIANS(AF82)) -> -230.184401 | AI82: =camera!$B$5*COS(RADIANS(AE82))*SIN(RADIANS(AF82)) -> -400.0339691 | AJ82: =camera!$B$5*SIN(RADIANS(AE82)) -> -192.3225548 | AL82: =TRANSPOSE(MMULT(camera!$A$12:$C$14,MMULT(camera!$A$16:$C$18,TRANSPOSE(AH82:AJ82)))) -> 262.0852879 | AM82: 194.4432221 | AN82: -378.8180767 | AP82: =camera!$B$5*AM82/AN82 -> -256.6445929 | AQ82: =camera!$B$5*AL82/AN82 -> -345.925002 | AS82: =IF( AND( (camera!$B$3) > (AQ82+camera!$B$3/2), 0 < (AQ82+camera!$B$3/2), AN82 >= 0 ), AQ82+camera!$B$3/2, 0)*-1+camera!$B$3 -> 1000 | AT82: =IF( AND( (camera!$B$4) > (AP82+camera!$B$4/2), 0 < (AP82+camera!$B$4/2), AN82 >= 0 ), AP82+camera!$B$4/2, 0) -> 0 | AX82: 161.2542 | AY82: -524.2912 | AZ82: 2750.4574 | BB82: =MMULT( MMULT(AX82:AZ82-$B$2:$D$2, TRANSPOSE($A$16:$C$18)), TRANSPOSE($A$12:$C$14)) -> -1913.878819 | BC82: -5262.400747 | BD82: 3284.487672 | BF82: -801.0991778 | BG82: -291.3511953 | BI82: 791.3511953 | BJ82: 0
U83: 40.4134 | V83: 538.7535 | Z83: '' | AB83: 16.83608 | AC83: -34.293232 | AE83: -34.293232 | AF83: -107.4588 | AH83: =camera!$B$5*COS(RADIANS(AE83))*COS(RADIANS(AF83)) -> -123.9329598 | AI83: =camera!$B$5*COS(RADIANS(AE83))*SIN(RADIANS(AF83)) -> -394.052932 | AJ83: =camera!$B$5*SIN(RADIANS(AE83)) -> -281.7142315 | AL83: =TRANSPOSE(MMULT(camera!$A$12:$C$14,MMULT(camera!$A$16:$C$18,TRANSPOSE(AH83:AJ83)))) -> 347.4762046 | AM83: 89.11738146 | AN83: -348.3078805 | AP83: =camera!$B$5*AM83/AN83 -> -127.9290341 | AQ83: =camera!$B$5*AL83/AN83 -> -498.8061196 | AS83: =IF( AND( (camera!$B$3) > (AQ83+camera!$B$3/2), 0 < (AQ83+camera!$B$3/2), AN83 >= 0 ), AQ83+camera!$B$3/2, 0)*-1+camera!$B$3 -> 1000 | AT83: =IF( AND( (camera!$B$4) > (AP83+camera!$B$4/2), 0 < (AP83+camera!$B$4/2), AN83 >= 0 ), AP83+camera!$B$4/2, 0) -> 0 | AX83: -129.1358 | AY83: -584.4329 | AZ83: 2750.4574 | BB83: =MMULT( MMULT(AX83:AZ83-$B$2:$D$2, TRANSPOSE($A$16:$C$18)), TRANSPOSE($A$12:$C$14)) -> -1899.080174 | BC83: -4978.357463 | BD83: 3200.560387 | BF83: -777.7321565 | BG83: -296.6793224 | BI83: 796.6793224 | BJ83: 0
U84: 41.8987 | V84: 105 | Z84: '' | AB84: 14.698823 | AC84: -47.3882 | AE84: -47.3882 | AF84: -139.517655 | AH84: =camera!$B$5*COS(RADIANS(AE84))*COS(RADIANS(AF84)) -> -257.4756263 | AI84: =camera!$B$5*COS(RADIANS(AE84))*SIN(RADIANS(AF84)) -> -219.7677841 | AJ84: =camera!$B$5*SIN(RADIANS(AE84)) -> -367.9788348 | AL84: =TRANSPOSE(MMULT(camera!$A$12:$C$14,MMULT(camera!$A$16:$C$18,TRANSPOSE(AH84:AJ84)))) -> 404.3022141 | AM84: 237.3418294 | AN84: -173.806144 | AP84: =camera!$B$5*AM84/AN84 -> -682.7774437 | AQ84: =camera!$B$5*AL84/AN84 -> -1163.083781 | AS84: =IF( AND( (camera!$B$3) > (AQ84+camera!$B$3/2), 0 < (AQ84+camera!$B$3/2), AN84 >= 0 ), AQ84+camera!$B$3/2, 0)*-1+camera!$B$3 -> 1000 | AT84: =IF( AND( (camera!$B$4) > (AP84+camera!$B$4/2), 0 < (AP84+camera!$B$4/2), AN84 >= 0 ), AP84+camera!$B$4/2, 0) -> 0 | AX84: -623.8922 | AY84: -317.9841 | AZ84: 2412.638 | BB84: =MMULT( MMULT(AX84:AZ84-$B$2:$D$2, TRANSPOSE($A$16:$C$18)), TRANSPOSE($A$12:$C$14)) -> -1604.997434 | BC84: -4462.261218 | BD84: 3478.158681 | BF84: -641.4688959 | BG84: -230.7251597 | BI84: 730.7251597 | BJ84: 0
U85: 41.8987 | V85: 90 | Z85: '' | AB85: 14.591786 | AC85: -42.157824 | AE85: -42.157824 | AF85: -141.12321 | AH85: =camera!$B$5*COS(RADIANS(AE85))*COS(RADIANS(AF85)) -> -288.5496407 | AI85: =camera!$B$5*COS(RADIANS(AE85))*SIN(RADIANS(AF85)) -> -232.6372783 | AJ85: =camera!$B$5*SIN(RADIANS(AE85)) -> -335.5875468 | AL85: =TRANSPOSE(MMULT(camera!$A$12:$C$14,MMULT(camera!$A$16:$C$18,TRANSPOSE(AH85:AJ85)))) -> 375.0995705 | AM85: 267.1759474 | AN85: -194.7237154 | AP85: =camera!$B$5*AM85/AN85 -> -686.0385414 | AQ85: =camera!$B$5*AL85/AN85 -> -963.1584157 | AS85: =IF( AND( (camera!$B$3) > (AQ85+camera!$B$3/2), 0 < (AQ85+camera!$B$3/2), AN85 >= 0 ), AQ85+camera!$B$3/2, 0)*-1+camera!$B$3 -> 1000 | AT85: =IF( AND( (camera!$B$4) > (AP85+camera!$B$4/2), 0 < (AP85+camera!$B$4/2), AN85 >= 0 ), AP85+camera!$B$4/2, 0) -> 0 | AX85: -396.059 | AY85: -467.6374 | AZ85: 2412.638 | BB85: =MMULT( MMULT(AX85:AZ85-$B$2:$D$2, TRANSPOSE($A$16:$C$18)), TRANSPOSE($A$12:$C$14)) -> -1582.557427 | BC85: -4702.270588 | BD85: 3350.895075 | BF85: -701.6439612 | BG85: -236.1395077 | BI85: 736.1395077 | BJ85: 0
U86: 41.8987 | V86: 75 | Z86: 'Merak' | AB86: 11.030677 | AC86: 56.382427 | AE86: 56.382427 | AF86: 165.460155 | AH86: =camera!$B$5*COS(RADIANS(AE86))*COS(RADIANS(AF86)) -> -267.9577459 | AI86: =camera!$B$5*COS(RADIANS(AE86))*SIN(RADIANS(AF86)) -> 69.49742896 | AJ86: =camera!$B$5*SIN(RADIANS(AE86)) -> 416.3757363 | AL86: =TRANSPOSE(MMULT(camera!$A$12:$C$14,MMULT(camera!$A$16:$C$18,TRANSPOSE(AH86:AJ86)))) -> -418.0168431 | AM86: 272.9951858 | AN86: -27.12097773 | AP86: =camera!$B$5*AM86/AN86 -> -5032.915636 | AQ86: =camera!$B$5*AL86/AN86 -> 7706.522368 | AS86: =IF( AND( (camera!$B$3) > (AQ86+camera!$B$3/2), 0 < (AQ86+camera!$B$3/2), AN86 >= 0 ), AQ86+camera!$B$3/2, 0)*-1+camera!$B$3 -> 1000 | AT86: =IF( AND( (camera!$B$4) > (AP86+camera!$B$4/2), 0 < (AP86+camera!$B$4/2), AN86 >= 0 ), AP86+camera!$B$4/2, 0) -> 0 | AX86: -419.5258 | AY86: -524.2912 | AZ86: 2513.6864 | BB86: =MMULT( MMULT(AX86:AZ86-$B$2:$D$2, TRANSPOSE($A$16:$C$18)), TRANSPOSE($A$12:$C$14)) -> -1671.915124 | BC86: -4683.83079 | BD86: 3275.753218 | BF86: -714.9242446 | BG86: -255.195525 | BI86: 755.195525 | BJ86: 0
U87: 41.8987 | V87: 515 | Z87: 'Izar' | AB87: 14.749784 | AC87: 27.074222 | AE87: 27.074222 | AF87: -138.75324 | AH87: =camera!$B$5*COS(RADIANS(AE87))*COS(RADIANS(AF87)) -> -334.7423236 | AI87: =camera!$B$5*COS(RADIANS(AE87))*SIN(RADIANS(AF87)) -> -293.5276532 | AJ87: =camera!$B$5*SIN(RADIANS(AE87)) -> 227.5721723 | AL87: =TRANSPOSE(MMULT(camera!$A$12:$C$14,MMULT(camera!$A$16:$C$18,TRANSPOSE(AH87:AJ87)))) -> -168.2721197 | AM87: 307.8859074 | AN87: -356.2172957 | AP87: =camera!$B$5*AM87/AN87 -> -432.1602447 | AQ87: =camera!$B$5*AL87/AN87 -> 236.1930789 | AS87: =IF( AND( (camera!$B$3) > (AQ87+camera!$B$3/2), 0 < (AQ87+camera!$B$3/2), AN87 >= 0 ), AQ87+camera!$B$3/2, 0)*-1+camera!$B$3 -> 1000 | AT87: =IF( AND( (camera!$B$4) > (AP87+camera!$B$4/2), 0 < (AP87+camera!$B$4/2), AN87 >= 0 ), AP87+camera!$B$4/2, 0) -> 0 | AX87: -667.3892 | AY87: -361.4811 | AZ87: 2513.6864 | BB87: =MMULT( MMULT(AX87:AZ87-$B$2:$D$2, TRANSPOSE($A$16:$C$18)), TRANSPOSE($A$12:$C$14)) -> -1696.327947 | BC87: -4422.72075 | BD87: 3414.205213 | BF87: -647.6940422 | BG87: -248.4220837 | BI87: 748.4220837 | BJ87: 0
U88: 41.8987 | V88: 500 | Z88: 'Enif' | AB88: 21.736433 | AC88: 9.875011 | AE88: 9.875011 | AF88: -33.953505 | AH88: =camera!$B$5*COS(RADIANS(AE88))*COS(RADIANS(AF88)) -> 408.6007601 | AI88: =camera!$B$5*COS(RADIANS(AE88))*SIN(RADIANS(AF88)) -> -275.1225264 | AJ88: =camera!$B$5*SIN(RADIANS(AE88)) -> 85.74971902 | AL88: =TRANSPOSE(MMULT(camera!$A$12:$C$14,MMULT(camera!$A$16:$C$18,TRANSPOSE(AH88:AJ88)))) -> -43.03820127 | AM88: -431.024419 | AN88: -249.7311824 | AP88: =camera!$B$5*AM88/AN88 -> 862.9767712 | AQ88: =camera!$B$5*AL88/AN88 -> 86.16905756 | AS88: =IF( AND( (camera!$B$3) > (AQ88+camera!$B$3/2), 0 < (AQ88+camera!$B$3/2), AN88 >= 0 ), AQ88+camera!$B$3/2, 0)*-1+camera!$B$3 -> 1000 | AT88: =IF( AND( (camera!$B$4) > (AP88+camera!$B$4/2), 0 < (AP88+camera!$B$4/2), AN88 >= 0 ), AP88+camera!$B$4/2, 0) -> 0 | AX88: -683.4568 | AY88: -377.5487 | AZ88: 2632.0719 | BB88: =MMULT( MMULT(AX88:AZ88-$B$2:$D$2, TRANSPOSE($A$16:$C$18)), TRANSPOSE($A$12:$C$14)) -> -1809.892238 | BC88: -4408.114676 | BD88: 3376.505394 | BF88: -652.762866 | BG88: -268.0126384 | BI88: 768.0126384 | BJ88: 0
U89: 41.8987 | V89: 485 | Z89: '' | AB89: 17.708132 | AC89: -39.029983 | AE89: -39.029983 | AF89: -94.37802 | AH89: =camera!$B$5*COS(RADIANS(AE89))*COS(RADIANS(AF89)) -> -29.64973909 | AI89: =camera!$B$5*COS(RADIANS(AE89))*SIN(RADIANS(AF89)) -> -387.2749326 | AJ89: =camera!$B$5*SIN(RADIANS(AE89)) -> -314.8634935 | AL89: =TRANSPOSE(MMULT(camera!$A$12:$C$14,MMULT(camera!$A$16:$C$18,TRANSPOSE(AH89:AJ89)))) -> 377.5224229 | AM89: -4.216321517 | AN89: -327.8094612 | AP89: =camera!$B$5*AM89/AN89 -> 6.431055257 | AQ89: =camera!$B$5*AL89/AN89 -> -575.8260021 | AS89: =IF( AND( (camera!$B$3) > (AQ89+camera!$B$3/2), 0 < (AQ89+camera!$B$3/2), AN89 >= 0 ), AQ89+camera!$B$3/2, 0)*-1+camera!$B$3 -> 1000 | AT89: =IF( AND( (camera!$B$4) > (AP89+camera!$B$4/2), 0 < (AP89+camera!$B$4/2), AN89 >= 0 ), AP89+camera!$B$4/2, 0) -> 0 | AX89: -428.1944 | AY89: -545.219 | AZ89: 2632.0719 | BB89: =MMULT( MMULT(AX89:AZ89-$B$2:$D$2, TRANSPOSE($A$16:$C$18)), TRANSPOSE($A$12:$C$14)) -> -1784.750643 | BC89: -4677.019155 | BD89: 3233.920319 | BF89: -723.1191084 | BG89: -275.9422723 | BI89: 775.9422723 | BJ89: 0
U90: 42.1236 | V90: 55.5775 | Z90: 'Ankaa' | AB90: 0.438056 | AC90: -42.305981 | AE90: -42.305981 | AF90: 6.57084 | AH90: =camera!$B$5*COS(RADIANS(AE90))*COS(RADIANS(AF90)) -> 367.3513798 | AI90: =camera!$B$5*COS(RADIANS(AE90))*SIN(RADIANS(AF90)) -> 42.31455399 | AJ90: =camera!$B$5*SIN(RADIANS(AE90)) -> -336.5448593 | AL90: =TRANSPOSE(MMULT(camera!$A$12:$C$14,MMULT(camera!$A$16:$C$18,TRANSPOSE(AH90:AJ90)))) -> 318.5524463 | AM90: -362.2655405 | AN90: 131.4839044 | AP90: =camera!$B$5*AM90/AN90 -> -1377.604134 | AQ90: =camera!$B$5*AL90/AN90 -> 1211.374304 | AS90: =IF( AND( (camera!$B$3) > (AQ90+camera!$B$3/2), 0 < (AQ90+camera!$B$3/2), AN90 >= 0 ), AQ90+camera!$B$3/2, 0)*-1+camera!$B$3 -> 1000 | AT90: =IF( AND( (camera!$B$4) > (AP90+camera!$B$4/2), 0 < (AP90+camera!$B$4/2), AN90 >= 0 ), AP90+camera!$B$4/2, 0) -> 0 | AX90: -480.0906 | AY90: -174.1825 | AZ90: 2321.7455 | BB90: =MMULT( MMULT(AX90:AZ90-$B$2:$D$2, TRANSPOSE($A$16:$C$18)), TRANSPOSE($A$12:$C$14)) -> -1542.538015 | BC90: -4592.982474 | BD90: 3647.362762 | BF90: -629.630609 | BG90: -211.4593634 | BI90: 711.4593634 | BJ90: 0
U91: 42.1236 | V91: 465.5775 | Z91: 'Phad' | AB91: 11.897168 | AC91: 53.69476 | AE91: 53.69476 | AF91: 178.45752 | AH91: =camera!$B$5*COS(RADIANS(AE91))*COS(RADIANS(AF91)) -> -295.9361677 | AI91: =camera!$B$5*COS(RADIANS(AE91))*SIN(RADIANS(AF91)) -> 7.968927801 | AJ91: =camera!$B$5*SIN(RADIANS(AE91)) -> 402.9370681 | AL91: =TRANSPOSE(MMULT(camera!$A$12:$C$14,MMULT(camera!$A$16:$C$18,TRANSPOSE(AH91:AJ91)))) -> -393.7152457 | AM91: 295.5045791 | AN91: -87.55197911 | AP91: =camera!$B$5*AM91/AN91 -> -1687.595084 | AQ91: =camera!$B$5*AL91/AN91 -> 2248.46571 | AS91: =IF( AND( (camera!$B$3) > (AQ91+camera!$B$3/2), 0 < (AQ91+camera!$B$3/2), AN91 >= 0 ), AQ91+camera!$B$3/2, 0)*-1+camera!$B$3 -> 1000 | AT91: =IF( AND( (camera!$B$4) > (AP91+camera!$B$4/2), 0 < (AP91+camera!$B$4/2), AN91 >= 0 ), AP91+camera!$B$4/2, 0) -> 0 | AX91: -318.4774 | AY91: -280.3388 | AZ91: 2321.7455 | BB91: =MMULT( MMULT(AX91:AZ91-$B$2:$D$2, TRANSPOSE($A$16:$C$18)), TRANSPOSE($A$12:$C$14)) -> -1526.620238 | BC91: -4763.232818 | BD91: 3557.088562 | BF91: -669.540937 | BG91: -214.5884495 | BI91: 714.5884495 | BJ91: 0
U92: 42.8309 | V92: 133.1302 | Z92: '' | AB92: 17.172968 | AC92: -15.72491 | AE92: -15.72491 | AF92: -102.40548 | AH92: =camera!$B$5*COS(RADIANS(AE92))*COS(RADIANS(AF92)) -> -103.3942803 | AI92: =camera!$B$5*COS(RADIANS(AE92))*SIN(RADIANS(AF92)) -> -470.0497882 | AJ92: =camera!$B$5*SIN(RADIANS(AE92)) -> -135.5094809 | AL92: =TRANSPOSE(MMULT(camera!$A$12:$C$14,MMULT(camera!$A$16:$C$18,TRANSPOSE(AH92:AJ92)))) -> 216.3282893 | AM92: 62.03329541 | AN92: -446.4906959 | AP92: =camera!$B$5*AM92/AN92 -> -69.46762384 | AQ92: =camera!$B$5*AL92/AN92 -> -242.2539723 | AS92: =IF( AND( (camera!$B$3) > (AQ92+camera!$B$3/2), 0 < (AQ92+camera!$B$3/2), AN92 >= 0 ), AQ92+camera!$B$3/2, 0)*-1+camera!$B$3 -> 1000 | AT92: =IF( AND( (camera!$B$4) > (AP92+camera!$B$4/2), 0 < (AP92+camera!$B$4/2), AN92 >= 0 ), AP92+camera!$B$4/2, 0) -> 0 | AX92: -360.333 | AY92: -381.3872 | AZ92: 2346.264 | BB92: =MMULT( MMULT(AX92:AZ92-$B$2:$D$2, TRANSPOSE($A$16:$C$18)), TRANSPOSE($A$12:$C$14)) -> -1532.652687 | BC92: -4730.34344 | BD92: 3450.103864 | BF92: -685.5363817 | BG92: -222.1168909 | BI92: 722.1168909 | BJ92: 0
U93: 42.8309 | V93: 543.1302 | Z93: 'Scheat' | AB93: 23.062901 | AC93: 28.082789 | AE93: 28.082789 | AF93: -14.056485 | AH93: =camera!$B$5*COS(RADIANS(AE93))*COS(RADIANS(AF93)) -> 427.9251689 | AI93: =camera!$B$5*COS(RADIANS(AE93))*SIN(RADIANS(AF93)) -> -107.141933 | AJ93: =camera!$B$5*SIN(RADIANS(AE93)) -> 235.3734396 | AL93: =TRANSPOSE(MMULT(camera!$A$12:$C$14,MMULT(camera!$A$16:$C$18,TRANSPOSE(AH93:AJ93)))) -> -219.7397904 | AM93: -435.6348191 | AN93: -109.2553379 | AP93: =camera!$B$5*AM93/AN93 -> 1993.654623 | AQ93: =camera!$B$5*AL93/AN93 -> 1005.624963 | AS93: =IF( AND( (camera!$B$3) > (AQ93+camera!$B$3/2), 0 < (AQ93+camera!$B$3/2), AN93 >= 0 ), AQ93+camera!$B$3/2, 0)*-1+camera!$B$3 -> 1000 | AT93: =IF( AND( (camera!$B$4) > (AP93+camera!$B$4/2), 0 < (AP93+camera!$B$4/2), AN93 >= 0 ), AP93+camera!$B$4/2, 0) -> 0 | AX93: -557.6722 | AY93: -251.7641 | AZ93: 2346.264 | BB93: =MMULT( MMULT(AX93:AZ93-$B$2:$D$2, TRANSPOSE($A$16:$C$18)), TRANSPOSE($A$12:$C$14)) -> -1552.089232 | BC93: -4522.457777 | BD93: 3560.333988 | BF93: -635.1170695 | BG93: -217.9696114 | BI93: 717.9696114 | BJ93: 0
U94: 43.3477 | V94: 60 | Z94: 'Aludra' | AB94: 7.401584 | AC94: -29.303104 | AE94: -29.303104 | AF94: 111.02376 | AH94: =camera!$B$5*COS(RADIANS(AE94))*COS(RADIANS(AF94)) -> -156.4248785 | AI94: =camera!$B$5*COS(RADIANS(AE94))*SIN(RADIANS(AF94)) -> 406.9961925 | AJ94: =camera!$B$5*SIN(RADIANS(AE94)) -> -244.7148477 | AL94: =TRANSPOSE(MMULT(camera!$A$12:$C$14,MMULT(camera!$A$16:$C$18,TRANSPOSE(AH94:AJ94)))) -> 172.9592709 | AM94: 191.3016901 | AN94: 428.3558731 | AP94: =camera!$B$5*AM94/AN94 -> 223.2976155 | AQ94: =camera!$B$5*AL94/AN94 -> 201.8873579 | AS94: =IF( AND( (camera!$B$3) > (AQ94+camera!$B$3/2), 0 < (AQ94+camera!$B$3/2), AN94 >= 0 ), AQ94+camera!$B$3/2, 0)*-1+camera!$B$3 -> 298.1126421 | AT94: =IF( AND( (camera!$B$4) > (AP94+camera!$B$4/2), 0 < (AP94+camera!$B$4/2), AN94 >= 0 ), AP94+camera!$B$4/2, 0) -> 723.2976155 | AX94: -336.289 | AY94: -30.3809 | AZ94: 2412.638 | BB94: =MMULT( MMULT(AX94:AZ94-$B$2:$D$2, TRANSPOSE($A$16:$C$18)), TRANSPOSE($A$12:$C$14)) -> -1659.101874 | BC94: -4723.70373 | BD94: 3785.000209 | BF94: -624.0031003 | BG94: -219.168003 | BI94: 719.168003 | BJ94: 0
U95: 43.3477 | V95: 470 | Z95: 'Alderamin' | AB95: 21.30963 | AC95: 62.585573 | AE95: 62.585573 | AF95: -40.35555 | AH95: =camera!$B$5*COS(RADIANS(AE95))*COS(RADIANS(AF95)) -> 175.4306984 | AI95: =camera!$B$5*COS(RADIANS(AE95))*SIN(RADIANS(AF95)) -> -149.0687045 | AJ95: =camera!$B$5*SIN(RADIANS(AE95)) -> 443.8497397 | AL95: =TRANSPOSE(MMULT(camera!$A$12:$C$14,MMULT(camera!$A$16:$C$18,TRANSPOSE(AH95:AJ95)))) -> -413.9747027 | AM95: -187.7553253 | AN95: -208.2615743 | AP95: =camera!$B$5*AM95/AN95 -> 450.7680447 | AQ95: =camera!$B$5*AL95/AN95 -> 993.8816225 | AS95: =IF( AND( (camera!$B$3) > (AQ95+camera!$B$3/2), 0 < (AQ95+camera!$B$3/2), AN95 >= 0 ), AQ95+camera!$B$3/2, 0)*-1+camera!$B$3 -> 1000 | AT95: =IF( AND( (camera!$B$4) > (AP95+camera!$B$4/2), 0 < (AP95+camera!$B$4/2), AN95 >= 0 ), AP95+camera!$B$4/2, 0) -> 0 | AX95: -240.8958 | AY95: -93.0403 | AZ95: 2412.638 | BB95: =MMULT( MMULT(AX95:AZ95-$B$2:$D$2, TRANSPOSE($A$16:$C$18)), TRANSPOSE($A$12:$C$14)) -> -1649.70631 | BC95: -4824.195057 | BD95: 3731.715318 | BF95: -646.3776904 | BG95: -221.0386069 | BI95: 721.0386069 | BJ95: 0
U96: 44.4563 | V96: 51.155 | Z96: '' | AB96: 9.368562 | AC96: -55.010668 | AE96: -55.010668 | AF96: 140.52843 | AH96: =camera!$B$5*COS(RADIANS(AE96))*COS(RADIANS(AF96)) -> -221.3244565 | AI96: =camera!$B$5*COS(RADIANS(AE96))*SIN(RADIANS(AF96)) -> 182.261431 | AJ96: =camera!$B$5*SIN(RADIANS(AE96)) -> -409.6294126 | AL96: =TRANSPOSE(MMULT(camera!$A$12:$C$14,MMULT(camera!$A$16:$C$18,TRANSPOSE(AH96:AJ96)))) -> 375.2269123 | AM96: 236.3673806 | AN96: 230.9442048 | AP96: =camera!$B$5*AM96/AN96 -> 511.7413117 | AQ96: =camera!$B$5*AL96/AN96 -> 812.3756832 | AS96: =IF( AND( (camera!$B$3) > (AQ96+camera!$B$3/2), 0 < (AQ96+camera!$B$3/2), AN96 >= 0 ), AQ96+camera!$B$3/2, 0)*-1+camera!$B$3 -> 1000 | AT96: =IF( AND( (camera!$B$4) > (AP96+camera!$B$4/2), 0 < (AP96+camera!$B$4/2), AN96 >= 0 ), AP96+camera!$B$4/2, 0) -> 0 | AX96: -276.6218 | AY96: -179.2905 | AZ96: 2346.264 | BB96: =MMULT( MMULT(AX96:AZ96-$B$2:$D$2, TRANSPOSE($A$16:$C$18)), TRANSPOSE($A$12:$C$14)) -> -1568.87979 | BC96: -4796.122205 | BD96: 3655.557976 | BF96: -656.0041225 | BG96: -214.588279 | BI96: 714.588279 | BJ96: 0
U97: 44.4563 | V97: 461.155 | Z97: 'Gienah' | AB97: 20.770178 | AC97: 33.970256 | AE97: 33.970256 | AF97: -48.44733 | AH97: =camera!$B$5*COS(RADIANS(AE97))*COS(RADIANS(AF97)) -> 275.0499738 | AI97: =camera!$B$5*COS(RADIANS(AE97))*SIN(RADIANS(AF97)) -> -310.3121706 | AJ97: =camera!$B$5*SIN(RADIANS(AE97)) -> 279.3812246 | AL97: =TRANSPOSE(MMULT(camera!$A$12:$C$14,MMULT(camera!$A$16:$C$18,TRANSPOSE(AH97:AJ97)))) -> -225.6194286 | AM97: -301.0488133 | AN97: -329.3409866 | AP97: =camera!$B$5*AM97/AN97 -> 457.0472938 | AQ97: =camera!$B$5*AL97/AN97 -> 342.5316583 | AS97: =IF( AND( (camera!$B$3) > (AQ97+camera!$B$3/2), 0 < (AQ97+camera!$B$3/2), AN97 >= 0 ), AQ97+camera!$B$3/2, 0)*-1+camera!$B$3 -> 1000 | AT97: =IF( AND( (camera!$B$4) > (AP97+camera!$B$4/2), 0 < (AP97+camera!$B$4/2), AN97 >= 0 ), AP97+camera!$B$4/2, 0) -> 0 | AX97: -402.509 | AY97: -96.6009 | AZ97: 2346.264 | BB97: =MMULT( MMULT(AX97:AZ97-$B$2:$D$2, TRANSPOSE($A$16:$C$18)), TRANSPOSE($A$12:$C$14)) -> -1581.278817 | BC97: -4663.507171 | BD97: 3725.876351 | BF97: -625.8268836 | BG97: -212.2022671 | BI97: 712.2022671 | BJ97: 0
U98: 45 | V98: 120 | Z98: 'Markab' | AB98: 23.079348 | AC98: 15.205264 | AE98: 15.205264 | AF98: -13.80978 | AH98: =camera!$B$5*COS(RADIANS(AE98))*COS(RADIANS(AF98)) -> 468.5489486 | AI98: =camera!$B$5*COS(RADIANS(AE98))*SIN(RADIANS(AF98)) -> -115.1714669 | AJ98: =camera!$B$5*SIN(RADIANS(AE98)) -> 131.1389188 | AL98: =TRANSPOSE(MMULT(camera!$A$12:$C$14,MMULT(camera!$A$16:$C$18,TRANSPOSE(AH98:AJ98)))) -> -116.3146361 | AM98: -476.8038331 | AN98: -95.54585386 | AP98: =camera!$B$5*AM98/AN98 -> 2495.157109 | AQ98: =camera!$B$5*AL98/AN98 -> 608.6848951 | AS98: =IF( AND( (camera!$B$3) > (AQ98+camera!$B$3/2), 0 < (AQ98+camera!$B$3/2), AN98 >= 0 ), AQ98+camera!$B$3/2, 0)*-1+camera!$B$3 -> 1000 | AT98: =IF( AND( (camera!$B$4) > (AP98+camera!$B$4/2), 0 < (AP98+camera!$B$4/2), AN98 >= 0 ), AP98+camera!$B$4/2, 0) -> 0 | AX98: -276.7244 | AY98: 29.1837 | AZ98: 2632.0719 | BB98: =MMULT( MMULT(AX98:AZ98-$B$2:$D$2, TRANSPOSE($A$16:$C$18)), TRANSPOSE($A$12:$C$14)) -> -1886.407482 | BC98: -4777.850272 | BD98: 3810.444902 | BF98: -626.941262 | BG98: -247.5311322 | BI98: 747.5311322 | BJ98: 0
U99: 45 | V99: 530 | Z99: 'Menkar' | AB99: 3.037992 | AC99: 4.089734 | AE99: 4.089734 | AF99: 45.56988 | AH99: =camera!$B$5*COS(RADIANS(AE99))*COS(RADIANS(AF99)) -> 349.1281213 | AI99: =camera!$B$5*COS(RADIANS(AE99))*SIN(RADIANS(AF99)) -> 356.1431801 | AJ99: =camera!$B$5*SIN(RADIANS(AE99)) -> 35.65936312 | AL99: =TRANSPOSE(MMULT(camera!$A$12:$C$14,MMULT(camera!$A$16:$C$18,TRANSPOSE(AH99:AJ99)))) -> -102.009755 | AM99: -316.75966 | AN99: 373.1719814 | AP99: =camera!$B$5*AM99/AN99 -> -424.4151166 | AQ99: =camera!$B$5*AL99/AN99 -> -136.6792794 | AS99: =IF( AND( (camera!$B$3) > (AQ99+camera!$B$3/2), 0 < (AQ99+camera!$B$3/2), AN99 >= 0 ), AQ99+camera!$B$3/2, 0)*-1+camera!$B$3 -> 636.6792794 | AT99: =IF( AND( (camera!$B$4) > (AP99+camera!$B$4/2), 0 < (AP99+camera!$B$4/2), AN99 >= 0 ), AP99+camera!$B$4/2, 0) -> 75.58488335 | AX99: -208.7605 | AY99: -15.4587 | AZ99: 2632.0719 | BB99: =MMULT( MMULT(AX99:AZ99-$B$2:$D$2, TRANSPOSE($A$16:$C$18)), TRANSPOSE($A$12:$C$14)) -> -1879.713505 | BC99: -4849.44639 | BD99: 3772.481472 | BF99: -642.7395902 | BG99: -249.1348889 | BI99: 749.1348889 | BJ99: 0
U100: 45.2484 | V100: 137.5069 | Z100: '' | AB100: 16.619316 | AC100: -10.56709 | AE100: -10.56709 | AF100: -110.71026 | AH100: =camera!$B$5*COS(RADIANS(AE100))*COS(RADIANS(AF100)) -> -173.8224369 | AI100: =camera!$B$5*COS(RADIANS(AE100))*SIN(RADIANS(AF100)) -> -459.7587268 | AJ100: =camera!$B$5*SIN(RADIANS(AE100)) -> -91.69336709 | AL100: =TRANSPOSE(MMULT(camera!$A$12:$C$14,MMULT(camera!$A$16:$C$18,TRANSPOSE(AH100:AJ100)))) -> 172.4635073 | AM100: 133.0903768 | AN100: -450.0480977 | AP100: =camera!$B$5*AM100/AN100 -> -147.8623923 | AQ100: =camera!$B$5*AL100/AN100 -> -191.6056397 | AS100: =IF( AND( (camera!$B$3) > (AQ100+camera!$B$3/2), 0 < (AQ100+camera!$B$3/2), AN100 >= 0 ), AQ100+camera!$B$3/2, 0)*-1+camera!$B$3 -> 1000 | AT100: =IF( AND( (camera!$B$4) > (AP100+camera!$B$4/2), 0 < (AP100+camera!$B$4/2), AN100 >= 0 ), AP100+camera!$B$4/2, 0) -> 0 | AX100: -217.4291 | AY100: -36.3865 | AZ100: 2513.6864 | BB100: =MMULT( MMULT(AX100:AZ100-$B$2:$D$2, TRANSPOSE($A$16:$C$18)), TRANSPOSE($A$12:$C$14)) -> -1759.375106 | BC100: -4842.634755 | BD100: 3771.763425 | BF100: -641.9589738 | BG100: -233.2297799 | BI100: 733.2297799 | BJ100: 0
U101: 45.2484 | V101: 547.5069 | Z101: '' | AB101: 13.925667 | AC101: -47.288375 | AE101: -47.288375 | AF101: -151.114995 | AH101: =camera!$B$5*COS(RADIANS(AE101))*COS(RADIANS(AF101)) -> -296.9605179 | AI101: =camera!$B$5*COS(RADIANS(AE101))*SIN(RADIANS(AF101)) -> -163.829626 | AJ101: =camera!$B$5*SIN(RADIANS(AE101)) -> -367.3884926 | AL101: =TRANSPOSE(MMULT(camera!$A$12:$C$14,MMULT(camera!$A$16:$C$18,TRANSPOSE(AH101:AJ101)))) -> 394.6418258 | AM101: 281.5518007 | AN101: -122.4190052 | AP101: =camera!$B$5*AM101/AN101 -> -1149.951351 | AQ101: =camera!$B$5*AL101/AN101 -> -1611.848688 | AS101: =IF( AND( (camera!$B$3) > (AQ101+camera!$B$3/2), 0 < (AQ101+camera!$B$3/2), AN101 >= 0 ), AQ101+camera!$B$3/2, 0)*-1+camera!$B$3 -> 1000 | AT101: =IF( AND( (camera!$B$4) > (AP101+camera!$B$4/2), 0 < (AP101+camera!$B$4/2), AN101 >= 0 ), AP101+camera!$B$4/2, 0) -> 0 | AX101: -292.7921 | AY101: 13.116 | AZ101: 2513.6864 | BB101: =MMULT( MMULT(AX101:AZ101-$B$2:$D$2, TRANSPOSE($A$16:$C$18)), TRANSPOSE($A$12:$C$14)) -> -1766.797838 | BC101: -4763.244107 | BD101: 3813.85983 | BF101: -624.4650196 | BG101: -231.6285754 | BI101: 731.6285754 | BJ101: 0
U102: 45.4314 | V102: 49.3062 | Z102: 'Zosma' | AB102: 11.235138 | AC102: 20.523717 | AE102: 20.523717 | AF102: 168.52707 | AH102: =camera!$B$5*COS(RADIANS(AE102))*COS(RADIANS(AF102)) -> -458.9070988 | AI102: =camera!$B$5*COS(RADIANS(AE102))*SIN(RADIANS(AF102)) -> 93.139936 | AJ102: =camera!$B$5*SIN(RADIANS(AE102)) -> 175.2975385 | AL102: =TRANSPOSE(MMULT(camera!$A$12:$C$14,MMULT(camera!$A$16:$C$18,TRANSPOSE(AH102:AJ102)))) -> -181.8011098 | AM102: 465.278499 | AN102: 21.5470379 | AP102: =camera!$B$5*AM102/AN102 -> 10796.80885 | AQ102: =camera!$B$5*AL102/AN102 -> -4218.703068 | AS102: =IF( AND( (camera!$B$3) > (AQ102+camera!$B$3/2), 0 < (AQ102+camera!$B$3/2), AN102 >= 0 ), AQ102+camera!$B$3/2, 0)*-1+camera!$B$3 -> 1000 | AT102: =IF( AND( (camera!$B$4) > (AP102+camera!$B$4/2), 0 < (AP102+camera!$B$4/2), AN102 >= 0 ), AP102+camera!$B$4/2, 0) -> 0 | AX102: -336.289 | AY102: -30.3809 | AZ102: 2851.5058 | BB102: =MMULT( MMULT(AX102:AZ102-$B$2:$D$2, TRANSPOSE($A$16:$C$18)), TRANSPOSE($A$12:$C$14)) -> -2091.302286 | BC102: -4723.70373 | BD102: 3708.791616 | BF102: -636.8251738 | BG102: -281.9384995 | BI102: 781.9384995 | BJ102: 0
U103: 45.4314 | V103: 459.3062 | Z103: 'Graffias' | AB103: 16.09062 | AC103: -19.805453 | AE103: -19.805453 | AF103: -118.6407 | AH103: =camera!$B$5*COS(RADIANS(AE103))*COS(RADIANS(AF103)) -> -225.4815992 | AI103: =camera!$B$5*COS(RADIANS(AE103))*SIN(RADIANS(AF103)) -> -412.8644277 | AJ103: =camera!$B$5*SIN(RADIANS(AE103)) -> -169.4137325 | AL103: =TRANSPOSE(MMULT(camera!$A$12:$C$14,MMULT(camera!$A$16:$C$18,TRANSPOSE(AH103:AJ103)))) -> 241.6728354 | AM103: 188.6400678 | AN103: -394.9799558 | AP103: =camera!$B$5*AM103/AN103 -> -238.7970137 | AQ103: =camera!$B$5*AL103/AN103 -> -305.930506 | AS103: =IF( AND( (camera!$B$3) > (AQ103+camera!$B$3/2), 0 < (AQ103+camera!$B$3/2), AN103 >= 0 ), AQ103+camera!$B$3/2, 0)*-1+camera!$B$3 -> 1000 | AT103: =IF( AND( (camera!$B$4) > (AP103+camera!$B$4/2), 0 < (AP103+camera!$B$4/2), AN103 >= 0 ), AP103+camera!$B$4/2, 0) -> 0 | AX103: -240.8958 | AY103: -93.0403 | AZ103: 2851.5058 | BB103: =MMULT( MMULT(AX103:AZ103-$B$2:$D$2, TRANSPOSE($A$16:$C$18)), TRANSPOSE($A$12:$C$14)) -> -2081.906722 | BC103: -4824.195057 | BD103: 3655.506724 | BF103: -659.8531231 | BG103: -284.763082 | BI103: 784.763082 | BJ103: 0
U104: 46.789 | V104: 46.7324 | Z104: 'Arneb' | AB104: 5.545504 | AC104: -17.822289 | AE104: -17.822289 | AF104: 83.18256 | AH104: =camera!$B$5*COS(RADIANS(AE104))*COS(RADIANS(AF104)) -> 56.50477184 | AI104: =camera!$B$5*COS(RADIANS(AE104))*SIN(RADIANS(AF104)) -> 472.639568 | AJ104: =camera!$B$5*SIN(RADIANS(AE104)) -> -153.0328379 | AL104: =TRANSPOSE(MMULT(camera!$A$12:$C$14,MMULT(camera!$A$16:$C$18,TRANSPOSE(AH104:AJ104)))) -> 68.09207024 | AM104: -15.09650151 | AN104: 495.1116698 | AP104: =camera!$B$5*AM104/AN104 -> -15.2455521 | AQ104: =camera!$B$5*AL104/AN104 -> 68.76435599 | AS104: =IF( AND( (camera!$B$3) > (AQ104+camera!$B$3/2), 0 < (AQ104+camera!$B$3/2), AN104 >= 0 ), AQ104+camera!$B$3/2, 0)*-1+camera!$B$3 -> 431.235644 | AT104: =IF( AND( (camera!$B$4) > (AP104+camera!$B$4/2), 0 < (AP104+camera!$B$4/2), AN104 >= 0 ), AP104+camera!$B$4/2, 0) -> 484.7544479 | AX104: -217.4291 | AY104: -36.3865 | AZ104: 2750.4574 | BB104: =MMULT( MMULT(AX104:AZ104-$B$2:$D$2, TRANSPOSE($A$16:$C$18)), TRANSPOSE($A$12:$C$14)) -> -1992.549023 | BC104: -4842.634755 | BD104: 3730.648572 | BF104: -649.033896 | BG104: -267.0512894 | BI104: 767.0512894 | BJ104: 0
U105: 46.789 | V105: 456.7324 | Z105: '' | AB105: 12.13931 | AC105: -50.722425 | AE105: -50.722425 | AF105: -177.91035 | AH105: =camera!$B$5*COS(RADIANS(AE105))*COS(RADIANS(AF105)) -> -316.328476 | AI105: =camera!$B$5*COS(RADIANS(AE105))*SIN(RADIANS(AF105)) -> -11.54202012 | AJ105: =camera!$B$5*SIN(RADIANS(AE105)) -> -387.0440247 | AL105: =TRANSPOSE(MMULT(camera!$A$12:$C$14,MMULT(camera!$A$16:$C$18,TRANSPOSE(AH105:AJ105)))) -> 387.9480333 | AM105: 314.1187973 | AN105: 28.73507688 | AP105: =camera!$B$5*AM105/AN105 -> 5465.772697 | AQ105: =camera!$B$5*AL105/AN105 -> 6750.42623 | AS105: =IF( AND( (camera!$B$3) > (AQ105+camera!$B$3/2), 0 < (AQ105+camera!$B$3/2), AN105 >= 0 ), AQ105+camera!$B$3/2, 0)*-1+camera!$B$3 -> 1000 | AT105: =IF( AND( (camera!$B$4) > (AP105+camera!$B$4/2), 0 < (AP105+camera!$B$4/2), AN105 >= 0 ), AP105+camera!$B$4/2, 0) -> 0 | AX105: -292.7921 | AY105: 13.116 | AZ105: 2750.4574 | BB105: =MMULT( MMULT(AX105:AZ105-$B$2:$D$2, TRANSPOSE($A$16:$C$18)), TRANSPOSE($A$12:$C$14)) -> -1999.971755 | BC105: -4763.244107 | BD105: 3772.744977 | BF105: -631.270353 | BG105: -265.0552538 | BI105: 765.0552538 | BJ105: 0
U106: 46.8987 | V106: 105 | Z106: 'Gienah Ghurab' | AB106: 12.263437 | AC106: -17.541929 | AE106: -17.541929 | AF106: -176.048445 | AH106: =camera!$B$5*COS(RADIANS(AE106))*COS(RADIANS(AF106)) -> -475.6149336 | AI106: =camera!$B$5*COS(RADIANS(AE106))*SIN(RADIANS(AF106)) -> -32.85414923 | AJ106: =camera!$B$5*SIN(RADIANS(AE106)) -> -150.7018241 | AL106: =TRANSPOSE(MMULT(camera!$A$12:$C$14,MMULT(camera!$A$16:$C$18,TRANSPOSE(AH106:AJ106)))) -> 161.2938421 | AM106: 470.9416474 | AN106: -46.88561821 | AP106: =camera!$B$5*AM106/AN106 -> -5022.239925 | AQ106: =camera!$B$5*AL106/AN106 -> -1720.078014 | AS106: =IF( AND( (camera!$B$3) > (AQ106+camera!$B$3/2), 0 < (AQ106+camera!$B$3/2), AN106 >= 0 ), AQ106+camera!$B$3/2, 0)*-1+camera!$B$3 -> 1000 | AT106: =IF( AND( (camera!$B$4) > (AP106+camera!$B$4/2), 0 < (AP106+camera!$B$4/2), AN106 >= 0 ), AP106+camera!$B$4/2, 0) -> 0 | AX106: -480.0906 | AY106: -174.1825 | AZ106: 2942.3983 | BB106: =MMULT( MMULT(AX106:AZ106-$B$2:$D$2, TRANSPOSE($A$16:$C$18)), TRANSPOSE($A$12:$C$14)) -> -2153.761705 | BC106: -4592.982474 | BD106: 3539.587534 | BF106: -648.8019338 | BG106: -304.2390793 | BI106: 804.2390793 | BJ106: 0
U107: 46.8987 | V107: 90 | Z107: '' | AB107: 19.043532 | AC107: -29.880105 | AE107: -29.880105 | AF107: -74.34702 | AH107: =camera!$B$5*COS(RADIANS(AE107))*COS(RADIANS(AF107)) -> 116.9721878 | AI107: =camera!$B$5*COS(RADIANS(AE107))*SIN(RADIANS(AF107)) -> -417.4565986 | AJ107: =camera!$B$5*SIN(RADIANS(AE107)) -> -249.0933472 | AL107: =TRANSPOSE(MMULT(camera!$A$12:$C$14,MMULT(camera!$A$16:$C$18,TRANSPOSE(AH107:AJ107)))) -> 315.7534805 | AM107: -152.9108132 | AN107: -356.2555582 | AP107: =camera!$B$5*AM107/AN107 -> 214.6083193 | AQ107: =camera!$B$5*AL107/AN107 -> -443.1558655 | AS107: =IF( AND( (camera!$B$3) > (AQ107+camera!$B$3/2), 0 < (AQ107+camera!$B$3/2), AN107 >= 0 ), AQ107+camera!$B$3/2, 0)*-1+camera!$B$3 -> 1000 | AT107: =IF( AND( (camera!$B$4) > (AP107+camera!$B$4/2), 0 < (AP107+camera!$B$4/2), AN107 >= 0 ), AP107+camera!$B$4/2, 0) -> 0 | AX107: -318.4774 | AY107: -280.3388 | AZ107: 2942.3983 | BB107: =MMULT( MMULT(AX107:AZ107-$B$2:$D$2, TRANSPOSE($A$16:$C$18)), TRANSPOSE($A$12:$C$14)) -> -2137.843928 | BC107: -4763.232818 | BD107: 3449.313335 | BF107: -690.4610217 | BG107: -309.8941326 | BI107: 809.8941326 | BJ107: 0
U108: 46.8987 | V108: 75 | Z108: 'Zubeneschemali' | AB108: 15.283449 | AC108: -9.382917 | AE108: -9.382917 | AF108: -130.748265 | AH108: =camera!$B$5*COS(RADIANS(AE108))*COS(RADIANS(AF108)) -> -322.0018624 | AI108: =camera!$B$5*COS(RADIANS(AE108))*SIN(RADIANS(AF108)) -> -373.7244417 | AJ108: =camera!$B$5*SIN(RADIANS(AE108)) -> -81.51590198 | AL108: =TRANSPOSE(MMULT(camera!$A$12:$C$14,MMULT(camera!$A$16:$C$18,TRANSPOSE(AH108:AJ108)))) -> 149.800426 | AM108: 288.2043168 | AN108: -380.1290625 | AP108: =camera!$B$5*AM108/AN108 -> -379.0874538 | AQ108: =camera!$B$5*AL108/AN108 -> -197.0389018 | AS108: =IF( AND( (camera!$B$3) > (AQ108+camera!$B$3/2), 0 < (AQ108+camera!$B$3/2), AN108 >= 0 ), AQ108+camera!$B$3/2, 0)*-1+camera!$B$3 -> 1000 | AT108: =IF( AND( (camera!$B$4) > (AP108+camera!$B$4/2), 0 < (AP108+camera!$B$4/2), AN108 >= 0 ), AP108+camera!$B$4/2, 0) -> 0 | AX108: -276.6218 | AY108: -179.2905 | AZ108: 2917.8799 | BB108: =MMULT( MMULT(AX108:AZ108-$B$2:$D$2, TRANSPOSE($A$16:$C$18)), TRANSPOSE($A$12:$C$14)) -> -2131.81156 | BC108: -4796.122205 | BD108: 3556.297917 | BF108: -674.3138957 | BG108: -299.7234217 | BI108: 799.7234217 | BJ108: 0
U109: 46.8987 | V109: 515 | Z109: 'Unukalhai' | AB109: 15.737798 | AC109: 6.425627 | AE109: 6.425627 | AF109: -123.93303 | AH109: =camera!$B$5*COS(RADIANS(AE109))*COS(RADIANS(AF109)) -> -277.3583613 | AI109: =camera!$B$5*COS(RADIANS(AE109))*SIN(RADIANS(AF109)) -> -412.2392347 | AJ109: =camera!$B$5*SIN(RADIANS(AE109)) -> 55.95670456 | AL109: =TRANSPOSE(MMULT(camera!$A$12:$C$14,MMULT(camera!$A$16:$C$18,TRANSPOSE(AH109:AJ109)))) -> 20.40325675 | AM109: 240.3739123 | AN109: -437.9544376 | AP109: =camera!$B$5*AM109/AN109 -> -274.4279903 | AQ109: =camera!$B$5*AL109/AN109 -> -23.29381209 | AS109: =IF( AND( (camera!$B$3) > (AQ109+camera!$B$3/2), 0 < (AQ109+camera!$B$3/2), AN109 >= 0 ), AQ109+camera!$B$3/2, 0)*-1+camera!$B$3 -> 1000 | AT109: =IF( AND( (camera!$B$4) > (AP109+camera!$B$4/2), 0 < (AP109+camera!$B$4/2), AN109 >= 0 ), AP109+camera!$B$4/2, 0) -> 0 | AX109: -402.509 | AY109: -96.6009 | AZ109: 2917.8799 | BB109: =MMULT( MMULT(AX109:AZ109-$B$2:$D$2, TRANSPOSE($A$16:$C$18)), TRANSPOSE($A$12:$C$14)) -> -2144.210587 | BC109: -4663.507171 | BD109: 3626.616291 | BF109: -642.9556914 | BG109: -295.6213747 | BI109: 795.6213747 | BJ109: 0
U110: 46.8987 | V110: 500 | Z110: 'Sheratan' | AB110: 1.910668 | AC110: 20.808035 | AE110: 20.808035 | AF110: 28.66002 | AH110: =camera!$B$5*COS(RADIANS(AE110))*COS(RADIANS(AF110)) -> 410.1240512 | AI110: =camera!$B$5*COS(RADIANS(AE110))*SIN(RADIANS(AF110)) -> 224.1645455 | AJ110: =camera!$B$5*SIN(RADIANS(AE110)) -> 177.6190281 | AL110: =TRANSPOSE(MMULT(camera!$A$12:$C$14,MMULT(camera!$A$16:$C$18,TRANSPOSE(AH110:AJ110)))) -> -219.9052327 | AM110: -389.0261779 | AN110: 224.2773317 | AP110: =camera!$B$5*AM110/AN110 -> -867.2882252 | AQ110: =camera!$B$5*AL110/AN110 -> -490.2529181 | AS110: =IF( AND( (camera!$B$3) > (AQ110+camera!$B$3/2), 0 < (AQ110+camera!$B$3/2), AN110 >= 0 ), AQ110+camera!$B$3/2, 0)*-1+camera!$B$3 -> 990.2529181 | AT110: =IF( AND( (camera!$B$4) > (AP110+camera!$B$4/2), 0 < (AP110+camera!$B$4/2), AN110 >= 0 ), AP110+camera!$B$4/2, 0) -> 0 | AX110: -623.8922 | AY110: -317.9841 | AZ110: 2851.5058 | BB110: =MMULT( MMULT(AX110:AZ110-$B$2:$D$2, TRANSPOSE($A$16:$C$18)), TRANSPOSE($A$12:$C$14)) -> -2037.197846 | BC110: -4462.261218 | BD110: 3401.950087 | BF110: -655.8387253 | BG110: -299.4161869 | BI110: 799.4161869 | BJ110: 0
U111: 46.8987 | V111: 485 | Z111: 'Phakt' | AB111: 5.660817 | AC111: -34.074108 | AE111: -34.074108 | AF111: 84.912255 | AH111: =camera!$B$5*COS(RADIANS(AE111))*COS(RADIANS(AF111)) -> 36.72794349 | AI111: =camera!$B$5*COS(RADIANS(AE111))*SIN(RADIANS(AF111)) -> 412.5250471 | AJ111: =camera!$B$5*SIN(RADIANS(AE111)) -> -280.1323682 | AL111: =TRANSPOSE(MMULT(camera!$A$12:$C$14,MMULT(camera!$A$16:$C$18,TRANSPOSE(AH111:AJ111)))) -> 203.9590385 | AM111: -0.6342556932 | AN111: 456.5088261 | AP111: =camera!$B$5*AM111/AN111 -> -0.6946806468 | AQ111: =camera!$B$5*AL111/AN111 -> 223.3900276 | AS111: =IF( AND( (camera!$B$3) > (AQ111+camera!$B$3/2), 0 < (AQ111+camera!$B$3/2), AN111 >= 0 ), AQ111+camera!$B$3/2, 0)*-1+camera!$B$3 -> 276.6099724 | AT111: =IF( AND( (camera!$B$4) > (AP111+camera!$B$4/2), 0 < (AP111+camera!$B$4/2), AN111 >= 0 ), AP111+camera!$B$4/2, 0) -> 499.3053194 | AX111: -396.059 | AY111: -467.6374 | AZ111: 2851.5058 | BB111: =MMULT( MMULT(AX111:AZ111-$B$2:$D$2, TRANSPOSE($A$16:$C$18)), TRANSPOSE($A$12:$C$14)) -> -2014.757839 | BC111: -4702.270588 | BD111: 3274.686481 | BF111: -717.9726388 | BG111: -307.6260659 | BI111: 807.6260659 | BJ111: 0
U112: 47.6659 | V112: 141.8837 | Z112: '' | AB112: 5.995351 | AC112: 37.212585 | AE112: 37.212585 | AF112: 89.930265 | AH112: =camera!$B$5*COS(RADIANS(AE112))*COS(RADIANS(AF112)) -> 0.4846494667 | AI112: =camera!$B$5*COS(RADIANS(AE112))*SIN(RADIANS(AF112)) -> 398.1982545 | AJ112: =camera!$B$5*SIN(RADIANS(AE112)) -> 302.3870289 | AL112: =TRANSPOSE(MMULT(camera!$A$12:$C$14,MMULT(camera!$A$16:$C$18,TRANSPOSE(AH112:AJ112)))) -> -366.6837037 | AM112: 34.2224594 | AN112: 338.1891257 | AP112: =camera!$B$5*AM112/AN112 -> 50.59662893 | AQ112: =camera!$B$5*AL112/AN112 -> -542.1281701 | AS112: =IF( AND( (camera!$B$3) > (AQ112+camera!$B$3/2), 0 < (AQ112+camera!$B$3/2), AN112 >= 0 ), AQ112+camera!$B$3/2, 0)*-1+camera!$B$3 -> 1000 | AT112: =IF( AND( (camera!$B$4) > (AP112+camera!$B$4/2), 0 < (AP112+camera!$B$4/2), AN112 >= 0 ), AP112+camera!$B$4/2, 0) -> 550.5966289 | AX112: -360.333 | AY112: -381.3872 | AZ112: 2917.8799 | BB112: =MMULT( MMULT(AX112:AZ112-$B$2:$D$2, TRANSPOSE($A$16:$C$18)), TRANSPOSE($A$12:$C$14)) -> -2095.584457 | BC112: -4730.34344 | BD112: 3350.843805 | BF112: -705.8436195 | BG112: -312.6950373 | BI112: 812.6950373 | BJ112: 0
U113: 47.6659 | V113: 551.8837 | Z113: 'Kraz' | AB113: 12.573121 | AC113: -23.396759 | AE113: -23.396759 | AF113: -171.403185 | AH113: =camera!$B$5*COS(RADIANS(AE113))*COS(RADIANS(AF113)) -> -453.7327905 | AI113: =camera!$B$5*COS(RADIANS(AE113))*SIN(RADIANS(AF113)) -> -68.5948338 | AJ113: =camera!$B$5*SIN(RADIANS(AE113)) -> -198.5479881 | AL113: =TRANSPOSE(MMULT(camera!$A$12:$C$14,MMULT(camera!$A$16:$C$18,TRANSPOSE(AH113:AJ113)))) -> 214.2646294 | AM113: 446.0277666 | AN113: -71.76280393 | AP113: =camera!$B$5*AM113/AN113 -> -3107.652866 | AQ113: =camera!$B$5*AL113/AN113 -> -1492.866901 | AS113: =IF( AND( (camera!$B$3) > (AQ113+camera!$B$3/2), 0 < (AQ113+camera!$B$3/2), AN113 >= 0 ), AQ113+camera!$B$3/2, 0)*-1+camera!$B$3 -> 1000 | AT113: =IF( AND( (camera!$B$4) > (AP113+camera!$B$4/2), 0 < (AP113+camera!$B$4/2), AN113 >= 0 ), AP113+camera!$B$4/2, 0) -> 0 | AX113: -557.6722 | AY113: -251.7641 | AZ113: 2917.8799 | BB113: =MMULT( MMULT(AX113:AZ113-$B$2:$D$2, TRANSPOSE($A$16:$C$18)), TRANSPOSE($A$12:$C$14)) -> -2115.021002 | BC113: -4522.457777 | BD113: 3461.073928 | BF113: -653.3315773 | BG113: -305.5440372 | BI113: 805.5440372 | BJ113: 0
U114: 48.3477 | V114: 60 | Z114: 'Ruchbah' | AB114: 1.430216 | AC114: 60.235283 | AE114: 60.235283 | AF114: 21.45324 | AH114: =camera!$B$5*COS(RADIANS(AE114))*COS(RADIANS(AF114)) -> 231.0221803 | AI114: =camera!$B$5*COS(RADIANS(AE114))*SIN(RADIANS(AF114)) -> 90.78433095 | AJ114: =camera!$B$5*SIN(RADIANS(AE114)) -> 434.0356638 | AL114: =TRANSPOSE(MMULT(camera!$A$12:$C$14,MMULT(camera!$A$16:$C$18,TRANSPOSE(AH114:AJ114)))) -> -446.642622 | AM114: -222.2306954 | AN114: 33.52441265 | AP114: =camera!$B$5*AM114/AN114 -> -3314.460684 | AQ114: =camera!$B$5*AL114/AN114 -> -6661.453351 | AS114: =IF( AND( (camera!$B$3) > (AQ114+camera!$B$3/2), 0 < (AQ114+camera!$B$3/2), AN114 >= 0 ), AQ114+camera!$B$3/2, 0)*-1+camera!$B$3 -> 1000 | AT114: =IF( AND( (camera!$B$4) > (AP114+camera!$B$4/2), 0 < (AP114+camera!$B$4/2), AN114 >= 0 ), AP114+camera!$B$4/2, 0) -> 0 | AX114: -419.5258 | AY114: -524.2912 | AZ114: 2750.4574 | BB114: =MMULT( MMULT(AX114:AZ114-$B$2:$D$2, TRANSPOSE($A$16:$C$18)), TRANSPOSE($A$12:$C$14)) -> -1905.089041 | BC114: -4683.83079 | BD114: 3234.638366 | BF114: -724.0115062 | BG114: -294.4825395 | BI114: 794.4825395 | BJ114: 0
U115: 48.3477 | V115: 470 | Z115: 'Mufrid' | AB115: 13.911411 | AC115: 18.397717 | AE115: 18.397717 | AF115: -151.328835 | AH115: =camera!$B$5*COS(RADIANS(AE115))*COS(RADIANS(AF115)) -> -416.2716035 | AI115: =camera!$B$5*COS(RADIANS(AE115))*SIN(RADIANS(AF115)) -> -227.6298319 | AJ115: =camera!$B$5*SIN(RADIANS(AE115)) -> 157.805614 | AL115: =TRANSPOSE(MMULT(camera!$A$12:$C$14,MMULT(camera!$A$16:$C$18,TRANSPOSE(AH115:AJ115)))) -> -109.7310648 | AM115: 394.8483173 | AN115: -286.4505189 | AP115: =camera!$B$5*AM115/AN115 -> -689.2085914 | AQ115: =camera!$B$5*AL115/AN115 -> 191.5358108 | AS115: =IF( AND( (camera!$B$3) > (AQ115+camera!$B$3/2), 0 < (AQ115+camera!$B$3/2), AN115 >= 0 ), AQ115+camera!$B$3/2, 0)*-1+camera!$B$3 -> 1000 | AT115: =IF( AND( (camera!$B$4) > (AP115+camera!$B$4/2), 0 < (AP115+camera!$B$4/2), AN115 >= 0 ), AP115+camera!$B$4/2, 0) -> 0 | AX115: -667.3892 | AY115: -361.4811 | AZ115: 2750.4574 | BB115: =MMULT( MMULT(AX115:AZ115-$B$2:$D$2, TRANSPOSE($A$16:$C$18)), TRANSPOSE($A$12:$C$14)) -> -1929.501863 | BC115: -4422.72075 | BD115: 3373.09036 | BF115: -655.5888337 | BG115: -286.01396 | BI115: 786.01396 | BJ115: 0
U116: 49.1216 | V116: 42.3099 | Z116: '' | AB116: 14.975537 | AC116: -43.13396 | AE116: -43.13396 | AF116: -135.366945 | AH116: =camera!$B$5*COS(RADIANS(AE116))*COS(RADIANS(AF116)) -> -259.6552034 | AI116: =camera!$B$5*COS(RADIANS(AE116))*SIN(RADIANS(AF116)) -> -256.3504524 | AJ116: =camera!$B$5*SIN(RADIANS(AE116)) -> -341.8532155 | AL116: =TRANSPOSE(MMULT(camera!$A$12:$C$14,MMULT(camera!$A$16:$C$18,TRANSPOSE(AH116:AJ116)))) -> 384.9348287 | AM116: 236.3247229 | AN116: -214.419689 | AP116: =camera!$B$5*AM116/AN116 -> -551.0798098 | AQ116: =camera!$B$5*AL116/AN116 -> -897.6200612 | AS116: =IF( AND( (camera!$B$3) > (AQ116+camera!$B$3/2), 0 < (AQ116+camera!$B$3/2), AN116 >= 0 ), AQ116+camera!$B$3/2, 0)*-1+camera!$B$3 -> 1000 | AT116: =IF( AND( (camera!$B$4) > (AP116+camera!$B$4/2), 0 < (AP116+camera!$B$4/2), AN116 >= 0 ), AP116+camera!$B$4/2, 0) -> 0 | AX116: -828.8271 | AY116: 176.7723 | AZ116: 2412.638 | BB116: =MMULT( MMULT(AX116:AZ116-$B$2:$D$2, TRANSPOSE($A$16:$C$18)), TRANSPOSE($A$12:$C$14)) -> -1687.48248 | BC116: -4214.985295 | BD116: 3945.954624 | BF116: -534.089428 | BG116: -213.8243646 | BI116: 713.8243646 | BJ116: 0
U117: 49.1216 | V117: 452.3099 | Z117: 'Hassaleh' | AB117: 4.949894 | AC117: 33.16609 | AE117: 33.16609 | AF117: 74.24841 | AH117: =camera!$B$5*COS(RADIANS(AE117))*COS(RADIANS(AF117)) -> 113.6209826 | AI117: =camera!$B$5*COS(RADIANS(AE117))*SIN(RADIANS(AF117)) -> 402.8268258 | AJ117: =camera!$B$5*SIN(RADIANS(AE117)) -> 273.533948 | AL117: =TRANSPOSE(MMULT(camera!$A$12:$C$14,MMULT(camera!$A$16:$C$18,TRANSPOSE(AH117:AJ117)))) -> -340.781905 | AM117: -78.0799493 | AN117: 357.4509963 | AP117: =camera!$B$5*AM117/AN117 -> -109.2176971 | AQ117: =camera!$B$5*AL117/AN117 -> -476.6833896 | AS117: =IF( AND( (camera!$B$3) > (AQ117+camera!$B$3/2), 0 < (AQ117+camera!$B$3/2), AN117 >= 0 ), AQ117+camera!$B$3/2, 0)*-1+camera!$B$3 -> 976.6833896 | AT117: =IF( AND( (camera!$B$4) > (AP117+camera!$B$4/2), 0 < (AP117+camera!$B$4/2), AN117 >= 0 ), AP117+camera!$B$4/2, 0) -> 390.7823029 | AX117: -773.5455 | AY117: -90.1509 | AZ117: 2412.638 | BB117: =MMULT( MMULT(AX117:AZ117-$B$2:$D$2, TRANSPOSE($A$16:$C$18)), TRANSPOSE($A$12:$C$14)) -> -1642.144787 | BC117: -4293.320422 | BD117: 3688.83179 | BF117: -581.9349684 | BG117: -222.583311 | BI117: 722.583311 | BJ117: 0
U118: 50 | V118: 120 | Z118: '' | AB118: 10.779488 | AC118: -49.420255 | AE118: -49.420255 | AF118: 161.69232 | AH118: =camera!$B$5*COS(RADIANS(AE118))*COS(RADIANS(AF118)) -> -308.7896798 | AI118: =camera!$B$5*COS(RADIANS(AE118))*SIN(RADIANS(AF118)) -> 102.1683424 | AJ118: =camera!$B$5*SIN(RADIANS(AE118)) -> -379.7506596 | AL118: =TRANSPOSE(MMULT(camera!$A$12:$C$14,MMULT(camera!$A$16:$C$18,TRANSPOSE(AH118:AJ118)))) -> 360.9809161 | AM118: 316.5191996 | AN118: 139.6723827 | AP118: =camera!$B$5*AM118/AN118 -> 1133.077254 | AQ118: =camera!$B$5*AL118/AN118 -> 1292.241563 | AS118: =IF( AND( (camera!$B$3) > (AQ118+camera!$B$3/2), 0 < (AQ118+camera!$B$3/2), AN118 >= 0 ), AQ118+camera!$B$3/2, 0)*-1+camera!$B$3 -> 1000 | AT118: =IF( AND( (camera!$B$4) > (AP118+camera!$B$4/2), 0 < (AP118+camera!$B$4/2), AN118 >= 0 ), AP118+camera!$B$4/2, 0) -> 0 | AX118: -830.1993 | AY118: -113.6177 | AZ118: 2513.6864 | BB118: =MMULT( MMULT(AX118:AZ118-$B$2:$D$2, TRANSPOSE($A$16:$C$18)), TRANSPOSE($A$12:$C$14)) -> -1736.741151 | BC118: -4238.927473 | BD118: 3643.399885 | BF118: -581.7269043 | BG118: -238.3407265 | BI118: 738.3407265 | BJ118: 0
U119: 50 | V119: 530 | Z119: '' | AB119: 12.619739 | AC119: -69.135564 | AE119: -69.135564 | AF119: -170.703915 | AH119: =camera!$B$5*COS(RADIANS(AE119))*COS(RADIANS(AF119)) -> -175.7402755 | AI119: =camera!$B$5*COS(RADIANS(AE119))*SIN(RADIANS(AF119)) -> -28.76624363 | AJ119: =camera!$B$5*SIN(RADIANS(AE119)) -> -467.2128624 | AL119: =TRANSPOSE(MMULT(camera!$A$12:$C$14,MMULT(camera!$A$16:$C$18,TRANSPOSE(AH119:AJ119)))) -> 467.7507766 | AM119: 172.5643874 | AN119: 37.82516559 | AP119: =camera!$B$5*AM119/AN119 -> 2281.079074 | AQ119: =camera!$B$5*AL119/AN119 -> 6183.063172 | AS119: =IF( AND( (camera!$B$3) > (AQ119+camera!$B$3/2), 0 < (AQ119+camera!$B$3/2), AN119 >= 0 ), AQ119+camera!$B$3/2, 0)*-1+camera!$B$3 -> 1000 | AT119: =IF( AND( (camera!$B$4) > (AP119+camera!$B$4/2), 0 < (AP119+camera!$B$4/2), AN119 >= 0 ), AP119+camera!$B$4/2, 0) -> 0 | AX119: -890.341 | AY119: 176.7723 | AZ119: 2513.6864 | BB119: =MMULT( MMULT(AX119:AZ119-$B$2:$D$2, TRANSPOSE($A$16:$C$18)), TRANSPOSE($A$12:$C$14)) -> -1786.06475 | BC119: -4153.705474 | BD119: 3923.127913 | BF119: -529.3869542 | BG119: -227.6327447 | BI119: 727.6327447 | BJ119: 0
U120: 50.058 | V120: 137.1622 | Z120: '' | AB120: 17.512732 | AC120: -37.295811 | AE120: -37.295811 | AF120: -97.30902 | AH120: =camera!$B$5*COS(RADIANS(AE120))*COS(RADIANS(AF120)) -> -50.60318839 | AI120: =camera!$B$5*COS(RADIANS(AE120))*SIN(RADIANS(AF120)) -> -394.5268728 | AJ120: =camera!$B$5*SIN(RADIANS(AE120)) -> -302.9651201 | AL120: =TRANSPOSE(MMULT(camera!$A$12:$C$14,MMULT(camera!$A$16:$C$18,TRANSPOSE(AH120:AJ120)))) -> 367.3764254 | AM120: 16.02534535 | AN120: -338.7886515 | AP120: =camera!$B$5*AM120/AN120 -> -23.65094769 | AQ120: =camera!$B$5*AL120/AN120 -> -542.1911622 | AS120: =IF( AND( (camera!$B$3) > (AQ120+camera!$B$3/2), 0 < (AQ120+camera!$B$3/2), AN120 >= 0 ), AQ120+camera!$B$3/2, 0)*-1+camera!$B$3 -> 1000 | AT120: =IF( AND( (camera!$B$4) > (AP120+camera!$B$4/2), 0 < (AP120+camera!$B$4/2), AN120 >= 0 ), AP120+camera!$B$4/2, 0) -> 0 | AX120: -913.0641 | AY120: 176.7723 | AZ120: 2632.0719 | BB120: =MMULT( MMULT(AX120:AZ120-$B$2:$D$2, TRANSPOSE($A$16:$C$18)), TRANSPOSE($A$12:$C$14)) -> -1902.307807 | BC120: -4131.068843 | BD120: 3900.620126 | BF120: -529.5400102 | BG120: -243.846843 | BI120: 743.846843 | BJ120: 0
U121: 50.058 | V121: 547.1622 | Z121: '' | AB121: 7.285711 | AC121: -37.09747 | AE121: -37.09747 | AF121: 109.285665 | AH121: =camera!$B$5*COS(RADIANS(AE121))*COS(RADIANS(AF121)) -> -131.7167106 | AI121: =camera!$B$5*COS(RADIANS(AE121))*SIN(RADIANS(AF121)) -> 376.4257709 | AJ121: =camera!$B$5*SIN(RADIANS(AE121)) -> -301.5863842 | AL121: =TRANSPOSE(MMULT(camera!$A$12:$C$14,MMULT(camera!$A$16:$C$18,TRANSPOSE(AH121:AJ121)))) -> 233.8811543 | AM121: 164.0231564 | AN121: 410.3608288 | AP121: =camera!$B$5*AM121/AN121 -> 199.8523554 | AQ121: =camera!$B$5*AL121/AN121 -> 284.9701262 | AS121: =IF( AND( (camera!$B$3) > (AQ121+camera!$B$3/2), 0 < (AQ121+camera!$B$3/2), AN121 >= 0 ), AQ121+camera!$B$3/2, 0)*-1+camera!$B$3 -> 215.0298738 | AT121: =IF( AND( (camera!$B$4) > (AP121+camera!$B$4/2), 0 < (AP121+camera!$B$4/2), AN121 >= 0 ), AP121+camera!$B$4/2, 0) -> 699.8523554 | AX121: -851.1271 | AY121: -122.2863 | AZ121: 2632.0719 | BB121: =MMULT( MMULT(AX121:AZ121-$B$2:$D$2, TRANSPOSE($A$16:$C$18)), TRANSPOSE($A$12:$C$14)) -> -1851.51182 | BC121: -4218.834828 | BD121: 3612.541772 | BF121: -583.9150235 | BG121: -256.2616486 | BI121: 756.2616486 | BJ121: 0
U122: 50.0833 | V122: 146.2604 | Z122: 'Kaus Meridionalis' | AB122: 18.3499 | AC122: -29.828103 | AE122: -29.828103 | AF122: -84.7515 | AH122: =camera!$B$5*COS(RADIANS(AE122))*COS(RADIANS(AF122)) -> 39.67850657 | AI122: =camera!$B$5*COS(RADIANS(AE122))*SIN(RADIANS(AF122)) -> -431.9421751 | AJ122: =camera!$B$5*SIN(RADIANS(AE122)) -> -248.6997657 | AL122: =TRANSPOSE(MMULT(camera!$A$12:$C$14,MMULT(camera!$A$16:$C$18,TRANSPOSE(AH122:AJ122)))) -> 319.0414968 | AM122: -77.17375897 | AN122: -377.1693707 | AP122: =camera!$B$5*AM122/AN122 -> 102.3065033 | AQ122: =camera!$B$5*AL122/AN122 -> -422.9419481 | AS122: =IF( AND( (camera!$B$3) > (AQ122+camera!$B$3/2), 0 < (AQ122+camera!$B$3/2), AN122 >= 0 ), AQ122+camera!$B$3/2, 0)*-1+camera!$B$3 -> 1000 | AT122: =IF( AND( (camera!$B$4) > (AP122+camera!$B$4/2), 0 < (AP122+camera!$B$4/2), AN122 >= 0 ), AP122+camera!$B$4/2, 0) -> 0 | AX122: -625.4609 | AY122: 176.7723 | AZ122: 2321.7455 | BB122: =MMULT( MMULT(AX122:AZ122-$B$2:$D$2, TRANSPOSE($A$16:$C$18)), TRANSPOSE($A$12:$C$14)) -> -1601.048674 | BC122: -4417.577626 | BD122: 3979.193197 | BF122: -555.0845871 | BG122: -201.1775497 | BI122: 701.1775497 | BJ122: 0
U123: 50.0833 | V123: 556.2604 | Z123: 'Tarazed' | AB123: 19.770994 | AC123: 10.613261 | AE123: 10.613261 | AF123: -63.43509 | AH123: =camera!$B$5*COS(RADIANS(AE123))*COS(RADIANS(AF123)) -> 219.7804167 | AI123: =camera!$B$5*COS(RADIANS(AE123))*SIN(RADIANS(AF123)) -> -439.5635412 | AJ123: =camera!$B$5*SIN(RADIANS(AE123)) -> 92.08942211 | AL123: =TRANSPOSE(MMULT(camera!$A$12:$C$14,MMULT(camera!$A$16:$C$18,TRANSPOSE(AH123:AJ123)))) -> -17.97767803 | AM123: -257.2545728 | AN123: -428.3653672 | AP123: =camera!$B$5*AM123/AN123 -> 300.27471 | AQ123: =camera!$B$5*AL123/AN123 -> 20.98404704 | AS123: =IF( AND( (camera!$B$3) > (AQ123+camera!$B$3/2), 0 < (AQ123+camera!$B$3/2), AN123 >= 0 ), AQ123+camera!$B$3/2, 0)*-1+camera!$B$3 -> 1000 | AT123: =IF( AND( (camera!$B$4) > (AP123+camera!$B$4/2), 0 < (AP123+camera!$B$4/2), AN123 >= 0 ), AP123+camera!$B$4/2, 0) -> 0 | AX123: -586.2469 | AY123: -12.5693 | AZ123: 2321.7455 | BB123: =MMULT( MMULT(AX123:AZ123-$B$2:$D$2, TRANSPOSE($A$16:$C$18)), TRANSPOSE($A$12:$C$14)) -> -1568.888446 | BC123: -4473.144612 | BD123: 3796.80348 | BF123: -589.0671766 | BG123: -206.6064855 | BI123: 706.6064855 | BJ123: 0
U124: 50.4314 | V124: 49.3062 | Z124: '' | AB124: 16.239094 | AC124: -3.694323 | AE124: -3.694323 | AF124: -116.41359 | AH124: =camera!$B$5*COS(RADIANS(AE124))*COS(RADIANS(AF124)) -> -221.9616153 | AI124: =camera!$B$5*COS(RADIANS(AE124))*SIN(RADIANS(AF124)) -> -446.8726043 | AJ124: =camera!$B$5*SIN(RADIANS(AE124)) -> -32.21671606 | AL124: =TRANSPOSE(MMULT(camera!$A$12:$C$14,MMULT(camera!$A$16:$C$18,TRANSPOSE(AH124:AJ124)))) -> 112.3898628 | AM124: 182.1694706 | AN124: -451.8659123 | AP124: =camera!$B$5*AM124/AN124 -> -201.5746991 | AQ124: =camera!$B$5*AL124/AN124 -> -124.361962 | AS124: =IF( AND( (camera!$B$3) > (AQ124+camera!$B$3/2), 0 < (AQ124+camera!$B$3/2), AN124 >= 0 ), AQ124+camera!$B$3/2, 0)*-1+camera!$B$3 -> 1000 | AT124: =IF( AND( (camera!$B$4) > (AP124+camera!$B$4/2), 0 < (AP124+camera!$B$4/2), AN124 >= 0 ), AP124+camera!$B$4/2, 0) -> 0 | AX124: -687.2953 | AY124: -54.4249 | AZ124: 2346.264 | BB124: =MMULT( MMULT(AX124:AZ124-$B$2:$D$2, TRANSPOSE($A$16:$C$18)), TRANSPOSE($A$12:$C$14)) -> -1584.264653 | BC124: -4376.128688 | BD124: 3742.80987 | BF124: -584.6047274 | BG124: -211.6410809 | BI124: 711.6410809 | BJ124: 0
U125: 50.4314 | V125: 459.3062 | Z125: '' | AB125: 16.39986 | AC125: 61.514213 | AE125: 61.514213 | AF125: -114.0021 | AH125: =camera!$B$5*COS(RADIANS(AE125))*COS(RADIANS(AF125)) -> -97.00262306 | AI125: =camera!$B$5*COS(RADIANS(AE125))*SIN(RADIANS(AF125)) -> -217.8499695 | AJ125: =camera!$B$5*SIN(RADIANS(AE125)) -> 439.4677257 | AL125: =TRANSPOSE(MMULT(camera!$A$12:$C$14,MMULT(camera!$A$16:$C$18,TRANSPOSE(AH125:AJ125)))) -> -393.637845 | AM125: 77.6466229 | AN125: -298.3626132 | AP125: =camera!$B$5*AM125/AN125 -> -130.1212341 | AQ125: =camera!$B$5*AL125/AN125 -> 659.6634893 | AS125: =IF( AND( (camera!$B$3) > (AQ125+camera!$B$3/2), 0 < (AQ125+camera!$B$3/2), AN125 >= 0 ), AQ125+camera!$B$3/2, 0)*-1+camera!$B$3 -> 1000 | AT125: =IF( AND( (camera!$B$4) > (AP125+camera!$B$4/2), 0 < (AP125+camera!$B$4/2), AN125 >= 0 ), AP125+camera!$B$4/2, 0) -> 0 | AX125: -735.1778 | AY125: 176.7723 | AZ125: 2346.264 | BB125: =MMULT( MMULT(AX125:AZ125-$B$2:$D$2, TRANSPOSE($A$16:$C$18)), TRANSPOSE($A$12:$C$14)) -> -1623.53418 | BC125: -4308.278231 | BD125: 3965.518422 | BF125: -543.2175284 | BG125: -204.7064226 | BI125: 704.7064226 | BJ125: 0
U126: 51.4543 | V126: 37.8874 | Z126: '' | AB126: 10.715949 | AC126: -64.39445 | AE126: -64.39445 | AF126: 160.739235 | AH126: =camera!$B$5*COS(RADIANS(AE126))*COS(RADIANS(AF126)) -> -203.9915521 | AI126: =camera!$B$5*COS(RADIANS(AE126))*SIN(RADIANS(AF126)) -> 71.28004282 | AJ126: =camera!$B$5*SIN(RADIANS(AE126)) -> -450.8953339 | AL126: =TRANSPOSE(MMULT(camera!$A$12:$C$14,MMULT(camera!$A$16:$C$18,TRANSPOSE(AH126:AJ126)))) -> 434.8019689 | AM126: 209.4277678 | AN126: 130.7182388 | AP126: =camera!$B$5*AM126/AN126 -> 801.065596 | AQ126: =camera!$B$5*AL126/AN126 -> 1663.126633 | AS126: =IF( AND( (camera!$B$3) > (AQ126+camera!$B$3/2), 0 < (AQ126+camera!$B$3/2), AN126 >= 0 ), AQ126+camera!$B$3/2, 0)*-1+camera!$B$3 -> 1000 | AT126: =IF( AND( (camera!$B$4) > (AP126+camera!$B$4/2), 0 < (AP126+camera!$B$4/2), AN126 >= 0 ), AP126+camera!$B$4/2, 0) -> 0 | AX126: -422.0946 | AY126: 176.7723 | AZ126: 2412.638 | BB126: =MMULT( MMULT(AX126:AZ126-$B$2:$D$2, TRANSPOSE($A$16:$C$18)), TRANSPOSE($A$12:$C$14)) -> -1693.638147 | BC126: -4620.170055 | BD126: 3980.865146 | BF126: -580.2972327 | BG126: -212.7223713 | BI126: 712.7223713 | BJ126: 0
U127: 51.4543 | V127: 447.8874 | Z127: 'Porrima' | AB127: 12.694345 | AC127: -1.449375 | AE127: -1.449375 | AF127: -169.584825 | AH127: =camera!$B$5*COS(RADIANS(AE127))*COS(RADIANS(AF127)) -> -491.6044803 | AI127: =camera!$B$5*COS(RADIANS(AE127))*SIN(RADIANS(AF127)) -> -90.36090178 | AJ127: =camera!$B$5*SIN(RADIANS(AE127)) -> -12.64683402 | AL127: =TRANSPOSE(MMULT(camera!$A$12:$C$14,MMULT(camera!$A$16:$C$18,TRANSPOSE(AH127:AJ127)))) -> 35.52615361 | AM127: 481.8583053 | AN127: -128.6486146 | AP127: =camera!$B$5*AM127/AN127 -> -1872.769119 | AQ127: =camera!$B$5*AL127/AN127 -> -138.0743731 | AS127: =IF( AND( (camera!$B$3) > (AQ127+camera!$B$3/2), 0 < (AQ127+camera!$B$3/2), AN127 >= 0 ), AQ127+camera!$B$3/2, 0)*-1+camera!$B$3 -> 1000 | AT127: =IF( AND( (camera!$B$4) > (AP127+camera!$B$4/2), 0 < (AP127+camera!$B$4/2), AN127 >= 0 ), AP127+camera!$B$4/2, 0) -> 0 | AX127: -398.9484 | AY127: 65.0123 | AZ127: 2412.638 | BB127: =MMULT( MMULT(AX127:AZ127-$B$2:$D$2, TRANSPOSE($A$16:$C$18)), TRANSPOSE($A$12:$C$14)) -> -1674.655381 | BC127: -4652.968703 | BD127: 3873.208527 | BF127: -600.6607532 | BG127: -216.1845107 | BI127: 716.1845107 | BJ127: 0
U128: 51.8987 | V128: 105 | Z128: 'Hatsya' | AB128: 5.590551 | AC128: -5.909901 | AE128: -5.909901 | AF128: 83.858265 | AH128: =camera!$B$5*COS(RADIANS(AE128))*COS(RADIANS(AF128)) -> 53.20984657 | AI128: =camera!$B$5*COS(RADIANS(AE128))*SIN(RADIANS(AF128)) -> 494.4879109 | AJ128: =camera!$B$5*SIN(RADIANS(AE128)) -> -51.48221246 | AL128: =TRANSPOSE(MMULT(camera!$A$12:$C$14,MMULT(camera!$A$16:$C$18,TRANSPOSE(AH128:AJ128)))) -> -35.64539407 | AM128: -9.909905884 | AN128: 498.6293209 | AP128: =camera!$B$5*AM128/AN128 -> -9.937147164 | AQ128: =camera!$B$5*AL128/AN128 -> -35.74337948 | AS128: =IF( AND( (camera!$B$3) > (AQ128+camera!$B$3/2), 0 < (AQ128+camera!$B$3/2), AN128 >= 0 ), AQ128+camera!$B$3/2, 0)*-1+camera!$B$3 -> 535.7433795 | AT128: =IF( AND( (camera!$B$4) > (AP128+camera!$B$4/2), 0 < (AP128+camera!$B$4/2), AN128 >= 0 ), AP128+camera!$B$4/2, 0) -> 490.0628528 | AX128: -485.1986 | AY128: 29.2863 | AZ128: 2346.264 | BB128: =MMULT( MMULT(AX128:AZ128-$B$2:$D$2, TRANSPOSE($A$16:$C$18)), TRANSPOSE($A$12:$C$14)) -> -1601.804255 | BC128: -4570.160437 | BD128: 3842.281895 | BF128: -594.7195653 | BG128: -208.4443956 | BI128: 708.4443956 | BJ128: 0
U129: 51.8987 | V129: 90 | Z129: '' | AB129: 13.343296 | AC129: -36.712295 | AE129: -36.712295 | AF129: -159.85056 | AH129: =camera!$B$5*COS(RADIANS(AE129))*COS(RADIANS(AF129)) -> -376.2922238 | AI129: =camera!$B$5*COS(RADIANS(AE129))*SIN(RADIANS(AF129)) -> -138.0716978 | AJ129: =camera!$B$5*SIN(RADIANS(AE129)) -> -298.8985924 | AL129: =TRANSPOSE(MMULT(camera!$A$12:$C$14,MMULT(camera!$A$16:$C$18,TRANSPOSE(AH129:AJ129)))) -> 323.9372849 | AM129: 362.826577 | AN129: -115.851243 | AP129: =camera!$B$5*AM129/AN129 -> -1565.91577 | AQ129: =camera!$B$5*AL129/AN129 -> -1398.074274 | AS129: =IF( AND( (camera!$B$3) > (AQ129+camera!$B$3/2), 0 < (AQ129+camera!$B$3/2), AN129 >= 0 ), AQ129+camera!$B$3/2, 0)*-1+camera!$B$3 -> 1000 | AT129: =IF( AND( (camera!$B$4) > (AP129+camera!$B$4/2), 0 < (AP129+camera!$B$4/2), AN129 >= 0 ), AP129+camera!$B$4/2, 0) -> 0 | AX129: -515.7439 | AY129: 176.7723 | AZ129: 2346.264 | BB129: =MMULT( MMULT(AX129:AZ129-$B$2:$D$2, TRANSPOSE($A$16:$C$18)), TRANSPOSE($A$12:$C$14)) -> -1626.855188 | BC129: -4526.877119 | BD129: 3984.352796 | BF129: -568.0818632 | BG129: -204.1555143 | BI129: 704.1555143 | BJ129: 0
U130: 51.8987 | V130: 75 | Z130: 'Zubenelgenubi' | AB130: 14.847977 | AC130: -16.041778 | AE130: -16.041778 | AF130: -137.280345 | AH130: =camera!$B$5*COS(RADIANS(AE130))*COS(RADIANS(AF130)) -> -353.036867 | AI130: =camera!$B$5*COS(RADIANS(AE130))*SIN(RADIANS(AF130)) -> -325.9973472 | AJ130: =camera!$B$5*SIN(RADIANS(AE130)) -> -138.1690998 | AL130: =TRANSPOSE(MMULT(camera!$A$12:$C$14,MMULT(camera!$A$16:$C$18,TRANSPOSE(AH130:AJ130)))) -> 197.806446 | AM130: 323.2809142 | AN130: -326.1319677 | AP130: =camera!$B$5*AM130/AN130 -> -495.628988 | AQ130: =camera!$B$5*AL130/AN130 -> -303.2613568 | AS130: =IF( AND( (camera!$B$3) > (AQ130+camera!$B$3/2), 0 < (AQ130+camera!$B$3/2), AN130 >= 0 ), AQ130+camera!$B$3/2, 0)*-1+camera!$B$3 -> 1000 | AT130: =IF( AND( (camera!$B$4) > (AP130+camera!$B$4/2), 0 < (AP130+camera!$B$4/2), AN130 >= 0 ), AP130+camera!$B$4/2, 0) -> 0 | AX130: -337.8576 | AY130: 176.7723 | AZ130: 2632.0719 | BB130: =MMULT( MMULT(AX130:AZ130-$B$2:$D$2, TRANSPOSE($A$16:$C$18)), TRANSPOSE($A$12:$C$14)) -> -1911.013233 | BC130: -4704.086508 | BD130: 3949.99105 | BF130: -595.4553376 | BG130: -241.9009573 | BI130: 741.9009573 | BJ130: 0
U131: 51.8987 | V131: 515 | Z131: 'Cebalrai' | AB131: 17.724543 | AC131: 4.567303 | AE131: =AC131 -> 4.567303 | AF131: =IF(AB131*15/1>180, (AB131*15/1)-360, AB131*15/1) -> -94.131855 | AH131: =camera!$B$5*COS(RADIANS(AE131))*COS(RADIANS(AF131)) -> -35.91159137 | AI131: =camera!$B$5*COS(RADIANS(AE131))*SIN(RADIANS(AF131)) -> -497.1168074 | AJ131: =camera!$B$5*SIN(RADIANS(AE131)) -> 39.8150396 | AL131: =TRANSPOSE(MMULT(camera!$A$12:$C$14,MMULT(camera!$A$16:$C$18,TRANSPOSE(AH131:AJ131)))) -> 47.32828299 | AM131: -7.551647658 | AN131: -497.6977057 | AP131: =camera!$B$5*AM131/AN131 -> 7.586580742 | AQ131: =camera!$B$5*AL131/AN131 -> -47.54721837 | AS131: =IF( AND( (camera!$B$3) > (AQ131+camera!$B$3/2), 0 < (AQ131+camera!$B$3/2), AN131 >= 0 ), AQ131+camera!$B$3/2, 0)*-1+camera!$B$3 -> 1000 | AT131: =IF( AND( (camera!$B$4) > (AP131+camera!$B$4/2), 0 < (AP131+camera!$B$4/2), AN131 >= 0 ), AP131+camera!$B$4/2, 0) -> 0 | AX131: -321.3668 | AY131: 97.1476 | AZ131: 2632.0719 | BB131: =MMULT( MMULT(AX131:AZ131-$B$2:$D$2, TRANSPOSE($A$16:$C$18)), TRANSPOSE($A$12:$C$14)) -> -1897.488742 | BC131: -4727.454306 | BD131: 3873.289853 | BF131: -610.2634304 | BG131: -244.9453584 | BI131: 744.9453584 | BJ131: 0
U132: 51.8987 | V132: 500 | Z132: 'Cursa' | AB132: 5.130829 | AC132: -5.086446 | AE132: -5.086446 | AF132: 76.962435 | AH132: =camera!$B$5*COS(RADIANS(AE132))*COS(RADIANS(AF132)) -> 112.3507386 | AI132: =camera!$B$5*COS(RADIANS(AE132))*SIN(RADIANS(AF132)) -> 485.1929736 | AJ132: =camera!$B$5*SIN(RADIANS(AE132)) -> -44.32933449 | AL132: =TRANSPOSE(MMULT(camera!$A$12:$C$14,MMULT(camera!$A$16:$C$18,TRANSPOSE(AH132:AJ132)))) -> -41.97676081 | AM132: -69.63585618 | AN132: 493.3445035 | AP132: =camera!$B$5*AM132/AN132 -> -70.57528329 | AQ132: =camera!$B$5*AL132/AN132 -> -42.54305107 | AS132: =IF( AND( (camera!$B$3) > (AQ132+camera!$B$3/2), 0 < (AQ132+camera!$B$3/2), AN132 >= 0 ), AQ132+camera!$B$3/2, 0)*-1+camera!$B$3 -> 542.5430511 | AT132: =IF( AND( (camera!$B$4) > (AP132+camera!$B$4/2), 0 < (AP132+camera!$B$4/2), AN132 >= 0 ), AP132+camera!$B$4/2, 0) -> 429.4247167 | AX132: -342.2946 | AY132: 88.479 | AZ132: 2513.6864 | BB132: =MMULT( MMULT(AX132:AZ132-$B$2:$D$2, TRANSPOSE($A$16:$C$18)), TRANSPOSE($A$12:$C$14)) -> -1779.085495 | BC132: -4707.36166 | BD132: 3883.546593 | BF132: =$B$5*BC132/BD132 -> -606.0647849 | BG132: =$B$5*BB132/BD132 -> -229.054223 | BI132: =IF( AND( ($B$3) > (BG132+$B$3/2), 0 < (BG132+$B$3/2), BD132 >= 0 ), BG132+$B$3/2, 0)*-1+$B$3 -> 729.054223 | BJ132: =IF( AND( ($B$4) > (BF132+$B$4/2), 0 < (BF132+$B$4/2), BD132 >= 0 ), BF132+$B$4/2, 0) -> 0
U133: 51.8987 | V133: 485 | Z133: 'Kornephoros' | AB133: 16.503668 | AC133: 21.489613 | AE133: 21.489613 | AF133: -112.44498 | AH133: =camera!$B$5*COS(RADIANS(AE133))*COS(RADIANS(AF133)) -> -177.6275675 | AI133: =camera!$B$5*COS(RADIANS(AE133))*SIN(RADIANS(AF133)) -> -429.9983295 | AJ133: =camera!$B$5*SIN(RADIANS(AE133)) -> 183.1662739 | AL133: =TRANSPOSE(MMULT(camera!$A$12:$C$14,MMULT(camera!$A$16:$C$18,TRANSPOSE(AH133:AJ133)))) -> -103.3109832 | AM133: 139.4748172 | AN133: -468.906831 | AP133: =camera!$B$5*AM133/AN133 -> -148.7233796 | AQ133: =camera!$B$5*AL133/AN133 -> 110.161525 | AS133: =IF( AND( (camera!$B$3) > (AQ133+camera!$B$3/2), 0 < (AQ133+camera!$B$3/2), AN133 >= 0 ), AQ133+camera!$B$3/2, 0)*-1+camera!$B$3 -> 1000 | AT133: =IF( AND( (camera!$B$4) > (AP133+camera!$B$4/2), 0 < (AP133+camera!$B$4/2), AN133 >= 0 ), AP133+camera!$B$4/2, 0) -> 0 | AX133: -360.5807 | AY133: 176.7723 | AZ133: 2513.6864 | BB133: =MMULT( MMULT(AX133:AZ133-$B$2:$D$2, TRANSPOSE($A$16:$C$18)), TRANSPOSE($A$12:$C$14)) -> -1794.082373 | BC133: -4681.449876 | BD133: 3968.598115 | BF133: -589.8115331 | BG133: -226.0347762 | BI133: 726.0347762 | BJ133: 0
U134: 52.5008 | V134: 150.6371 | Z134: 'Rasalgethi' | AB134: 17.244127 | AC134: 14.390333 | AE134: 14.390333 | AF134: -101.338095 | AH134: =camera!$B$5*COS(RADIANS(AE134))*COS(RADIANS(AF134)) -> -95.21492539 | AI134: =camera!$B$5*COS(RADIANS(AE134))*SIN(RADIANS(AF134)) -> -474.8607872 | AJ134: =camera!$B$5*SIN(RADIANS(AE134)) -> 124.2632317 | AL134: =TRANSPOSE(MMULT(camera!$A$12:$C$14,MMULT(camera!$A$16:$C$18,TRANSPOSE(AH134:AJ134)))) -> -38.78943971 | AM134: 53.46575924 | AN134: -495.6175864 | AP134: =camera!$B$5*AM134/AN134 -> -53.93852106 | AQ134: =camera!$B$5*AL134/AN134 -> 39.13242869 | AS134: =IF( AND( (camera!$B$3) > (AQ134+camera!$B$3/2), 0 < (AQ134+camera!$B$3/2), AN134 >= 0 ), AQ134+camera!$B$3/2, 0)*-1+camera!$B$3 -> 1000 | AT134: =IF( AND( (camera!$B$4) > (AP134+camera!$B$4/2), 0 < (AP134+camera!$B$4/2), AN134 >= 0 ), AP134+camera!$B$4/2, 0) -> 0 | AX134: -422.0946 | AY134: 176.7723 | AZ134: 2851.5058 | BB134: =MMULT( MMULT(AX134:AZ134-$B$2:$D$2, TRANSPOSE($A$16:$C$18)), TRANSPOSE($A$12:$C$14)) -> -2125.838559 | BC134: -4620.170055 | BD134: 3904.656552 | BF134: -591.6231036 | BG134: -272.2183796 | BI134: 772.2183796 | BJ134: 0
U135: 52.5008 | V135: 560.6371 | Z135: '' | AB135: 12.252427 | AC135: -58.748928 | AE135: -58.748928 | AF135: -176.213595 | AH135: =camera!$B$5*COS(RADIANS(AE135))*COS(RADIANS(AF135)) -> -258.8284112 | AI135: =camera!$B$5*COS(RADIANS(AE135))*SIN(RADIANS(AF135)) -> -17.12967998 | AJ135: =camera!$B$5*SIN(RADIANS(AE135)) -> -427.4510822 | AL135: =TRANSPOSE(MMULT(camera!$A$12:$C$14,MMULT(camera!$A$16:$C$18,TRANSPOSE(AH135:AJ135)))) -> 427.8375804 | AM135: 256.3505409 | AN135: 35.20518323 | AP135: =camera!$B$5*AM135/AN135 -> 3640.806799 | AQ135: =camera!$B$5*AL135/AN135 -> 6076.343612 | AS135: =IF( AND( (camera!$B$3) > (AQ135+camera!$B$3/2), 0 < (AQ135+camera!$B$3/2), AN135 >= 0 ), AQ135+camera!$B$3/2, 0)*-1+camera!$B$3 -> 1000 | AT135: =IF( AND( (camera!$B$4) > (AP135+camera!$B$4/2), 0 < (AP135+camera!$B$4/2), AN135 >= 0 ), AP135+camera!$B$4/2, 0) -> 0 | AX135: -398.9484 | AY135: 65.0123 | AZ135: 2851.5058 | BB135: =MMULT( MMULT(AX135:AZ135-$B$2:$D$2, TRANSPOSE($A$16:$C$18)), TRANSPOSE($A$12:$C$14)) -> -2106.855793 | BC135: -4652.968703 | BD135: 3796.999934 | BF135: -612.7164583 | BG135: -277.4369014 | BI135: 777.4369014 | BJ135: 0
U136: 53.3432 | V136: 152.1622 | Z136: 'Rastaban' | AB136: 17.507213 | AC136: 52.301387 | AE136: 52.301387 | AF136: -97.391805 | AH136: =camera!$B$5*COS(RADIANS(AE136))*COS(RADIANS(AF136)) -> -39.33639344 | AI136: =camera!$B$5*COS(RADIANS(AE136))*SIN(RADIANS(AF136)) -> -303.2129976 | AJ136: =camera!$B$5*SIN(RADIANS(AE136)) -> 395.6191682 | AL136: =TRANSPOSE(MMULT(camera!$A$12:$C$14,MMULT(camera!$A$16:$C$18,TRANSPOSE(AH136:AJ136)))) -> -336.5614637 | AM136: 12.75995257 | AN136: -369.5450781 | AP136: =camera!$B$5*AM136/AN136 -> -17.26440606 | AQ136: =camera!$B$5*AL136/AN136 -> 455.372678 | AS136: =IF( AND( (camera!$B$3) > (AQ136+camera!$B$3/2), 0 < (AQ136+camera!$B$3/2), AN136 >= 0 ), AQ136+camera!$B$3/2, 0)*-1+camera!$B$3 -> 1000 | AT136: =IF( AND( (camera!$B$4) > (AP136+camera!$B$4/2), 0 < (AP136+camera!$B$4/2), AN136 >= 0 ), AP136+camera!$B$4/2, 0) -> 0 | AX136: -342.2946 | AY136: 88.479 | AZ136: 2750.4574 | BB136: =MMULT( MMULT(AX136:AZ136-$B$2:$D$2, TRANSPOSE($A$16:$C$18)), TRANSPOSE($A$12:$C$14)) -> -2012.259411 | BC136: -4707.36166 | BD136: 3842.43174 | BF136: -612.5498094 | BG136: -261.8471254 | BI136: 761.8471254 | BJ136: 0
U137: 53.3432 | V137: 562.1622 | Z137: '' | AB137: 15.585681 | AC137: -41.166757 | AE137: -41.166757 | AF137: -126.214785 | AH137: =camera!$B$5*COS(RADIANS(AE137))*COS(RADIANS(AF137)) -> -222.3814451 | AI137: =camera!$B$5*COS(RADIANS(AE137))*SIN(RADIANS(AF137)) -> -303.6812576 | AJ137: =camera!$B$5*SIN(RADIANS(AE137)) -> -329.1263991 | AL137: =TRANSPOSE(MMULT(camera!$A$12:$C$14,MMULT(camera!$A$16:$C$18,TRANSPOSE(AH137:AJ137)))) -> 380.0248767 | AM137: 195.067651 | AN137: -259.8647814 | AP137: =camera!$B$5*AM137/AN137 -> -375.3252941 | AQ137: =camera!$B$5*AL137/AN137 -> -731.1973453 | AS137: =IF( AND( (camera!$B$3) > (AQ137+camera!$B$3/2), 0 < (AQ137+camera!$B$3/2), AN137 >= 0 ), AQ137+camera!$B$3/2, 0)*-1+camera!$B$3 -> 1000 | AT137: =IF( AND( (camera!$B$4) > (AP137+camera!$B$4/2), 0 < (AP137+camera!$B$4/2), AN137 >= 0 ), AP137+camera!$B$4/2, 0) -> 0 | AX137: -360.5807 | AY137: 176.7723 | AZ137: 2750.4574 | BB137: =MMULT( MMULT(AX137:AZ137-$B$2:$D$2, TRANSPOSE($A$16:$C$18)), TRANSPOSE($A$12:$C$14)) -> -2027.25629 | BC137: -4681.449876 | BD137: 3927.483262 | BF137: -595.9859742 | BG137: -258.0859235 | BI137: 758.0859235 | BJ137: 0
U138: 53.3477 | V138: 60 | Z138: 'Nihal' | AB138: 5.470756 | AC138: -20.759441 | AE138: -20.759441 | AF138: 82.06134 | AH138: =camera!$B$5*COS(RADIANS(AE138))*COS(RADIANS(AF138)) -> 64.57306464 | AI138: =camera!$B$5*COS(RADIANS(AE138))*SIN(RADIANS(AF138)) -> 463.0577537 | AJ138: =camera!$B$5*SIN(RADIANS(AE138)) -> -177.2225608 | AL138: =TRANSPOSE(MMULT(camera!$A$12:$C$14,MMULT(camera!$A$16:$C$18,TRANSPOSE(AH138:AJ138)))) -> 93.44972089 | AM138: -23.96920217 | AN138: 490.6043488 | AP138: =camera!$B$5*AM138/AN138 -> -24.42824063 | AQ138: =camera!$B$5*AL138/AN138 -> 95.23939313 | AS138: =IF( AND( (camera!$B$3) > (AQ138+camera!$B$3/2), 0 < (AQ138+camera!$B$3/2), AN138 >= 0 ), AQ138+camera!$B$3/2, 0)*-1+camera!$B$3 -> 404.7606069 | AT138: =IF( AND( (camera!$B$4) > (AP138+camera!$B$4/2), 0 < (AP138+camera!$B$4/2), AN138 >= 0 ), AP138+camera!$B$4/2, 0) -> 475.5717594 | AX138: -625.4609 | AY138: 176.7723 | AZ138: 2942.3983 | BB138: =MMULT( MMULT(AX138:AZ138-$B$2:$D$2, TRANSPOSE($A$16:$C$18)), TRANSPOSE($A$12:$C$14)) -> -2212.272364 | BC138: -4417.577626 | BD138: 3871.41797 | BF138: -570.5374181 | BG138: -285.7186154 | BI138: 785.7186154 | BJ138: 0
U139: 53.3477 | V139: 470 | Z139: '' | AB139: 16.688113 | AC139: 31.602726 | AE139: 31.602726 | AF139: -109.678305 | AH139: =camera!$B$5*COS(RADIANS(AE139))*COS(RADIANS(AF139)) -> -143.4005328 | AI139: =camera!$B$5*COS(RADIANS(AE139))*SIN(RADIANS(AF139)) -> -400.9805017 | AJ139: =camera!$B$5*SIN(RADIANS(AE139)) -> 262.0132143 | AL139: =TRANSPOSE(MMULT(camera!$A$12:$C$14,MMULT(camera!$A$16:$C$18,TRANSPOSE(AH139:AJ139)))) -> -186.4977866 | AM139: 107.907097 | AN139: -451.1924578 | AP139: =camera!$B$5*AM139/AN139 -> -119.5798989 | AQ139: =camera!$B$5*AL139/AN139 -> 206.6721012 | AS139: =IF( AND( (camera!$B$3) > (AQ139+camera!$B$3/2), 0 < (AQ139+camera!$B$3/2), AN139 >= 0 ), AQ139+camera!$B$3/2, 0)*-1+camera!$B$3 -> 1000 | AT139: =IF( AND( (camera!$B$4) > (AP139+camera!$B$4/2), 0 < (AP139+camera!$B$4/2), AN139 >= 0 ), AP139+camera!$B$4/2, 0) -> 0 | AX139: -586.2469 | AY139: -12.5693 | AZ139: 2942.3983 | BB139: =MMULT( MMULT(AX139:AZ139-$B$2:$D$2, TRANSPOSE($A$16:$C$18)), TRANSPOSE($A$12:$C$14)) -> -2180.112135 | BC139: -4473.144612 | BD139: 3689.028252 | BF139: -606.2768169 | BG139: -295.4859636 | BI139: 795.4859636 | BJ139: 0
U140: 54.2944 | V140: 34.3062 | Z140: '' | AB140: 0.427916 | AC140: -77.254247 | AE140: -77.254247 | AF140: 6.41874 | AH140: =camera!$B$5*COS(RADIANS(AE140))*COS(RADIANS(AF140)) -> 109.6210644 | AI140: =camera!$B$5*COS(RADIANS(AE140))*SIN(RADIANS(AF140)) -> 12.33227921 | AJ140: =camera!$B$5*SIN(RADIANS(AE140)) -> -487.6793384 | AL140: =TRANSPOSE(MMULT(camera!$A$12:$C$14,MMULT(camera!$A$16:$C$18,TRANSPOSE(AH140:AJ140)))) -> 476.4780116 | AM140: -108.1290942 | AN140: 106.1922944 | AP140: =camera!$B$5*AM140/AN140 -> -509.1193048 | AQ140: =camera!$B$5*AL140/AN140 -> 2243.467919 | AS140: =IF( AND( (camera!$B$3) > (AQ140+camera!$B$3/2), 0 < (AQ140+camera!$B$3/2), AN140 >= 0 ), AQ140+camera!$B$3/2, 0)*-1+camera!$B$3 -> 1000 | AT140: =IF( AND( (camera!$B$4) > (AP140+camera!$B$4/2), 0 < (AP140+camera!$B$4/2), AN140 >= 0 ), AP140+camera!$B$4/2, 0) -> 0 | AX140: -485.1986 | AY140: 29.2863 | AZ140: 2917.8799 | BB140: =MMULT( MMULT(AX140:AZ140-$B$2:$D$2, TRANSPOSE($A$16:$C$18)), TRANSPOSE($A$12:$C$14)) -> -2164.736025 | BC140: -4570.160437 | BD140: 3743.021836 | BF140: -610.4907528 | BG140: -289.1695694 | BI140: 789.1695694 | BJ140: 0
U141: 54.2944 | V141: 444.3062 | Z141: '' | AB141: 16.598043 | AC141: -28.216016 | AE141: -28.216016 | AF141: -111.029355 | AH141: =camera!$B$5*COS(RADIANS(AE141))*COS(RADIANS(AF141)) -> -158.102497 | AI141: =camera!$B$5*COS(RADIANS(AE141))*SIN(RADIANS(AF141)) -> -411.241202 | AJ141: =camera!$B$5*SIN(RADIANS(AE141)) -> -236.3985494 | AL141: =TRANSPOSE(MMULT(camera!$A$12:$C$14,MMULT(camera!$A$16:$C$18,TRANSPOSE(AH141:AJ141)))) -> 306.3394602 | AM141: 121.6588369 | AN141: -375.9724226 | AP141: =camera!$B$5*AM141/AN141 -> -161.7922347 | AQ141: =camera!$B$5*AL141/AN141 -> -407.3961836 | AS141: =IF( AND( (camera!$B$3) > (AQ141+camera!$B$3/2), 0 < (AQ141+camera!$B$3/2), AN141 >= 0 ), AQ141+camera!$B$3/2, 0)*-1+camera!$B$3 -> 1000 | AT141: =IF( AND( (camera!$B$4) > (AP141+camera!$B$4/2), 0 < (AP141+camera!$B$4/2), AN141 >= 0 ), AP141+camera!$B$4/2, 0) -> 0 | AX141: -515.7439 | AY141: 176.7723 | AZ141: 2917.8799 | BB141: =MMULT( MMULT(AX141:AZ141-$B$2:$D$2, TRANSPOSE($A$16:$C$18)), TRANSPOSE($A$12:$C$14)) -> -2189.786958 | BC141: -4526.877119 | BD141: 3885.092736 | BF141: -582.5957611 | BG141: -281.8191362 | BI141: 781.8191362 | BJ141: 0
U142: 55 | V142: 120 | Z142: 'Kaus Borealis' | AB142: 18.466179 | AC142: -25.4217 | AE142: -25.4217 | AF142: -83.007315 | AH142: =camera!$B$5*COS(RADIANS(AE142))*COS(RADIANS(AF142)) -> 54.97731141 | AI142: =camera!$B$5*COS(RADIANS(AE142))*SIN(RADIANS(AF142)) -> -448.2273536 | AJ142: =camera!$B$5*SIN(RADIANS(AE142)) -> -214.6386143 | AL142: =TRANSPOSE(MMULT(camera!$A$12:$C$14,MMULT(camera!$A$16:$C$18,TRANSPOSE(AH142:AJ142)))) -> 288.0834027 | AM142: -93.83369406 | AN142: -397.7476474 | AP142: =camera!$B$5*AM142/AN142 -> 117.9563156 | AQ142: =camera!$B$5*AL142/AN142 -> -362.1434402 | AS142: =IF( AND( (camera!$B$3) > (AQ142+camera!$B$3/2), 0 < (AQ142+camera!$B$3/2), AN142 >= 0 ), AQ142+camera!$B$3/2, 0)*-1+camera!$B$3 -> 1000 | AT142: =IF( AND( (camera!$B$4) > (AP142+camera!$B$4/2), 0 < (AP142+camera!$B$4/2), AN142 >= 0 ), AP142+camera!$B$4/2, 0) -> 0 | AX142: -828.8271 | AY142: 176.7723 | AZ142: 2851.5058 | BB142: =MMULT( MMULT(AX142:AZ142-$B$2:$D$2, TRANSPOSE($A$16:$C$18)), TRANSPOSE($A$12:$C$14)) -> -2119.682892 | BC142: -4214.985295 | BD142: 3869.74603 | BF142: -544.6074837 | BG142: -273.8788122 | BI142: 773.8788122 | BJ142: 0
U143: 55 | V143: 530 | Z143: 'Algenib' | AB143: 0.220598 | AC143: 15.183596 | AE143: 15.183596 | AF143: 3.30897 | AH143: =camera!$B$5*COS(RADIANS(AE143))*COS(RADIANS(AF143)) -> 481.7412564 | AI143: =camera!$B$5*COS(RADIANS(AE143))*SIN(RADIANS(AF143)) -> 27.852697 | AJ143: =camera!$B$5*SIN(RADIANS(AE143)) -> 130.95644 | AL143: =TRANSPOSE(MMULT(camera!$A$12:$C$14,MMULT(camera!$A$16:$C$18,TRANSPOSE(AH143:AJ143)))) -> -141.0759651 | AM143: -477.480563 | AN143: 45.93347454 | AP143: =camera!$B$5*AM143/AN143 -> -5197.522806 | AQ143: =camera!$B$5*AL143/AN143 -> -1535.655276 | AS143: =IF( AND( (camera!$B$3) > (AQ143+camera!$B$3/2), 0 < (AQ143+camera!$B$3/2), AN143 >= 0 ), AQ143+camera!$B$3/2, 0)*-1+camera!$B$3 -> 1000 | AT143: =IF( AND( (camera!$B$4) > (AP143+camera!$B$4/2), 0 < (AP143+camera!$B$4/2), AN143 >= 0 ), AP143+camera!$B$4/2, 0) -> 0 | AX143: -773.5455 | AY143: -90.1509 | AZ143: 2851.5058 | BB143: =MMULT( MMULT(AX143:AZ143-$B$2:$D$2, TRANSPOSE($A$16:$C$18)), TRANSPOSE($A$12:$C$14)) -> -2074.345199 | BC143: -4293.320422 | BD143: 3612.623196 | BF143: -594.210936 | BG143: -287.0968112 | BI143: 787.0968112 | BJ143: 0
U144: 55.058 | V144: 137.1622 | Z144: '' | AB144: 8.125737 | AC144: -24.304324 | AE144: -24.304324 | AF144: 121.886055 | AH144: =camera!$B$5*COS(RADIANS(AE144))*COS(RADIANS(AF144)) -> -240.7078439 | AI144: =camera!$B$5*COS(RADIANS(AE144))*SIN(RADIANS(AF144)) -> 386.9232013 | AJ144: =camera!$B$5*SIN(RADIANS(AE144)) -> -205.7915696 | AL144: =TRANSPOSE(MMULT(camera!$A$12:$C$14,MMULT(camera!$A$16:$C$18,TRANSPOSE(AH144:AJ144)))) -> 139.3752745 | AM144: 273.5144569 | AN144: 394.6699567 | AP144: =camera!$B$5*AM144/AN144 -> 346.5103592 | AQ144: =camera!$B$5*AL144/AN144 -> 176.5719332 | AS144: =IF( AND( (camera!$B$3) > (AQ144+camera!$B$3/2), 0 < (AQ144+camera!$B$3/2), AN144 >= 0 ), AQ144+camera!$B$3/2, 0)*-1+camera!$B$3 -> 323.4280668 | AT144: =IF( AND( (camera!$B$4) > (AP144+camera!$B$4/2), 0 < (AP144+camera!$B$4/2), AN144 >= 0 ), AP144+camera!$B$4/2, 0) -> 846.5103592 | AX144: -687.2953 | AY144: -54.4249 | AZ144: 2917.8799 | BB144: =MMULT( MMULT(AX144:AZ144-$B$2:$D$2, TRANSPOSE($A$16:$C$18)), TRANSPOSE($A$12:$C$14)) -> -2147.196423 | BC144: -4376.128688 | BD144: 3643.549811 | BF144: -600.5309266 | BG144: -294.6572072 | BI144: 794.6572072 | BJ144: 0
U145: 55.058 | V145: 547.1622 | Z145: '' | AB145: 15.919083 | AC145: -63.430727 | AE145: -63.430727 | AF145: -121.213755 | AH145: =camera!$B$5*COS(RADIANS(AE145))*COS(RADIANS(AF145)) -> -115.8973513 | AI145: =camera!$B$5*COS(RADIANS(AE145))*SIN(RADIANS(AF145)) -> -191.2656313 | AJ145: =camera!$B$5*SIN(RADIANS(AE145)) -> -447.1971179 | AL145: =TRANSPOSE(MMULT(camera!$A$12:$C$14,MMULT(camera!$A$16:$C$18,TRANSPOSE(AH145:AJ145)))) -> 475.243773 | AM145: 98.78642876 | AN145: -119.9358068 | AP145: =camera!$B$5*AM145/AN145 -> -411.8304257 | AQ145: =camera!$B$5*AL145/AN145 -> -1981.242239 | AS145: =IF( AND( (camera!$B$3) > (AQ145+camera!$B$3/2), 0 < (AQ145+camera!$B$3/2), AN145 >= 0 ), AQ145+camera!$B$3/2, 0)*-1+camera!$B$3 -> 1000 | AT145: =IF( AND( (camera!$B$4) > (AP145+camera!$B$4/2), 0 < (AP145+camera!$B$4/2), AN145 >= 0 ), AP145+camera!$B$4/2, 0) -> 0 | AX145: -735.1778 | AY145: 176.7723 | AZ145: 2917.8799 | BB145: =MMULT( MMULT(AX145:AZ145-$B$2:$D$2, TRANSPOSE($A$16:$C$18)), TRANSPOSE($A$12:$C$14)) -> -2186.46595 | BC145: -4308.278231 | BD145: 3866.258362 | BF145: -557.163778 | BG145: -282.7625245 | BI145: 782.7625245 | BJ145: 0
U146: 55.4314 | V146: 49.3062 | Z146: '' | AB146: 3.9022 | AC146: 31.883635 | AE146: 31.883635 | AF146: 58.533 | AH146: =camera!$B$5*COS(RADIANS(AE146))*COS(RADIANS(AF146)) -> 221.6241339 | AI146: =camera!$B$5*COS(RADIANS(AE146))*SIN(RADIANS(AF146)) -> 362.1257176 | AJ146: =camera!$B$5*SIN(RADIANS(AE146)) -> 264.0979136 | AL146: =TRANSPOSE(MMULT(camera!$A$12:$C$14,MMULT(camera!$A$16:$C$18,TRANSPOSE(AH146:AJ146)))) -> -326.0830133 | AM146: -189.2194513 | AN146: 328.4293953 | AP146: =camera!$B$5*AM146/AN146 -> -288.0671675 | AQ146: =camera!$B$5*AL146/AN146 -> -496.4278745 | AS146: =IF( AND( (camera!$B$3) > (AQ146+camera!$B$3/2), 0 < (AQ146+camera!$B$3/2), AN146 >= 0 ), AQ146+camera!$B$3/2, 0)*-1+camera!$B$3 -> 996.4278745 | AT146: =IF( AND( (camera!$B$4) > (AP146+camera!$B$4/2), 0 < (AP146+camera!$B$4/2), AN146 >= 0 ), AP146+camera!$B$4/2, 0) -> 211.9328325 | AX146: -830.1993 | AY146: -113.6177 | AZ146: 2750.4574 | BB146: =MMULT( MMULT(AX146:AZ146-$B$2:$D$2, TRANSPOSE($A$16:$C$18)), TRANSPOSE($A$12:$C$14)) -> -1969.915068 | BC146: -4238.927473 | BD146: 3602.285033 | BF146: -588.3664722 | BG146: -273.4257631 | BI146: 773.4257631 | BJ146: 0
U147: 55.4314 | V147: 459.3062 | Z147: '' | AB147: 17.421665 | AC147: -55.529884 | AE147: -55.529884 | AF147: -98.675025 | AH147: =camera!$B$5*COS(RADIANS(AE147))*COS(RADIANS(AF147)) -> -42.68308283 | AI147: =camera!$B$5*COS(RADIANS(AE147))*SIN(RADIANS(AF147)) -> -279.7506967 | AJ147: =camera!$B$5*SIN(RADIANS(AE147)) -> -412.2107497 | AL147: =TRANSPOSE(MMULT(camera!$A$12:$C$14,MMULT(camera!$A$16:$C$18,TRANSPOSE(AH147:AJ147)))) -> 454.9876705 | AM147: 18.13878106 | AN147: -206.5362058 | AP147: =camera!$B$5*AM147/AN147 -> -43.91186763 | AQ147: =camera!$B$5*AL147/AN147 -> -1101.47194 | AS147: =IF( AND( (camera!$B$3) > (AQ147+camera!$B$3/2), 0 < (AQ147+camera!$B$3/2), AN147 >= 0 ), AQ147+camera!$B$3/2, 0)*-1+camera!$B$3 -> 1000 | AT147: =IF( AND( (camera!$B$4) > (AP147+camera!$B$4/2), 0 < (AP147+camera!$B$4/2), AN147 >= 0 ), AP147+camera!$B$4/2, 0) -> 0 | AX147: -890.341 | AY147: 176.7723 | AZ147: 2750.4574 | BB147: =MMULT( MMULT(AX147:AZ147-$B$2:$D$2, TRANSPOSE($A$16:$C$18)), TRANSPOSE($A$12:$C$14)) -> -2019.238666 | BC147: -4153.705474 | BD147: 3882.013061 | BF147: -534.9937532 | BG147: -260.076233 | BI147: 760.076233 | BJ147: 0
U148: 56.8987 | V148: 105 | Z148: '' | AB148: 17.530695 | AC148: -49.876145 | AE148: -49.876145 | AF148: -97.039575 | AH148: =camera!$B$5*COS(RADIANS(AE148))*COS(RADIANS(AF148)) -> -39.48975886 | AI148: =camera!$B$5*COS(RADIANS(AE148))*SIN(RADIANS(AF148)) -> -319.7920373 | AJ148: =camera!$B$5*SIN(RADIANS(AE148)) -> -382.3265774 | AL148: =TRANSPOSE(MMULT(camera!$A$12:$C$14,MMULT(camera!$A$16:$C$18,TRANSPOSE(AH148:AJ148)))) -> 432.435824 | AM148: 11.46777587 | AN148: -250.7344178 | AP148: =camera!$B$5*AM148/AN148 -> -22.86837198 | AQ148: =camera!$B$5*AL148/AN148 -> -862.3383815 | AS148: =IF( AND( (camera!$B$3) > (AQ148+camera!$B$3/2), 0 < (AQ148+camera!$B$3/2), AN148 >= 0 ), AQ148+camera!$B$3/2, 0)*-1+camera!$B$3 -> 1000 | AT148: =IF( AND( (camera!$B$4) > (AP148+camera!$B$4/2), 0 < (AP148+camera!$B$4/2), AN148 >= 0 ), AP148+camera!$B$4/2, 0) -> 0 | AX148: -623.8922 | AY148: 671.5288 | AZ148: 2412.638 | BB148: =MMULT( MMULT(AX148:AZ148-$B$2:$D$2, TRANSPOSE($A$16:$C$18)), TRANSPOSE($A$12:$C$14)) -> -1776.170692 | BC148: -4376.019486 | BD148: 4448.930466 | BF148: -491.8057856 | BG148: -199.6177177 | BI148: 699.6177177 | BJ148: 8.194214385
U149: 56.8987 | V149: 90 | Z149: 'Alcyone' | AB149: 3.79141 | AC149: 24.105137 | AE149: 24.105137 | AF149: 56.87115 | AH149: =camera!$B$5*COS(RADIANS(AE149))*COS(RADIANS(AF149)) -> 249.4327537 | AI149: =camera!$B$5*COS(RADIANS(AE149))*SIN(RADIANS(AF149)) -> 382.208254 | AJ149: =camera!$B$5*SIN(RADIANS(AE149)) -> 204.2061506 | AL149: =TRANSPOSE(MMULT(camera!$A$12:$C$14,MMULT(camera!$A$16:$C$18,TRANSPOSE(AH149:AJ149)))) -> -270.9960342 | AM149: -215.1719425 | AN149: 360.9185291 | AP149: =camera!$B$5*AM149/AN149 -> -298.0893543 | AQ149: =camera!$B$5*AL149/AN149 -> -375.425494 | AS149: =IF( AND( (camera!$B$3) > (AQ149+camera!$B$3/2), 0 < (AQ149+camera!$B$3/2), AN149 >= 0 ), AQ149+camera!$B$3/2, 0)*-1+camera!$B$3 -> 875.425494 | AT149: =IF( AND( (camera!$B$4) > (AP149+camera!$B$4/2), 0 < (AP149+camera!$B$4/2), AN149 >= 0 ), AP149+camera!$B$4/2, 0) -> 201.9106457 | AX149: -773.5455 | AY149: 443.6955 | AZ149: 2412.638 | BB149: =MMULT( MMULT(AX149:AZ149-$B$2:$D$2, TRANSPOSE($A$16:$C$18)), TRANSPOSE($A$12:$C$14)) -> -1734.493485 | BC149: -4246.792642 | BD149: 4212.567279 | BF149: -504.0622928 | BG149: -205.8713096 | BI149: 705.8713096 | BJ149: 0
U150: 56.8987 | V150: 75 | Z150: 'Vindemiatrix' | AB150: 13.036278 | AC150: 10.95915 | AE150: 10.95915 | AF150: -164.45583 | AH150: =camera!$B$5*COS(RADIANS(AE150))*COS(RADIANS(AF150)) -> -472.9270794 | AI150: =camera!$B$5*COS(RADIANS(AE150))*SIN(RADIANS(AF150)) -> -131.5469957 | AJ150: =camera!$B$5*SIN(RADIANS(AE150)) -> 95.05453958 | AL150: =TRANSPOSE(MMULT(camera!$A$12:$C$14,MMULT(camera!$A$16:$C$18,TRANSPOSE(AH150:AJ150)))) -> -63.696991 | AM150: 459.662373 | AN150: -186.1536898 | AP150: =camera!$B$5*AM150/AN150 -> -1234.631378 | AQ150: =camera!$B$5*AL150/AN150 -> 171.087103 | AS150: =IF( AND( (camera!$B$3) > (AQ150+camera!$B$3/2), 0 < (AQ150+camera!$B$3/2), AN150 >= 0 ), AQ150+camera!$B$3/2, 0)*-1+camera!$B$3 -> 1000 | AT150: =IF( AND( (camera!$B$4) > (AP150+camera!$B$4/2), 0 < (AP150+camera!$B$4/2), AN150 >= 0 ), AP150+camera!$B$4/2, 0) -> 0 | AX150: -830.1993 | AY150: 467.1623 | AZ150: 2513.6864 | BB150: =MMULT( MMULT(AX150:AZ150-$B$2:$D$2, TRANSPOSE($A$16:$C$18)), TRANSPOSE($A$12:$C$14)) -> -1837.20877 | BC150: -4188.309161 | BD150: 4213.180064 | BF150: -497.0484405 | BG150: -218.031124 | BI150: 718.031124 | BJ150: 2.951559526
U151: 56.8987 | V151: 515 | Z151: '' | AB151: 21.784011 | AC151: -16.127286 | AE151: -16.127286 | AF151: -33.239835 | AH151: =camera!$B$5*COS(RADIANS(AE151))*COS(RADIANS(AF151)) -> 401.7346016 | AI151: =camera!$B$5*COS(RADIANS(AE151))*SIN(RADIANS(AF151)) -> -263.2868487 | AJ151: =camera!$B$5*SIN(RADIANS(AE151)) -> -138.8860871 | AL151: =TRANSPOSE(MMULT(camera!$A$12:$C$14,MMULT(camera!$A$16:$C$18,TRANSPOSE(AH151:AJ151)))) -> 176.2413746 | AM151: -423.152841 | AN151: -199.7014047 | AP151: =camera!$B$5*AM151/AN151 -> 1059.463857 | AQ151: =camera!$B$5*AL151/AN151 -> -441.2622306 | AS151: =IF( AND( (camera!$B$3) > (AQ151+camera!$B$3/2), 0 < (AQ151+camera!$B$3/2), AN151 >= 0 ), AQ151+camera!$B$3/2, 0)*-1+camera!$B$3 -> 1000 | AT151: =IF( AND( (camera!$B$4) > (AP151+camera!$B$4/2), 0 < (AP151+camera!$B$4/2), AN151 >= 0 ), AP151+camera!$B$4/2, 0) -> 0 | AX151: -667.3892 | AY151: 715.0257 | AZ151: 2513.6864 | BB151: =MMULT( MMULT(AX151:AZ151-$B$2:$D$2, TRANSPOSE($A$16:$C$18)), TRANSPOSE($A$12:$C$14)) -> -1882.550052 | BC151: -4328.897001 | BD151: 4470.323256 | BF151: -484.1816522 | BG151: -210.5608414 | BI151: 710.5608414 | BJ151: 15.81834776
U152: 56.8987 | V152: 500 | Z152: '' | AB152: 7.576827 | AC152: 31.89052 | AE152: 31.89052 | AF152: 113.652405 | AH152: =camera!$B$5*COS(RADIANS(AE152))*COS(RADIANS(AF152)) -> -170.3157415 | AI152: =camera!$B$5*COS(RADIANS(AE152))*SIN(RADIANS(AF152)) -> 388.8674469 | AJ152: =camera!$B$5*SIN(RADIANS(AE152)) -> 264.1489295 | AL152: =TRANSPOSE(MMULT(camera!$A$12:$C$14,MMULT(camera!$A$16:$C$18,TRANSPOSE(AH152:AJ152)))) -> -324.8274473 | AM152: 203.5596698 | AN152: 321.0149379 | AP152: =camera!$B$5*AM152/AN152 -> 317.0563824 | AQ152: =camera!$B$5*AL152/AN152 -> -505.9382118 | AS152: =IF( AND( (camera!$B$3) > (AQ152+camera!$B$3/2), 0 < (AQ152+camera!$B$3/2), AN152 >= 0 ), AQ152+camera!$B$3/2, 0)*-1+camera!$B$3 -> 1000 | AT152: =IF( AND( (camera!$B$4) > (AP152+camera!$B$4/2), 0 < (AP152+camera!$B$4/2), AN152 >= 0 ), AP152+camera!$B$4/2, 0) -> 817.0563824 | AX152: -683.4568 | AY152: 731.0934 | AZ152: 2632.0719 | BB152: =MMULT( MMULT(AX152:AZ152-$B$2:$D$2, TRANSPOSE($A$16:$C$18)), TRANSPOSE($A$12:$C$14)) -> -2001.673346 | BC152: -4311.49015 | BD152: 4464.150103 | BF152: -482.9015659 | BG152: -224.1942251 | BI152: 724.1942251 | BJ152: 17.09843413
U153: 56.8987 | V153: 485 | Z153: '' | AB153: 1.979451 | AC153: -61.569859 | AE153: -61.569859 | AF153: 29.691765 | AH153: =camera!$B$5*COS(RADIANS(AE153))*COS(RADIANS(AF153)) -> 206.7889877 | AI153: =camera!$B$5*COS(RADIANS(AE153))*SIN(RADIANS(AF153)) -> 117.9109684 | AJ153: =camera!$B$5*SIN(RADIANS(AE153)) -> -439.6991222 | AL153: =TRANSPOSE(MMULT(camera!$A$12:$C$14,MMULT(camera!$A$16:$C$18,TRANSPOSE(AH153:AJ153)))) -> 409.4923587 | AM153: -195.7254752 | AN153: 209.7797571 | AP153: =camera!$B$5*AM153/AN153 -> -466.5022924 | AQ153: =camera!$B$5*AL153/AN153 -> 976.0054172 | AS153: =IF( AND( (camera!$B$3) > (AQ153+camera!$B$3/2), 0 < (AQ153+camera!$B$3/2), AN153 >= 0 ), AQ153+camera!$B$3/2, 0)*-1+camera!$B$3 -> 1000 | AT153: =IF( AND( (camera!$B$4) > (AP153+camera!$B$4/2), 0 < (AP153+camera!$B$4/2), AN153 >= 0 ), AP153+camera!$B$4/2, 0) -> 33.49770761 | AX153: -851.1271 | AY153: 475.8309 | AZ153: 2632.0719 | BB153: =MMULT( MMULT(AX153:AZ153-$B$2:$D$2, TRANSPOSE($A$16:$C$18)), TRANSPOSE($A$12:$C$14)) -> -1954.978556 | BC153: -4166.705479 | BD153: 4199.330789 | BF153: -496.1154155 | BG153: -232.7726314 | BI153: 732.7726314 | BJ153: 3.884584454
U154: 58.3432 | V154: 152.1622 | Z154: '' | AB154: 19.749574 | AC154: 45.13081 | AE154: 45.13081 | AF154: -63.75639 | AH154: =camera!$B$5*COS(RADIANS(AE154))*COS(RADIANS(AF154)) -> 155.9799655 | AI154: =camera!$B$5*COS(RADIANS(AE154))*SIN(RADIANS(AF154)) -> -316.3850282 | AJ154: =camera!$B$5*SIN(RADIANS(AE154)) -> 354.3596539 | AL154: =TRANSPOSE(MMULT(camera!$A$12:$C$14,MMULT(camera!$A$16:$C$18,TRANSPOSE(AH154:AJ154)))) -> -296.6061818 | AM154: -182.9611867 | AN154: -358.5386689 | AP154: =camera!$B$5*AM154/AN154 -> 255.1484716 | AQ154: =camera!$B$5*AL154/AN154 -> 413.6320676 | AS154: =IF( AND( (camera!$B$3) > (AQ154+camera!$B$3/2), 0 < (AQ154+camera!$B$3/2), AN154 >= 0 ), AQ154+camera!$B$3/2, 0)*-1+camera!$B$3 -> 1000 | AT154: =IF( AND( (camera!$B$4) > (AP154+camera!$B$4/2), 0 < (AP154+camera!$B$4/2), AN154 >= 0 ), AP154+camera!$B$4/2, 0) -> 0 | AX154: -480.0906 | AY154: 527.7271 | AZ154: 2321.7455 | BB154: =MMULT( MMULT(AX154:AZ154-$B$2:$D$2, TRANSPOSE($A$16:$C$18)), TRANSPOSE($A$12:$C$14)) -> -1663.959528 | BC154: -4531.807021 | BD154: 4335.978378 | BF154: -522.5818288 | BG154: -191.8782086 | BI154: 691.8782086 | BJ154: 0
U155: 58.3432 | V155: 562.1622 | Z155: '' | AB155: 6.382673 | AC155: 22.513586 | AE155: 22.513586 | AF155: 95.740095 | AH155: =camera!$B$5*COS(RADIANS(AE155))*COS(RADIANS(AF155)) -> -46.19685397 | AI155: =camera!$B$5*COS(RADIANS(AE155))*SIN(RADIANS(AF155)) -> 459.5783622 | AJ155: =camera!$B$5*SIN(RADIANS(AE155)) -> 191.4512462 | AL155: =TRANSPOSE(MMULT(camera!$A$12:$C$14,MMULT(camera!$A$16:$C$18,TRANSPOSE(AH155:AJ155)))) -> -267.3447714 | AM155: 86.0759545 | AN155: 413.6637563 | AP155: =camera!$B$5*AM155/AN155 -> 104.0409671 | AQ155: =camera!$B$5*AL155/AN155 -> -323.1426096 | AS155: =IF( AND( (camera!$B$3) > (AQ155+camera!$B$3/2), 0 < (AQ155+camera!$B$3/2), AN155 >= 0 ), AQ155+camera!$B$3/2, 0)*-1+camera!$B$3 -> 823.1426096 | AT155: =IF( AND( (camera!$B$4) > (AP155+camera!$B$4/2), 0 < (AP155+camera!$B$4/2), AN155 >= 0 ), AP155+camera!$B$4/2, 0) -> 604.0409671 | AX155: -586.2469 | AY155: 366.1139 | AZ155: 2321.7455 | BB155: =MMULT( MMULT(AX155:AZ155-$B$2:$D$2, TRANSPOSE($A$16:$C$18)), TRANSPOSE($A$12:$C$14)) -> -1634.395866 | BC155: -4440.140197 | BD155: 4168.314519 | BF155: -532.606186 | BG155: -196.0499692 | BI155: 696.0499692 | BJ155: 0
U156: 58.3477 | V156: 60 | Z156: '' | AB156: 15.315181 | AC156: -68.679545 | AE156: -68.679545 | AF156: -130.272285 | AH156: =camera!$B$5*COS(RADIANS(AE156))*COS(RADIANS(AF156)) -> -117.5140721 | AI156: =camera!$B$5*COS(RADIANS(AE156))*SIN(RADIANS(AF156)) -> -138.7037952 | AJ156: =camera!$B$5*SIN(RADIANS(AE156)) -> -465.7807425 | AL156: =TRANSPOSE(MMULT(camera!$A$12:$C$14,MMULT(camera!$A$16:$C$18,TRANSPOSE(AH156:AJ156)))) -> 484.4770036 | AM156: 104.9780633 | AN156: -65.28123139 | AP156: =camera!$B$5*AM156/AN156 -> -804.0447541 | AQ156: =camera!$B$5*AL156/AN156 -> -3710.691368 | AS156: =IF( AND( (camera!$B$3) > (AQ156+camera!$B$3/2), 0 < (AQ156+camera!$B$3/2), AN156 >= 0 ), AQ156+camera!$B$3/2, 0)*-1+camera!$B$3 -> 1000 | AT156: =IF( AND( (camera!$B$4) > (AP156+camera!$B$4/2), 0 < (AP156+camera!$B$4/2), AN156 >= 0 ), AP156+camera!$B$4/2, 0) -> 0 | AX156: -687.2953 | AY156: 407.9695 | AZ156: 2346.264 | BB156: =MMULT( MMULT(AX156:AZ156-$B$2:$D$2, TRANSPOSE($A$16:$C$18)), TRANSPOSE($A$12:$C$14)) -> -1664.253055 | BC156: -4335.82836 | BD156: 4196.446641 | BF156: -516.607112 | BG156: -198.2931272 | BI156: 698.2931272 | BJ156: 0
U157: 58.3477 | V157: 470 | Z157: '' | AB157: 22.308371 | AC157: -60.259587 | AE157: -60.259587 | AF157: -25.374435 | AH157: =camera!$B$5*COS(RADIANS(AE157))*COS(RADIANS(AF157)) -> 224.1067717 | AI157: =camera!$B$5*COS(RADIANS(AE157))*SIN(RADIANS(AF157)) -> -106.2912043 | AJ157: =camera!$B$5*SIN(RADIANS(AE157)) -> -434.1409158 | AL157: =TRANSPOSE(MMULT(camera!$A$12:$C$14,MMULT(camera!$A$16:$C$18,TRANSPOSE(AH157:AJ157)))) -> 442.5406486 | AM157: -232.5178666 | AN157: -9.654843609 | AP157: =camera!$B$5*AM157/AN157 -> 12041.51388 | AQ157: =camera!$B$5*AL157/AN157 -> -22918.06406 | AS157: =IF( AND( (camera!$B$3) > (AQ157+camera!$B$3/2), 0 < (AQ157+camera!$B$3/2), AN157 >= 0 ), AQ157+camera!$B$3/2, 0)*-1+camera!$B$3 -> 1000 | AT157: =IF( AND( (camera!$B$4) > (AP157+camera!$B$4/2), 0 < (AP157+camera!$B$4/2), AN157 >= 0 ), AP157+camera!$B$4/2, 0) -> 0 | AX157: -557.6722 | AY157: 605.3087 | AZ157: 2346.264 | BB157: =MMULT( MMULT(AX157:AZ157-$B$2:$D$2, TRANSPOSE($A$16:$C$18)), TRANSPOSE($A$12:$C$14)) -> -1700.352022 | BC157: -4447.758961 | BD157: 4401.174053 | BF157: -505.2923273 | BG157: -193.170277 | BI157: 693.170277 | BJ157: 0
U158: 59.2944 | V158: 34.3062 | Z158: 'Acamar' | AB158: 2.971023 | AC158: -40.304672 | AE158: -40.304672 | AF158: 44.565345 | AH158: =camera!$B$5*COS(RADIANS(AE158))*COS(RADIANS(AF158)) -> 271.6629695 | AI158: =camera!$B$5*COS(RADIANS(AE158))*SIN(RADIANS(AF158)) -> 267.5721665 | AJ158: =camera!$B$5*SIN(RADIANS(AE158)) -> -323.4259833 | AL158: =TRANSPOSE(MMULT(camera!$A$12:$C$14,MMULT(camera!$A$16:$C$18,TRANSPOSE(AH158:AJ158)))) -> 268.1143384 | AM158: -247.308759 | AN158: 341.9840337 | AP158: =camera!$B$5*AM158/AN158 -> -361.5793935 | AQ158: =camera!$B$5*AL158/AN158 -> 391.9983273 | AS158: =IF( AND( (camera!$B$3) > (AQ158+camera!$B$3/2), 0 < (AQ158+camera!$B$3/2), AN158 >= 0 ), AQ158+camera!$B$3/2, 0)*-1+camera!$B$3 -> 108.0016727 | AT158: =IF( AND( (camera!$B$4) > (AP158+camera!$B$4/2), 0 < (AP158+camera!$B$4/2), AN158 >= 0 ), AP158+camera!$B$4/2, 0) -> 138.4206065 | AX158: -336.289 | AY158: 383.9255 | AZ158: 2412.638 | BB158: =MMULT( MMULT(AX158:AZ158-$B$2:$D$2, TRANSPOSE($A$16:$C$18)), TRANSPOSE($A$12:$C$14)) -> -1730.771659 | BC158: -4687.594548 | BD158: 4191.459755 | BF158: -559.1840102 | BG158: -206.4640674 | BI158: 706.4640674 | BJ158: 0
U159: 59.2944 | V159: 444.3062 | Z159: 'Albaldah' | AB159: 19.162731 | AC159: -21.023615 | AE159: -21.023615 | AF159: -72.559035 | AH159: =camera!$B$5*COS(RADIANS(AE159))*COS(RADIANS(AF159)) -> 139.8856033 | AI159: =camera!$B$5*COS(RADIANS(AE159))*SIN(RADIANS(AF159)) -> -445.2596349 | AJ159: =camera!$B$5*SIN(RADIANS(AE159)) -> -179.3763516 | AL159: =TRANSPOSE(MMULT(camera!$A$12:$C$14,MMULT(camera!$A$16:$C$18,TRANSPOSE(AH159:AJ159)))) -> 251.5584359 | AM159: -178.1602305 | AN159: -393.6715453 | AP159: =camera!$B$5*AM159/AN159 -> 226.2802998 | AQ159: =camera!$B$5*AL159/AN159 -> -319.5029447 | AS159: =IF( AND( (camera!$B$3) > (AQ159+camera!$B$3/2), 0 < (AQ159+camera!$B$3/2), AN159 >= 0 ), AQ159+camera!$B$3/2, 0)*-1+camera!$B$3 -> 1000 | AT159: =IF( AND( (camera!$B$4) > (AP159+camera!$B$4/2), 0 < (AP159+camera!$B$4/2), AN159 >= 0 ), AP159+camera!$B$4/2, 0) -> 0 | AX159: -398.9484 | AY159: 288.5323 | AZ159: 2412.638 | BB159: =MMULT( MMULT(AX159:AZ159-$B$2:$D$2, TRANSPOSE($A$16:$C$18)), TRANSPOSE($A$12:$C$14)) -> -1713.321523 | BC159: -4633.487651 | BD159: 4092.495117 | BF159: -566.0956848 | BG159: -209.3248097 | BI159: 709.3248097 | BJ159: 0
U160: 60 | V160: 120 | Z160: 'Gomeisa' | AB160: 7.452512 | AC160: 8.289315 | AE160: 8.289315 | AF160: 111.78768 | AH160: =camera!$B$5*COS(RADIANS(AE160))*COS(RADIANS(AF160)) -> -183.6452358 | AI160: =camera!$B$5*COS(RADIANS(AE160))*SIN(RADIANS(AF160)) -> 459.4323239 | AJ160: =camera!$B$5*SIN(RADIANS(AE160)) -> 72.08583169 | AL160: =TRANSPOSE(MMULT(camera!$A$12:$C$14,MMULT(camera!$A$16:$C$18,TRANSPOSE(AH160:AJ160)))) -> -147.6873193 | AM160: 222.9885757 | AN160: 422.450649 | AP160: =camera!$B$5*AM160/AN160 -> 263.9226336 | AQ160: =camera!$B$5*AL160/AN160 -> -174.7983103 | AS160: =IF( AND( (camera!$B$3) > (AQ160+camera!$B$3/2), 0 < (AQ160+camera!$B$3/2), AN160 >= 0 ), AQ160+camera!$B$3/2, 0)*-1+camera!$B$3 -> 674.7983103 | AT160: =IF( AND( (camera!$B$4) > (AP160+camera!$B$4/2), 0 < (AP160+camera!$B$4/2), AN160 >= 0 ), AP160+camera!$B$4/2, 0) -> 763.9226336 | AX160: -485.1986 | AY160: 324.2583 | AZ160: 2346.264 | BB160: =MMULT( MMULT(AX160:AZ160-$B$2:$D$2, TRANSPOSE($A$16:$C$18)), TRANSPOSE($A$12:$C$14)) -> -1652.830693 | BC160: -4544.451933 | BD160: 4131.667203 | BF160: -549.9537729 | BG160: -200.0198239 | BI160: 700.0198239 | BJ160: 0
U161: 60 | V161: 530 | Z161: 'Cor Caroli' | AB161: 12.933807 | AC161: 38.31838 | AE161: 38.31838 | AF161: -165.992895 | AH161: =camera!$B$5*COS(RADIANS(AE161))*COS(RADIANS(AF161)) -> -380.6243311 | AI161: =camera!$B$5*COS(RADIANS(AE161))*SIN(RADIANS(AF161)) -> -94.95043956 | AJ161: =camera!$B$5*SIN(RADIANS(AE161)) -> 310.0153748 | AL161: =TRANSPOSE(MMULT(camera!$A$12:$C$14,MMULT(camera!$A$16:$C$18,TRANSPOSE(AH161:AJ161)))) -> -283.119781 | AM161: 370.9004645 | AN161: -179.6553228 | AP161: =camera!$B$5*AM161/AN161 -> -1032.255707 | AQ161: =camera!$B$5*AL161/AN161 -> 787.9526655 | AS161: =IF( AND( (camera!$B$3) > (AQ161+camera!$B$3/2), 0 < (AQ161+camera!$B$3/2), AN161 >= 0 ), AQ161+camera!$B$3/2, 0)*-1+camera!$B$3 -> 1000 | AT161: =IF( AND( (camera!$B$4) > (AP161+camera!$B$4/2), 0 < (AP161+camera!$B$4/2), AN161 >= 0 ), AP161+camera!$B$4/2, 0) -> 0 | AX161: -402.509 | AY161: 450.1455 | AZ161: 2346.264 | BB161: =MMULT( MMULT(AX161:AZ161-$B$2:$D$2, TRANSPOSE($A$16:$C$18)), TRANSPOSE($A$12:$C$14)) -> -1675.859052 | BC161: -4615.855082 | BD161: 4262.267517 | BF161: -541.4788095 | BG161: -196.5924294 | BI161: 696.5924294 | BJ161: 0
U162: 60.058 | V162: 137.1622 | Z162: '' | AB162: 15.980865 | AC162: -26.114105 | AE162: -26.114105 | AF162: -120.287025 | AH162: =camera!$B$5*COS(RADIANS(AE162))*COS(RADIANS(AF162)) -> -226.4247444 | AI162: =camera!$B$5*COS(RADIANS(AE162))*SIN(RADIANS(AF162)) -> -387.6810257 | AJ162: =camera!$B$5*SIN(RADIANS(AE162)) -> -220.0801159 | AL162: =TRANSPOSE(MMULT(camera!$A$12:$C$14,MMULT(camera!$A$16:$C$18,TRANSPOSE(AH162:AJ162)))) -> 287.2273455 | AM162: 191.7745022 | AN162: -361.5563474 | AP162: =camera!$B$5*AM162/AN162 -> -265.206936 | AQ162: =camera!$B$5*AL162/AN162 -> -397.2096571 | AS162: =IF( AND( (camera!$B$3) > (AQ162+camera!$B$3/2), 0 < (AQ162+camera!$B$3/2), AN162 >= 0 ), AQ162+camera!$B$3/2, 0)*-1+camera!$B$3 -> 1000 | AT162: =IF( AND( (camera!$B$4) > (AP162+camera!$B$4/2), 0 < (AP162+camera!$B$4/2), AN162 >= 0 ), AP162+camera!$B$4/2, 0) -> 0 | AX162: -276.7244 | AY162: 324.3609 | AZ162: 2632.0719 | BB162: =MMULT( MMULT(AX162:AZ162-$B$2:$D$2, TRANSPOSE($A$16:$C$18)), TRANSPOSE($A$12:$C$14)) -> -1937.469416 | BC162: -4752.123884 | BD162: 4100.031524 | BF162: -579.5228471 | BG162: -236.2749414 | BI162: 736.2749414 | BJ162: 0
U163: 60.058 | V163: 547.1622 | Z163: '' | AB163: 3.96423 | AC163: 40.010215 | AE163: 40.010215 | AF163: 59.46345 | AH163: =camera!$B$5*COS(RADIANS(AE163))*COS(RADIANS(AF163)) -> 194.5798429 | AI163: =camera!$B$5*COS(RADIANS(AE163))*SIN(RADIANS(AF163)) -> 329.8496799 | AJ163: =camera!$B$5*SIN(RADIANS(AE163)) -> 321.462087 | AL163: =TRANSPOSE(MMULT(camera!$A$12:$C$14,MMULT(camera!$A$16:$C$18,TRANSPOSE(AH163:AJ163)))) -> -376.5830483 | AM163: -165.091114 | AN163: 284.4822171 | AP163: =camera!$B$5*AM163/AN163 -> -290.1606922 | AQ163: =camera!$B$5*AL163/AN163 -> -661.8744963 | AS163: =IF( AND( (camera!$B$3) > (AQ163+camera!$B$3/2), 0 < (AQ163+camera!$B$3/2), AN163 >= 0 ), AQ163+camera!$B$3/2, 0)*-1+camera!$B$3 -> 1000 | AT163: =IF( AND( (camera!$B$4) > (AP163+camera!$B$4/2), 0 < (AP163+camera!$B$4/2), AN163 >= 0 ), AP163+camera!$B$4/2, 0) -> 209.8393078 | AX163: -321.3668 | AY163: 256.397 | AZ163: 2632.0719 | BB163: =MMULT( MMULT(AX163:AZ163-$B$2:$D$2, TRANSPOSE($A$16:$C$18)), TRANSPOSE($A$12:$C$14)) -> -1925.036881 | BC163: -4713.574806 | BD163: 4029.523111 | BF163: -584.8799815 | BG163: -238.8665889 | BI163: 738.8665889 | BJ163: 0
U164: 60.4314 | V164: 49.3062 | Z164: '' | AB164: 16.353143 | AC164: -25.592796 | AE164: -25.592796 | AF164: -114.702855 | AH164: =camera!$B$5*COS(RADIANS(AE164))*COS(RADIANS(AF164)) -> -188.4548229 | AI164: =camera!$B$5*COS(RADIANS(AE164))*SIN(RADIANS(AF164)) -> -409.6763978 | AJ164: =camera!$B$5*SIN(RADIANS(AE164)) -> -215.9861774 | AL164: =TRANSPOSE(MMULT(camera!$A$12:$C$14,MMULT(camera!$A$16:$C$18,TRANSPOSE(AH164:AJ164)))) -> 286.4258719 | AM164: 152.0320446 | AN164: -380.5870167 | AP164: =camera!$B$5*AM164/AN164 -> -199.7336193 | AQ164: =camera!$B$5*AL164/AN164 -> -376.2948541 | AS164: =IF( AND( (camera!$B$3) > (AQ164+camera!$B$3/2), 0 < (AQ164+camera!$B$3/2), AN164 >= 0 ), AQ164+camera!$B$3/2, 0)*-1+camera!$B$3 -> 1000 | AT164: =IF( AND( (camera!$B$4) > (AP164+camera!$B$4/2), 0 < (AP164+camera!$B$4/2), AN164 >= 0 ), AP164+camera!$B$4/2, 0) -> 0 | AX164: -342.2946 | AY164: 265.0656 | AZ164: 2513.6864 | BB164: =MMULT( MMULT(AX164:AZ164-$B$2:$D$2, TRANSPOSE($A$16:$C$18)), TRANSPOSE($A$12:$C$14)) -> -1809.632751 | BC164: -4691.971124 | BD164: 4056.788689 | BF164: -578.2863595 | BG164: -223.0375908 | BI164: 723.0375908 | BJ164: 0
U165: 60.4314 | V165: 459.3062 | Z165: 'Sadalsuud' | AB165: 21.525982 | AC165: -5.571172 | AE165: -5.571172 | AF165: -37.11027 | AH165: =camera!$B$5*COS(RADIANS(AE165))*COS(RADIANS(AF165)) -> 396.8544075 | AI165: =camera!$B$5*COS(RADIANS(AE165))*SIN(RADIANS(AF165)) -> -300.250468 | AJ165: =camera!$B$5*SIN(RADIANS(AE165)) -> -48.54107261 | AL165: =TRANSPOSE(MMULT(camera!$A$12:$C$14,MMULT(camera!$A$16:$C$18,TRANSPOSE(AH165:AJ165)))) -> 93.73700303 | AM165: -421.5128092 | AN165: -252.072065 | AP165: =camera!$B$5*AM165/AN165 -> 836.0958388 | AQ165: =camera!$B$5*AL165/AN165 -> -185.9329455 | AS165: =IF( AND( (camera!$B$3) > (AQ165+camera!$B$3/2), 0 < (AQ165+camera!$B$3/2), AN165 >= 0 ), AQ165+camera!$B$3/2, 0)*-1+camera!$B$3 -> 1000 | AT165: =IF( AND( (camera!$B$4) > (AP165+camera!$B$4/2), 0 < (AP165+camera!$B$4/2), AN165 >= 0 ), AP165+camera!$B$4/2, 0) -> 0 | AX165: -292.7921 | AY165: 340.4286 | AZ165: 2513.6864 | BB165: =MMULT( MMULT(AX165:AZ165-$B$2:$D$2, TRANSPOSE($A$16:$C$18)), TRANSPOSE($A$12:$C$14)) -> -1823.418792 | BC165: -4734.716934 | BD165: 4134.973215 | BF165: -572.5208711 | BG165: -220.4873765 | BI165: 720.4873765 | BJ165: 0
U166: 61.8987 | V166: 105 | Z166: '' | AB166: 3.079942 | AC166: 53.50644 | AE166: 53.50644 | AF166: 46.19913 | AH166: =camera!$B$5*COS(RADIANS(AE166))*COS(RADIANS(AF166)) -> 205.8232548 | AI166: =camera!$B$5*COS(RADIANS(AE166))*SIN(RADIANS(AF166)) -> 214.6239819 | AJ166: =camera!$B$5*SIN(RADIANS(AE166)) -> 401.9618566 | AL166: =TRANSPOSE(MMULT(camera!$A$12:$C$14,MMULT(camera!$A$16:$C$18,TRANSPOSE(AH166:AJ166)))) -> -436.0974149 | AM166: -186.3343227 | AN166: 158.4252659 | AP166: =camera!$B$5*AM166/AN166 -> -588.0827202 | AQ166: =camera!$B$5*AL166/AN166 -> -1376.350585 | AS166: =IF( AND( (camera!$B$3) > (AQ166+camera!$B$3/2), 0 < (AQ166+camera!$B$3/2), AN166 >= 0 ), AQ166+camera!$B$3/2, 0)*-1+camera!$B$3 -> 1000 | AT166: =IF( AND( (camera!$B$4) > (AP166+camera!$B$4/2), 0 < (AP166+camera!$B$4/2), AN166 >= 0 ), AP166+camera!$B$4/2, 0) -> 0 | AX166: -336.289 | AY166: 383.9255 | AZ166: 2851.5058 | BB166: =MMULT( MMULT(AX166:AZ166-$B$2:$D$2, TRANSPOSE($A$16:$C$18)), TRANSPOSE($A$12:$C$14)) -> -2162.972071 | BC166: -4687.594548 | BD166: 4115.251161 | BF166: -569.5393021 | BG166: -262.7995214 | BI166: 762.7995214 | BJ166: 0
U167: 61.8987 | V167: 90 | Z167: '' | AB167: 9.785036 | AC167: -65.072007 | AE167: -65.072007 | AF167: 146.77554 | AH167: =camera!$B$5*COS(RADIANS(AE167))*COS(RADIANS(AF167)) -> -176.2899803 | AI167: =camera!$B$5*COS(RADIANS(AE167))*SIN(RADIANS(AF167)) -> 115.4684474 | AJ167: =camera!$B$5*SIN(RADIANS(AE167)) -> -453.4191003 | AL167: =TRANSPOSE(MMULT(camera!$A$12:$C$14,MMULT(camera!$A$16:$C$18,TRANSPOSE(AH167:AJ167)))) -> 429.2241089 | AM167: 185.682882 | AN167: 176.8856457 | AP167: =camera!$B$5*AM167/AN167 -> 524.8670158 | AQ167: =camera!$B$5*AL167/AN167 -> 1213.281347 | AS167: =IF( AND( (camera!$B$3) > (AQ167+camera!$B$3/2), 0 < (AQ167+camera!$B$3/2), AN167 >= 0 ), AQ167+camera!$B$3/2, 0)*-1+camera!$B$3 -> 1000 | AT167: =IF( AND( (camera!$B$4) > (AP167+camera!$B$4/2), 0 < (AP167+camera!$B$4/2), AN167 >= 0 ), AP167+camera!$B$4/2, 0) -> 0 | AX167: -398.9484 | AY167: 288.5323 | AZ167: 2851.5058 | BB167: =MMULT( MMULT(AX167:AZ167-$B$2:$D$2, TRANSPOSE($A$16:$C$18)), TRANSPOSE($A$12:$C$14)) -> -2145.521935 | BC167: -4633.487651 | BD167: 4016.286523 | BF167: -576.8372879 | BG167: -267.1026983 | BI167: 767.1026983 | BJ167: 0
U168: 61.8987 | V168: 75 | Z168: 'Matar' | AB168: 22.716704 | AC168: 30.221245 | AE168: 30.221245 | AF168: -19.24944 | AH168: =camera!$B$5*COS(RADIANS(AE168))*COS(RADIANS(AF168)) -> 407.8894952 | AI168: =camera!$B$5*COS(RADIANS(AE168))*SIN(RADIANS(AF168)) -> -142.4369156 | AJ168: =camera!$B$5*SIN(RADIANS(AE168)) -> 251.6701905 | AL168: =TRANSPOSE(MMULT(camera!$A$12:$C$14,MMULT(camera!$A$16:$C$18,TRANSPOSE(AH168:AJ168)))) -> -229.3801414 | AM168: -418.7515477 | AN168: -148.4314389 | AP168: =camera!$B$5*AM168/AN168 -> 1410.589128 | AQ168: =camera!$B$5*AL168/AN168 -> 772.6804481 | AS168: =IF( AND( (camera!$B$3) > (AQ168+camera!$B$3/2), 0 < (AQ168+camera!$B$3/2), AN168 >= 0 ), AQ168+camera!$B$3/2, 0)*-1+camera!$B$3 -> 1000 | AT168: =IF( AND( (camera!$B$4) > (AP168+camera!$B$4/2), 0 < (AP168+camera!$B$4/2), AN168 >= 0 ), AP168+camera!$B$4/2, 0) -> 0 | AX168: -342.2946 | AY168: 265.0656 | AZ168: 2750.4574 | BB168: =MMULT( MMULT(AX168:AZ168-$B$2:$D$2, TRANSPOSE($A$16:$C$18)), TRANSPOSE($A$12:$C$14)) -> -2042.806667 | BC168: -4691.971124 | BD168: 4015.673836 | BF168: -584.2071985 | BG168: -254.3541571 | BI168: 754.3541571 | BJ168: 0
U169: 61.8987 | V169: 515 | Z169: '' | AB169: 6.832266 | AC169: -50.61456 | AE169: -50.61456 | AF169: 102.48399 | AH169: =camera!$B$5*COS(RADIANS(AE169))*COS(RADIANS(AF169)) -> -68.5826063 | AI169: =camera!$B$5*COS(RADIANS(AE169))*SIN(RADIANS(AF169)) -> 309.7657426 | AJ169: =camera!$B$5*SIN(RADIANS(AE169)) -> -386.4474231 | AL169: =TRANSPOSE(MMULT(camera!$A$12:$C$14,MMULT(camera!$A$16:$C$18,TRANSPOSE(AH169:AJ169)))) -> 328.0288089 | AM169: 95.31949215 | AN169: 365.1181931 | AP169: =camera!$B$5*AM169/AN169 -> 130.5323782 | AQ169: =camera!$B$5*AL169/AN169 -> 449.2090714 | AS169: =IF( AND( (camera!$B$3) > (AQ169+camera!$B$3/2), 0 < (AQ169+camera!$B$3/2), AN169 >= 0 ), AQ169+camera!$B$3/2, 0)*-1+camera!$B$3 -> 50.79092861 | AT169: =IF( AND( (camera!$B$4) > (AP169+camera!$B$4/2), 0 < (AP169+camera!$B$4/2), AN169 >= 0 ), AP169+camera!$B$4/2, 0) -> 630.5323782 | AX169: -292.7921 | AY169: 340.4286 | AZ169: 2750.4574 | BB169: =MMULT( MMULT(AX169:AZ169-$B$2:$D$2, TRANSPOSE($A$16:$C$18)), TRANSPOSE($A$12:$C$14)) -> -2056.592709 | BC169: -4734.716934 | BD169: 4093.858362 | BF169: -578.2707308 | BG169: -251.1802469 | BI169: 751.1802469 | BJ169: 0
U170: 61.8987 | V170: 500 | Z170: 'Algorab' | AB170: 12.497739 | AC170: -16.515432 | AE170: -16.515432 | AF170: -172.533915 | AH170: =camera!$B$5*COS(RADIANS(AE170))*COS(RADIANS(AF170)) -> -475.3074653 | AI170: =camera!$B$5*COS(RADIANS(AE170))*SIN(RADIANS(AF170)) -> -62.28921278 | AJ170: =camera!$B$5*SIN(RADIANS(AE170)) -> -142.1367911 | AL170: =TRANSPOSE(MMULT(camera!$A$12:$C$14,MMULT(camera!$A$16:$C$18,TRANSPOSE(AH170:AJ170)))) -> 157.9461728 | AM170: 468.0699143 | AN170: -77.22410123 | AP170: =camera!$B$5*AM170/AN170 -> -3030.594768 | AQ170: =camera!$B$5*AL170/AN170 -> -1022.648178 | AS170: =IF( AND( (camera!$B$3) > (AQ170+camera!$B$3/2), 0 < (AQ170+camera!$B$3/2), AN170 >= 0 ), AQ170+camera!$B$3/2, 0)*-1+camera!$B$3 -> 1000 | AT170: =IF( AND( (camera!$B$4) > (AP170+camera!$B$4/2), 0 < (AP170+camera!$B$4/2), AN170 >= 0 ), AP170+camera!$B$4/2, 0) -> 0 | AX170: -480.0906 | AY170: 527.7271 | AZ170: 2942.3983 | BB170: =MMULT( MMULT(AX170:AZ170-$B$2:$D$2, TRANSPOSE($A$16:$C$18)), TRANSPOSE($A$12:$C$14)) -> -2275.183217 | BC170: -4531.807021 | BD170: 4228.203151 | BF170: -535.9022332 | BG170: -269.0484748 | BI170: 769.0484748 | BJ170: 0
U171: 61.8987 | V171: 485 | Z171: 'Sadalmelik' | AB171: 22.096399 | AC171: -0.319851 | AE171: -0.319851 | AF171: -28.554015 | AH171: =camera!$B$5*COS(RADIANS(AE171))*COS(RADIANS(AF171)) -> 439.1765996 | AI171: =camera!$B$5*COS(RADIANS(AE171))*SIN(RADIANS(AF171)) -> -238.9897979 | AJ171: =camera!$B$5*SIN(RADIANS(AE171)) -> -2.791212035 | AL171: =TRANSPOSE(MMULT(camera!$A$12:$C$14,MMULT(camera!$A$16:$C$18,TRANSPOSE(AH171:AJ171)))) -> 37.44433948 | AM171: -458.3347334 | AN171: -196.2834522 | AP171: =camera!$B$5*AM171/AN171 -> 1167.53279 | AQ171: =camera!$B$5*AL171/AN171 -> -95.38333224 | AS171: =IF( AND( (camera!$B$3) > (AQ171+camera!$B$3/2), 0 < (AQ171+camera!$B$3/2), AN171 >= 0 ), AQ171+camera!$B$3/2, 0)*-1+camera!$B$3 -> 1000 | AT171: =IF( AND( (camera!$B$4) > (AP171+camera!$B$4/2), 0 < (AP171+camera!$B$4/2), AN171 >= 0 ), AP171+camera!$B$4/2, 0) -> 0 | AX171: -586.2469 | AY171: 366.1139 | AZ171: 2942.3983 | BB171: =MMULT( MMULT(AX171:AZ171-$B$2:$D$2, TRANSPOSE($A$16:$C$18)), TRANSPOSE($A$12:$C$14)) -> -2245.619555 | BC171: -4440.140197 | BD171: 4060.539292 | BF171: -546.7426711 | BG171: -276.5174025 | BI171: 776.5174025 | BJ171: 0
U172: 62.9233 | V172: 61.0246 | Z172: 'Zaurak' | AB172: 3.967157 | AC172: -13.508515 | AE172: -13.508515 | AF172: 59.507355 | AH172: =camera!$B$5*COS(RADIANS(AE172))*COS(RADIANS(AF172)) -> 246.6949366 | AI172: =camera!$B$5*COS(RADIANS(AE172))*SIN(RADIANS(AF172)) -> 418.9278594 | AJ172: =camera!$B$5*SIN(RADIANS(AE172)) -> -116.7949349 | AL172: =TRANSPOSE(MMULT(camera!$A$12:$C$14,MMULT(camera!$A$16:$C$18,TRANSPOSE(AH172:AJ172)))) -> 38.81773006 | AM172: -209.2442192 | AN172: 452.448937 | AP172: =camera!$B$5*AM172/AN172 -> -231.235176 | AQ172: =camera!$B$5*AL172/AN172 -> 42.89736022 | AS172: =IF( AND( (camera!$B$3) > (AQ172+camera!$B$3/2), 0 < (AQ172+camera!$B$3/2), AN172 >= 0 ), AQ172+camera!$B$3/2, 0)*-1+camera!$B$3 -> 457.1026398 | AT172: =IF( AND( (camera!$B$4) > (AP172+camera!$B$4/2), 0 < (AP172+camera!$B$4/2), AN172 >= 0 ), AP172+camera!$B$4/2, 0) -> 268.764824 | AX172: -485.1986 | AY172: 324.2583 | AZ172: 2917.8799 | BB172: =MMULT( MMULT(AX172:AZ172-$B$2:$D$2, TRANSPOSE($A$16:$C$18)), TRANSPOSE($A$12:$C$14)) -> -2215.762463 | BC172: -4544.451933 | BD172: 4032.407144 | BF172: -563.4912065 | BG172: -274.7443876 | BI172: 774.7443876 | BJ172: 0
U173: 62.9233 | V173: 471.0246 | Z173: '' | AB173: 5.627413 | AC173: 21.142549 | AE173: 21.142549 | AF173: 84.411195 | AH173: =camera!$B$5*COS(RADIANS(AE173))*COS(RADIANS(AF173)) -> 45.41641457 | AI173: =camera!$B$5*COS(RADIANS(AE173))*SIN(RADIANS(AF173)) -> 464.1261827 | AJ173: =camera!$B$5*SIN(RADIANS(AE173)) -> 180.3447694 | AL173: =TRANSPOSE(MMULT(camera!$A$12:$C$14,MMULT(camera!$A$16:$C$18,TRANSPOSE(AH173:AJ173)))) -> -258.5802578 | AM173: -4.792329222 | AN173: 427.9173797 | AP173: =camera!$B$5*AM173/AN173 -> -5.599596381 | AQ173: =camera!$B$5*AL173/AN173 -> -302.1380645 | AS173: =IF( AND( (camera!$B$3) > (AQ173+camera!$B$3/2), 0 < (AQ173+camera!$B$3/2), AN173 >= 0 ), AQ173+camera!$B$3/2, 0)*-1+camera!$B$3 -> 802.1380645 | AT173: =IF( AND( (camera!$B$4) > (AP173+camera!$B$4/2), 0 < (AP173+camera!$B$4/2), AN173 >= 0 ), AP173+camera!$B$4/2, 0) -> 494.4004036 | AX173: -402.509 | AY173: 450.1455 | AZ173: 2917.8799 | BB173: =MMULT( MMULT(AX173:AZ173-$B$2:$D$2, TRANSPOSE($A$16:$C$18)), TRANSPOSE($A$12:$C$14)) -> -2238.790822 | BC173: -4615.855082 | BD173: 4163.007458 | BF173: -554.3894803 | BG173: -268.8910414 | BI173: 768.8910414 | BJ173: 0
U174: 63.3432 | V174: 152.1622 | Z174: 'Ras Elased Australis' | AB174: 9.764188 | AC174: 23.774255 | AE174: 23.774255 | AF174: 146.46282 | AH174: =camera!$B$5*COS(RADIANS(AE174))*COS(RADIANS(AF174)) -> -381.3975485 | AI174: =camera!$B$5*COS(RADIANS(AE174))*SIN(RADIANS(AF174)) -> 252.7976026 | AJ174: =camera!$B$5*SIN(RADIANS(AE174)) -> 201.5670661 | AL174: =TRANSPOSE(MMULT(camera!$A$12:$C$14,MMULT(camera!$A$16:$C$18,TRANSPOSE(AH174:AJ174)))) -> -236.4633712 | AM174: 401.9789785 | AN174: 180.2719473 | AP174: =camera!$B$5*AM174/AN174 -> 1114.923826 | AQ174: =camera!$B$5*AL174/AN174 -> -655.8518249 | AS174: =IF( AND( (camera!$B$3) > (AQ174+camera!$B$3/2), 0 < (AQ174+camera!$B$3/2), AN174 >= 0 ), AQ174+camera!$B$3/2, 0)*-1+camera!$B$3 -> 1000 | AT174: =IF( AND( (camera!$B$4) > (AP174+camera!$B$4/2), 0 < (AP174+camera!$B$4/2), AN174 >= 0 ), AP174+camera!$B$4/2, 0) -> 0 | AX174: -623.8922 | AY174: 671.5288 | AZ174: 2851.5058 | BB174: =MMULT( MMULT(AX174:AZ174-$B$2:$D$2, TRANSPOSE($A$16:$C$18)), TRANSPOSE($A$12:$C$14)) -> -2208.371104 | BC174: -4376.019486 | BD174: 4372.721872 | BF174: -500.3770665 | BG174: -252.5167582 | BI174: 752.5167582 | BJ174: 0
U175: 63.3432 | V175: 562.1622 | Z175: 'Nash' | AB175: 18.096803 | AC175: -30.424091 | AE175: -30.424091 | AF175: -88.547955 | AH175: =camera!$B$5*COS(RADIANS(AE175))*COS(RADIANS(AF175)) -> 10.92546067 | AI175: =camera!$B$5*COS(RADIANS(AE175))*SIN(RADIANS(AF175)) -> -431.011962 | AJ175: =camera!$B$5*SIN(RADIANS(AE175)) -> -253.1981891 | AL175: =TRANSPOSE(MMULT(camera!$A$12:$C$14,MMULT(camera!$A$16:$C$18,TRANSPOSE(AH175:AJ175)))) -> 323.745825 | AM175: -48.44905368 | AN175: -377.943554 | AP175: =camera!$B$5*AM175/AN175 -> 64.09562112 | AQ175: =camera!$B$5*AL175/AN175 -> -428.2991754 | AS175: =IF( AND( (camera!$B$3) > (AQ175+camera!$B$3/2), 0 < (AQ175+camera!$B$3/2), AN175 >= 0 ), AQ175+camera!$B$3/2, 0)*-1+camera!$B$3 -> 1000 | AT175: =IF( AND( (camera!$B$4) > (AP175+camera!$B$4/2), 0 < (AP175+camera!$B$4/2), AN175 >= 0 ), AP175+camera!$B$4/2, 0) -> 0 | AX175: -773.5455 | AY175: 443.6955 | AZ175: 2851.5058 | BB175: =MMULT( MMULT(AX175:AZ175-$B$2:$D$2, TRANSPOSE($A$16:$C$18)), TRANSPOSE($A$12:$C$14)) -> -2166.693897 | BC175: -4246.792642 | BD175: 4136.358685 | BF175: -513.3491756 | BG175: -261.9083669 | BI175: 761.9083669 | BJ175: 0
U176: 64.0916 | V176: 117.807 | Z176: '' | AB176: 13.315359 | AC176: -23.171512 | AE176: -23.171512 | AF176: -160.269615 | AH176: =camera!$B$5*COS(RADIANS(AE176))*COS(RADIANS(AF176)) -> -432.6793403 | AI176: =camera!$B$5*COS(RADIANS(AE176))*SIN(RADIANS(AF176)) -> -155.1805565 | AJ176: =camera!$B$5*SIN(RADIANS(AE176)) -> -196.7424291 | AL176: =TRANSPOSE(MMULT(camera!$A$12:$C$14,MMULT(camera!$A$16:$C$18,TRANSPOSE(AH176:AJ176)))) -> 227.1461073 | AM176: 417.5079881 | AN176: -155.2150954 | AP176: =camera!$B$5*AM176/AN176 -> -1344.933581 | AQ176: =camera!$B$5*AL176/AN176 -> -731.7139702 | AS176: =IF( AND( (camera!$B$3) > (AQ176+camera!$B$3/2), 0 < (AQ176+camera!$B$3/2), AN176 >= 0 ), AQ176+camera!$B$3/2, 0)*-1+camera!$B$3 -> 1000 | AT176: =IF( AND( (camera!$B$4) > (AP176+camera!$B$4/2), 0 < (AP176+camera!$B$4/2), AN176 >= 0 ), AP176+camera!$B$4/2, 0) -> 0 | AX176: -687.2953 | AY176: 407.9695 | AZ176: 2917.8799 | BB176: =MMULT( MMULT(AX176:AZ176-$B$2:$D$2, TRANSPOSE($A$16:$C$18)), TRANSPOSE($A$12:$C$14)) -> -2227.184825 | BC176: -4335.82836 | BD176: 4097.186582 | BF176: -529.1226398 | BG176: -271.7944107 | BI176: 771.7944107 | BJ176: 0
U177: 64.0916 | V177: 527.807 | Z177: '' | AB177: 17.793078 | AC177: -40.126997 | AE177: -40.126997 | AF177: -93.10383 | AH177: =camera!$B$5*COS(RADIANS(AE177))*COS(RADIANS(AF177)) -> -20.70033029 | AI177: =camera!$B$5*COS(RADIANS(AE177))*SIN(RADIANS(AF177)) -> -381.74808 | AJ177: =camera!$B$5*SIN(RADIANS(AE177)) -> -322.2419895 | AL177: =TRANSPOSE(MMULT(camera!$A$12:$C$14,MMULT(camera!$A$16:$C$18,TRANSPOSE(AH177:AJ177)))) -> 383.6973029 | AM177: -12.64997816 | AN177: -320.3378807 | AP177: =camera!$B$5*AM177/AN177 -> 19.74474286 | AQ177: =camera!$B$5*AL177/AN177 -> -598.8946765 | AS177: =IF( AND( (camera!$B$3) > (AQ177+camera!$B$3/2), 0 < (AQ177+camera!$B$3/2), AN177 >= 0 ), AQ177+camera!$B$3/2, 0)*-1+camera!$B$3 -> 1000 | AT177: =IF( AND( (camera!$B$4) > (AP177+camera!$B$4/2), 0 < (AP177+camera!$B$4/2), AN177 >= 0 ), AP177+camera!$B$4/2, 0) -> 0 | AX177: -557.6722 | AY177: 605.3087 | AZ177: 2917.8799 | BB177: =MMULT( MMULT(AX177:AZ177-$B$2:$D$2, TRANSPOSE($A$16:$C$18)), TRANSPOSE($A$12:$C$14)) -> -2263.283792 | BC177: -4447.758961 | BD177: 4301.913994 | BF177: -516.9511719 | BG177: -263.055444 | BI177: 763.055444 | BJ177: 0
U178: 64.2944 | V178: 34.3062 | Z178: '' | AB178: 19.090169 | AC178: 13.863478 | AE178: 13.863478 | AF178: -73.647465 | AH178: =camera!$B$5*COS(RADIANS(AE178))*COS(RADIANS(AF178)) -> 136.6725128 | AI178: =camera!$B$5*COS(RADIANS(AE178))*SIN(RADIANS(AF178)) -> -465.7976797 | AJ178: =camera!$B$5*SIN(RADIANS(AE178)) -> 119.8046154 | AL178: =TRANSPOSE(MMULT(camera!$A$12:$C$14,MMULT(camera!$A$16:$C$18,TRANSPOSE(AH178:AJ178)))) -> -39.47584874 | AM178: -176.7493753 | AN178: -466.0486194 | AP178: =camera!$B$5*AM178/AN178 -> 189.6254682 | AQ178: =camera!$B$5*AL178/AN178 -> 42.35164218 | AS178: =IF( AND( (camera!$B$3) > (AQ178+camera!$B$3/2), 0 < (AQ178+camera!$B$3/2), AN178 >= 0 ), AQ178+camera!$B$3/2, 0)*-1+camera!$B$3 -> 1000 | AT178: =IF( AND( (camera!$B$4) > (AP178+camera!$B$4/2), 0 < (AP178+camera!$B$4/2), AN178 >= 0 ), AP178+camera!$B$4/2, 0) -> 0 | AX178: -830.1993 | AY178: 467.1623 | AZ178: 2750.4574 | BB178: =MMULT( MMULT(AX178:AZ178-$B$2:$D$2, TRANSPOSE($A$16:$C$18)), TRANSPOSE($A$12:$C$14)) -> -2070.382686 | BC178: -4188.309161 | BD178: 4172.065212 | BF178: -501.9467516 | BG178: -248.1244397 | BI178: 748.1244397 | BJ178: 0
U179: 64.2944 | V179: 444.3062 | Z179: '' | AB179: 2.159058 | AC179: 34.987297 | AE179: 34.987297 | AF179: 32.38587 | AH179: =camera!$B$5*COS(RADIANS(AE179))*COS(RADIANS(AF179)) -> 345.9242705 | AI179: =camera!$B$5*COS(RADIANS(AE179))*SIN(RADIANS(AF179)) -> 219.4105682 | AJ179: =camera!$B$5*SIN(RADIANS(AE179)) -> 286.6974044 | AL179: =TRANSPOSE(MMULT(camera!$A$12:$C$14,MMULT(camera!$A$16:$C$18,TRANSPOSE(AH179:AJ179)))) -> -325.5324577 | AM179: -325.4850331 | AN179: 195.1617591 | AP179: =camera!$B$5*AM179/AN179 -> -833.8852722 | AQ179: =camera!$B$5*AL179/AN179 -> -834.0067727 | AS179: =IF( AND( (camera!$B$3) > (AQ179+camera!$B$3/2), 0 < (AQ179+camera!$B$3/2), AN179 >= 0 ), AQ179+camera!$B$3/2, 0)*-1+camera!$B$3 -> 1000 | AT179: =IF( AND( (camera!$B$4) > (AP179+camera!$B$4/2), 0 < (AP179+camera!$B$4/2), AN179 >= 0 ), AP179+camera!$B$4/2, 0) -> 0 | AX179: -667.3892 | AY179: 715.0257 | AZ179: 2750.4574 | BB179: =MMULT( MMULT(AX179:AZ179-$B$2:$D$2, TRANSPOSE($A$16:$C$18)), TRANSPOSE($A$12:$C$14)) -> -2115.723969 | BC179: -4328.897001 | BD179: 4429.208404 | BF179: -488.6761478 | BG179: -238.8377082 | BI179: 738.8377082 | BJ179: 11.32385225
U180: 65.058 | V180: 137.1622 | Z180: '' | AB180: 11.161062 | AC180: 44.498487 | AE180: 44.498487 | AF180: 167.41593 | AH180: =camera!$B$5*COS(RADIANS(AE180))*COS(RADIANS(AF180)) -> -348.0671824 | AI180: =camera!$B$5*COS(RADIANS(AE180))*SIN(RADIANS(AF180)) -> 77.70063077 | AJ180: =camera!$B$5*SIN(RADIANS(AE180)) -> 350.4452147 | AL180: =TRANSPOSE(MMULT(camera!$A$12:$C$14,MMULT(camera!$A$16:$C$18,TRANSPOSE(AH180:AJ180)))) -> -353.2945936 | AM180: 353.5147379 | AN180: -14.5003527 | AP180: =camera!$B$5*AM180/AN180 -> -12189.86687 | AQ180: =camera!$B$5*AL180/AN180 -> 12182.27587 | AS180: =IF( AND( (camera!$B$3) > (AQ180+camera!$B$3/2), 0 < (AQ180+camera!$B$3/2), AN180 >= 0 ), AQ180+camera!$B$3/2, 0)*-1+camera!$B$3 -> 1000 | AT180: =IF( AND( (camera!$B$4) > (AP180+camera!$B$4/2), 0 < (AP180+camera!$B$4/2), AN180 >= 0 ), AP180+camera!$B$4/2, 0) -> 0 | AX180: -129.1358 | AY180: 876.4636 | AZ180: 2412.638 | BB180: =MMULT( MMULT(AX180:AZ180-$B$2:$D$2, TRANSPOSE($A$16:$C$18)), TRANSPOSE($A$12:$C$14)) -> -1819.109688 | BC180: -4851.031944 | BD180: 4692.449613 | BF180: -516.8976061 | BG180: -193.8336943 | BI180: 693.8336943 | BJ180: 0
U181: 65.058 | V181: 547.1622 | Z181: '' | AB181: 15.345483 | AC181: 71.834016 | AE181: 71.834016 | AF181: -129.817755 | AH181: =camera!$B$5*COS(RADIANS(AE181))*COS(RADIANS(AF181)) -> -99.82088818 | AI181: =camera!$B$5*COS(RADIANS(AE181))*SIN(RADIANS(AF181)) -> -119.7332855 | AJ181: =camera!$B$5*SIN(RADIANS(AE181)) -> 475.0786573 | AL181: =TRANSPOSE(MMULT(camera!$A$12:$C$14,MMULT(camera!$A$16:$C$18,TRANSPOSE(AH181:AJ181)))) -> -445.6380631 | AM181: 89.00559614 | AN181: -208.5299032 | AP181: =camera!$B$5*AM181/AN181 -> -213.4120688 | AQ181: =camera!$B$5*AL181/AN181 -> 1068.523162 | AS181: =IF( AND( (camera!$B$3) > (AQ181+camera!$B$3/2), 0 < (AQ181+camera!$B$3/2), AN181 >= 0 ), AQ181+camera!$B$3/2, 0)*-1+camera!$B$3 -> 1000 | AT181: =IF( AND( (camera!$B$4) > (AP181+camera!$B$4/2), 0 < (AP181+camera!$B$4/2), AN181 >= 0 ), AP181+camera!$B$4/2, 0) -> 0 | AX181: -396.059 | AY181: 821.182 | AZ181: 2412.638 | BB181: =MMULT( MMULT(AX181:AZ181-$B$2:$D$2, TRANSPOSE($A$16:$C$18)), TRANSPOSE($A$12:$C$14)) -> -1805.506936 | BC181: -4589.942576 | BD181: 4615.304573 | BF181: -497.2524026 | BG181: -195.5999769 | BI181: 695.5999769 | BJ181: 2.747597361
U182: 65.4314 | V182: 49.3062 | Z182: '' | AB182: 16.864509 | AC182: -38.04738 | AE182: -38.04738 | AF182: -107.032365 | AH182: =camera!$B$5*COS(RADIANS(AE182))*COS(RADIANS(AF182)) -> -115.3342423 | AI182: =camera!$B$5*COS(RADIANS(AE182))*SIN(RADIANS(AF182)) -> -376.4805637 | AJ182: =camera!$B$5*SIN(RADIANS(AE182)) -> -308.15645 | AL182: =TRANSPOSE(MMULT(camera!$A$12:$C$14,MMULT(camera!$A$16:$C$18,TRANSPOSE(AH182:AJ182)))) -> 370.3467714 | AM182: 82.08291753 | AN182: -325.7386431 | AP182: =camera!$B$5*AM182/AN182 -> -125.9950566 | AQ182: =camera!$B$5*AL182/AN182 -> -568.4722695 | AS182: =IF( AND( (camera!$B$3) > (AQ182+camera!$B$3/2), 0 < (AQ182+camera!$B$3/2), AN182 >= 0 ), AQ182+camera!$B$3/2, 0)*-1+camera!$B$3 -> 1000 | AT182: =IF( AND( (camera!$B$4) > (AP182+camera!$B$4/2), 0 < (AP182+camera!$B$4/2), AN182 >= 0 ), AP182+camera!$B$4/2, 0) -> 0 | AX182: -419.5258 | AY182: 877.8358 | AZ182: 2513.6864 | BB182: =MMULT( MMULT(AX182:AZ182-$B$2:$D$2, TRANSPOSE($A$16:$C$18)), TRANSPOSE($A$12:$C$14)) -> -1914.46542 | BC182: -4561.62737 | BD182: 4651.324301 | BF182: -490.3579148 | BG182: -205.7978864 | BI182: 705.7978864 | BJ182: 9.642085186
U183: 65.4314 | V183: 459.3062 | Z183: '' | AB183: 21.898808 | AC183: -37.364852 | AE183: -37.364852 | AF183: -31.51788 | AH183: =camera!$B$5*COS(RADIANS(AE183))*COS(RADIANS(AF183)) -> 338.7688739 | AI183: =camera!$B$5*COS(RADIANS(AE183))*SIN(RADIANS(AF183)) -> -207.7432783 | AJ183: =camera!$B$5*SIN(RADIANS(AE183)) -> -303.4441966 | AL183: =TRANSPOSE(MMULT(camera!$A$12:$C$14,MMULT(camera!$A$16:$C$18,TRANSPOSE(AH183:AJ183)))) -> 329.6440899 | AM183: -355.5857757 | AN183: -122.0390515 | AP183: =camera!$B$5*AM183/AN183 -> 1456.852423 | AQ183: =camera!$B$5*AL183/AN183 -> -1350.56806 | AS183: =IF( AND( (camera!$B$3) > (AQ183+camera!$B$3/2), 0 < (AQ183+camera!$B$3/2), AN183 >= 0 ), AQ183+camera!$B$3/2, 0)*-1+camera!$B$3 -> 1000 | AT183: =IF( AND( (camera!$B$4) > (AP183+camera!$B$4/2), 0 < (AP183+camera!$B$4/2), AN183 >= 0 ), AP183+camera!$B$4/2, 0) -> 0 | AX183: -129.1358 | AY183: 937.9775 | AZ183: 2513.6864 | BB183: =MMULT( MMULT(AX183:AZ183-$B$2:$D$2, TRANSPOSE($A$16:$C$18)), TRANSPOSE($A$12:$C$14)) -> -1929.264065 | BC183: -4845.670654 | BD183: 4735.251586 | BF183: -511.659261 | BG183: -203.7129422 | BI183: 703.7129422 | BJ183: 0
U184: 66.4588 | V184: 64.5601 | Z184: '' | AB184: 3.715416 | AC184: 47.787551 | AE184: 47.787551 | AF184: 55.73124 | AH184: =camera!$B$5*COS(RADIANS(AE184))*COS(RADIANS(AF184)) -> 189.1600293 | AI184: =camera!$B$5*COS(RADIANS(AE184))*SIN(RADIANS(AF184)) -> 277.6232731 | AJ184: =camera!$B$5*SIN(RADIANS(AE184)) -> 370.329315 | AL184: =TRANSPOSE(MMULT(camera!$A$12:$C$14,MMULT(camera!$A$16:$C$18,TRANSPOSE(AH184:AJ184)))) -> -415.5913374 | AM184: -164.2437557 | AN184: 224.2940681 | AP184: =camera!$B$5*AM184/AN184 -> -366.1348628 | AQ184: =camera!$B$5*AL184/AN184 -> -926.4429974 | AS184: =IF( AND( (camera!$B$3) > (AQ184+camera!$B$3/2), 0 < (AQ184+camera!$B$3/2), AN184 >= 0 ), AQ184+camera!$B$3/2, 0)*-1+camera!$B$3 -> 1000 | AT184: =IF( AND( (camera!$B$4) > (AP184+camera!$B$4/2), 0 < (AP184+camera!$B$4/2), AN184 >= 0 ), AP184+camera!$B$4/2, 0) -> 133.8651372 | AX184: -129.1358 | AY184: 960.7007 | AZ184: 2632.0719 | BB184: =MMULT( MMULT(AX184:AZ184-$B$2:$D$2, TRANSPOSE($A$16:$C$18)), TRANSPOSE($A$12:$C$14)) -> -2049.78185 | BC184: -4843.690197 | BD184: 4736.986988 | BF184: -511.262772 | BG184: -216.3592443 | BI184: 716.3592443 | BJ184: 0
U185: 66.4588 | V185: 474.5601 | Z185: '' | AB185: 6.338553 | AC185: -30.063367 | AE185: -30.063367 | AF185: 95.078295 | AH185: =camera!$B$5*COS(RADIANS(AE185))*COS(RADIANS(AF185)) -> -38.30447328 | AI185: =camera!$B$5*COS(RADIANS(AE185))*SIN(RADIANS(AF185)) -> 431.0373147 | AJ185: =camera!$B$5*SIN(RADIANS(AE185)) -> -250.4787429 | AL185: =TRANSPOSE(MMULT(camera!$A$12:$C$14,MMULT(camera!$A$16:$C$18,TRANSPOSE(AH185:AJ185)))) -> 172.6891029 | AM185: 75.72609051 | AN185: 463.081022 | AP185: =camera!$B$5*AM185/AN185 -> 81.76332748 | AQ185: =camera!$B$5*AL185/AN185 -> 186.4566832 | AS185: =IF( AND( (camera!$B$3) > (AQ185+camera!$B$3/2), 0 < (AQ185+camera!$B$3/2), AN185 >= 0 ), AQ185+camera!$B$3/2, 0)*-1+camera!$B$3 -> 313.5433168 | AT185: =IF( AND( (camera!$B$4) > (AP185+camera!$B$4/2), 0 < (AP185+camera!$B$4/2), AN185 >= 0 ), AP185+camera!$B$4/2, 0) -> 581.7633275 | AX185: -428.1944 | AY185: 898.7636 | AZ185: 2632.0719 | BB185: =MMULT( MMULT(AX185:AZ185-$B$2:$D$2, TRANSPOSE($A$16:$C$18)), TRANSPOSE($A$12:$C$14)) -> -2034.541429 | BC185: -4551.167779 | BD185: 4650.554267 | BF185: -489.3145545 | BG185: -218.7418222 | BI185: 718.7418222 | BJ185: 10.68544546
U186: 66.8987 | V186: 105 | Z186: '' | AB186: 7.050409 | AC186: -23.833291 | AE186: -23.833291 | AF186: 105.756135 | AH186: =camera!$B$5*COS(RADIANS(AE186))*COS(RADIANS(AF186)) -> -124.1938211 | AI186: =camera!$B$5*COS(RADIANS(AE186))*SIN(RADIANS(AF186)) -> 440.1776559 | AJ186: =camera!$B$5*SIN(RADIANS(AE186)) -> -202.0384271 | AL186: =TRANSPOSE(MMULT(camera!$A$12:$C$14,MMULT(camera!$A$16:$C$18,TRANSPOSE(AH186:AJ186)))) -> 124.7034272 | AM186: 162.0852367 | AN186: 456.2646505 | AP186: =camera!$B$5*AM186/AN186 -> 177.6219531 | AQ186: =camera!$B$5*AL186/AN186 -> 136.656902 | AS186: =IF( AND( (camera!$B$3) > (AQ186+camera!$B$3/2), 0 < (AQ186+camera!$B$3/2), AN186 >= 0 ), AQ186+camera!$B$3/2, 0)*-1+camera!$B$3 -> 363.343098 | AT186: =IF( AND( (camera!$B$4) > (AP186+camera!$B$4/2), 0 < (AP186+camera!$B$4/2), AN186 >= 0 ), AP186+camera!$B$4/2, 0) -> 677.6219531 | AX186: -129.1358 | AY186: 673.0974 | AZ186: 2321.7455 | BB186: =MMULT( MMULT(AX186:AZ186-$B$2:$D$2, TRANSPOSE($A$16:$C$18)), TRANSPOSE($A$12:$C$14)) -> -1694.41826 | BC186: -4868.756476 | BD186: 4508.718433 | BF186: -539.9268715 | BG186: -187.9046436 | BI186: 687.9046436 | BJ186: 0
U187: 66.8987 | V187: 90 | Z187: '' | AB187: 12.168746 | AC187: -22.619766 | AE187: -22.619766 | AF187: -177.46881 | AH187: =camera!$B$5*COS(RADIANS(AE187))*COS(RADIANS(AF187)) -> -461.0884834 | AI187: =camera!$B$5*COS(RADIANS(AE187))*SIN(RADIANS(AF187)) -> -20.38304434 | AJ187: =camera!$B$5*SIN(RADIANS(AE187)) -> -192.3068952 | AL187: =TRANSPOSE(MMULT(camera!$A$12:$C$14,MMULT(camera!$A$16:$C$18,TRANSPOSE(AH187:AJ187)))) -> 199.8896452 | AM187: 457.5574032 | AN187: -26.17923878 | AP187: =camera!$B$5*AM187/AN187 -> -8738.936357 | AQ187: =camera!$B$5*AL187/AN187 -> -3817.713091 | AS187: =IF( AND( (camera!$B$3) > (AQ187+camera!$B$3/2), 0 < (AQ187+camera!$B$3/2), AN187 >= 0 ), AQ187+camera!$B$3/2, 0)*-1+camera!$B$3 -> 1000 | AT187: =IF( AND( (camera!$B$4) > (AP187+camera!$B$4/2), 0 < (AP187+camera!$B$4/2), AN187 >= 0 ), AP187+camera!$B$4/2, 0) -> 0 | AX187: -318.4774 | AY187: 633.8834 | AZ187: 2321.7455 | BB187: =MMULT( MMULT(AX187:AZ187-$B$2:$D$2, TRANSPOSE($A$16:$C$18)), TRANSPOSE($A$12:$C$14)) -> -1684.769154 | BC187: -4683.553103 | BD187: 4453.995634 | BF187: -525.7698355 | BG187: -189.130086 | BI187: 689.130086 | BJ187: 0
U188: 66.8987 | V188: 75 | Z188: '' | AB188: 5.032815 | AC188: 43.823308 | AE188: 43.823308 | AF188: 75.492225 | AH188: =camera!$B$5*COS(RADIANS(AE188))*COS(RADIANS(AF188)) -> 90.36929987 | AI188: =camera!$B$5*COS(RADIANS(AE188))*SIN(RADIANS(AF188)) -> 349.236644 | AJ188: =camera!$B$5*SIN(RADIANS(AE188)) -> 346.2183648 | AL188: =TRANSPOSE(MMULT(camera!$A$12:$C$14,MMULT(camera!$A$16:$C$18,TRANSPOSE(AH188:AJ188)))) -> -402.7397552 | AM188: -59.58743829 | AN188: 290.2585516 | AP188: =camera!$B$5*AM188/AN188 -> -102.6454483 | AQ188: =camera!$B$5*AL188/AN188 -> -693.7603611 | AS188: =IF( AND( (camera!$B$3) > (AQ188+camera!$B$3/2), 0 < (AQ188+camera!$B$3/2), AN188 >= 0 ), AQ188+camera!$B$3/2, 0)*-1+camera!$B$3 -> 1000 | AT188: =IF( AND( (camera!$B$4) > (AP188+camera!$B$4/2), 0 < (AP188+camera!$B$4/2), AN188 >= 0 ), AP188+camera!$B$4/2, 0) -> 397.3545517 | AX188: -360.333 | AY188: 734.9318 | AZ188: 2346.264 | BB188: =MMULT( MMULT(AX188:AZ188-$B$2:$D$2, TRANSPOSE($A$16:$C$18)), TRANSPOSE($A$12:$C$14)) -> -1725.761802 | BC188: -4633.049828 | BD188: 4545.280075 | BF188: -509.6550434 | BG188: -189.8410849 | BI188: 689.8410849 | BJ188: 0
U189: 66.8987 | V189: 515 | Z189: '' | AB189: 12.771346 | AC189: -68.108119 | AE189: -68.108119 | AF189: -168.42981 | AH189: =camera!$B$5*COS(RADIANS(AE189))*COS(RADIANS(AF189)) -> -182.6398812 | AI189: =camera!$B$5*COS(RADIANS(AE189))*SIN(RADIANS(AF189)) -> -37.39156569 | AJ189: =camera!$B$5*SIN(RADIANS(AE189)) -> -463.9445491 | AL189: =TRANSPOSE(MMULT(camera!$A$12:$C$14,MMULT(camera!$A$16:$C$18,TRANSPOSE(AH189:AJ189)))) -> 466.12861 | AM189: 178.6859916 | AN189: 28.20346368 | AP189: =camera!$B$5*AM189/AN189 -> 3167.802253 | AQ189: =camera!$B$5*AL189/AN189 -> 8263.676676 | AS189: =IF( AND( (camera!$B$3) > (AQ189+camera!$B$3/2), 0 < (AQ189+camera!$B$3/2), AN189 >= 0 ), AQ189+camera!$B$3/2, 0)*-1+camera!$B$3 -> 1000 | AT189: =IF( AND( (camera!$B$4) > (AP189+camera!$B$4/2), 0 < (AP189+camera!$B$4/2), AN189 >= 0 ), AP189+camera!$B$4/2, 0) -> 0 | AX189: -129.1358 | AY189: 782.8143 | AZ189: 2346.264 | BB189: =MMULT( MMULT(AX189:AZ189-$B$2:$D$2, TRANSPOSE($A$16:$C$18)), TRANSPOSE($A$12:$C$14)) -> -1737.54391 | BC189: -4859.194018 | BD189: 4612.099731 | BF189: -526.7876132 | BG189: -188.3679898 | BI189: 688.3679898 | BJ189: 0
U190: 66.8987 | V190: 500 | Z190: '' | AB190: 14.534636 | AC190: 38.308253 | AE190: 38.308253 | AF190: -141.98046 | AH190: =camera!$B$5*COS(RADIANS(AE190))*COS(RADIANS(AF190)) -> -309.088536 | AI190: =camera!$B$5*COS(RADIANS(AE190))*SIN(RADIANS(AF190)) -> -241.65623 | AJ190: =camera!$B$5*SIN(RADIANS(AE190)) -> 309.9460331 | AL190: =TRANSPOSE(MMULT(camera!$A$12:$C$14,MMULT(camera!$A$16:$C$18,TRANSPOSE(AH190:AJ190)))) -> -258.7558943 | AM190: 286.8506326 | AN190: -317.4304676 | AP190: =camera!$B$5*AM190/AN190 -> -451.8322309 | AQ190: =camera!$B$5*AL190/AN190 -> 407.578857 | AS190: =IF( AND( (camera!$B$3) > (AQ190+camera!$B$3/2), 0 < (AQ190+camera!$B$3/2), AN190 >= 0 ), AQ190+camera!$B$3/2, 0)*-1+camera!$B$3 -> 1000 | AT190: =IF( AND( (camera!$B$4) > (AP190+camera!$B$4/2), 0 < (AP190+camera!$B$4/2), AN190 >= 0 ), AP190+camera!$B$4/2, 0) -> 0 | AX190: -129.1358 | AY190: 469.7312 | AZ190: 2412.638 | BB190: =MMULT( MMULT(AX190:AZ190-$B$2:$D$2, TRANSPOSE($A$16:$C$18)), TRANSPOSE($A$12:$C$14)) -> -1748.75011 | BC190: -4886.481008 | BD190: 4293.420618 | BF190: -569.0661878 | BG190: -203.6546457 | BI190: 703.6546457 | BJ190: 0
U191: 66.8987 | V191: 485 | Z191: 'Albireo' | AB191: 19.512023 | AC191: 27.959681 | AE191: 27.959681 | AF191: -67.319655 | AH191: =camera!$B$5*COS(RADIANS(AE191))*COS(RADIANS(AF191)) -> 170.2913325 | AI191: =camera!$B$5*COS(RADIANS(AE191))*SIN(RADIANS(AF191)) -> -407.4871213 | AJ191: =camera!$B$5*SIN(RADIANS(AE191)) -> 234.4250585 | AL191: =TRANSPOSE(MMULT(camera!$A$12:$C$14,MMULT(camera!$A$16:$C$18,TRANSPOSE(AH191:AJ191)))) -> -162.9507432 | AM191: -205.1581653 | AN191: -425.86052 | AP191: =camera!$B$5*AM191/AN191 -> 240.8748353 | AQ191: =camera!$B$5*AL191/AN191 -> 191.3193822 | AS191: =IF( AND( (camera!$B$3) > (AQ191+camera!$B$3/2), 0 < (AQ191+camera!$B$3/2), AN191 >= 0 ), AQ191+camera!$B$3/2, 0)*-1+camera!$B$3 -> 1000 | AT191: =IF( AND( (camera!$B$4) > (AP191+camera!$B$4/2), 0 < (AP191+camera!$B$4/2), AN191 >= 0 ), AP191+camera!$B$4/2, 0) -> 0 | AX191: -240.8958 | AY191: 446.5849 | AZ191: 2412.638 | BB191: =MMULT( MMULT(AX191:AZ191-$B$2:$D$2, TRANSPOSE($A$16:$C$18)), TRANSPOSE($A$12:$C$14)) -> -1743.054667 | BC191: -4777.163622 | BD191: 4261.120158 | BF191: -560.5525595 | BG191: -204.5301004 | BI191: 704.5301004 | BJ191: 0
U192: 67.6272 | V192: 114.2715 | Z192: '' | AB192: 20.350187 | AC192: -14.781367 | AE192: -14.781367 | AF192: -54.747195 | AH192: =camera!$B$5*COS(RADIANS(AE192))*COS(RADIANS(AF192)) -> 279.04202 | AI192: =camera!$B$5*COS(RADIANS(AE192))*SIN(RADIANS(AF192)) -> -394.7943168 | AJ192: =camera!$B$5*SIN(RADIANS(AE192)) -> -127.5656633 | AL192: =TRANSPOSE(MMULT(camera!$A$12:$C$14,MMULT(camera!$A$16:$C$18,TRANSPOSE(AH192:AJ192)))) -> 189.6989506 | AM192: -312.3887728 | AN192: -341.2148337 | AP192: =camera!$B$5*AM192/AN192 -> 457.7596604 | AQ192: =camera!$B$5*AL192/AN192 -> -277.9758262 | AS192: =IF( AND( (camera!$B$3) > (AQ192+camera!$B$3/2), 0 < (AQ192+camera!$B$3/2), AN192 >= 0 ), AQ192+camera!$B$3/2, 0)*-1+camera!$B$3 -> 1000 | AT192: =IF( AND( (camera!$B$4) > (AP192+camera!$B$4/2), 0 < (AP192+camera!$B$4/2), AN192 >= 0 ), AP192+camera!$B$4/2, 0) -> 0 | AX192: -276.6218 | AY192: 532.8351 | AZ192: 2346.264 | BB192: =MMULT( MMULT(AX192:AZ192-$B$2:$D$2, TRANSPOSE($A$16:$C$18)), TRANSPOSE($A$12:$C$14)) -> -1692.068542 | BC192: -4734.05637 | BD192: 4354.196104 | BF192: -543.6200227 | BG192: -194.3032079 | BI192: 694.3032079 | BJ192: 0
U193: 67.6272 | V193: 524.2715 | Z193: '' | AB193: 6.732202 | AC193: 25.131124 | AE193: 25.131124 | AF193: 100.98303 | AH193: =camera!$B$5*COS(RADIANS(AE193))*COS(RADIANS(AF193)) -> -86.24172629 | AI193: =camera!$B$5*COS(RADIANS(AE193))*SIN(RADIANS(AF193)) -> 444.3778728 | AJ193: =camera!$B$5*SIN(RADIANS(AE193)) -> 212.3456399 | AL193: =TRANSPOSE(MMULT(camera!$A$12:$C$14,MMULT(camera!$A$16:$C$18,TRANSPOSE(AH193:AJ193)))) -> -284.6861828 | AM193: 124.643634 | AN193: 391.6857692 | AP193: =camera!$B$5*AM193/AN193 -> 159.1117725 | AQ193: =camera!$B$5*AL193/AN193 -> -363.411445 | AS193: =IF( AND( (camera!$B$3) > (AQ193+camera!$B$3/2), 0 < (AQ193+camera!$B$3/2), AN193 >= 0 ), AQ193+camera!$B$3/2, 0)*-1+camera!$B$3 -> 863.411445 | AT193: =IF( AND( (camera!$B$4) > (AP193+camera!$B$4/2), 0 < (AP193+camera!$B$4/2), AN193 >= 0 ), AP193+camera!$B$4/2, 0) -> 659.1117725 | AX193: -129.1358 | AY193: 563.3804 | AZ193: 2346.264 | BB193: =MMULT( MMULT(AX193:AZ193-$B$2:$D$2, TRANSPOSE($A$16:$C$18)), TRANSPOSE($A$12:$C$14)) -> -1699.584611 | BC193: -4878.318943 | BD193: 4396.821851 | BF193: -554.7551286 | BG193: -193.2742181 | BI193: 693.2742181 | BJ193: 0
U194: 68.3432 | V194: 152.1622 | Z194: '' | AB194: 10.372155 | AC194: 41.499516 | AE194: 41.499516 | AF194: 155.582325 | AH194: =camera!$B$5*COS(RADIANS(AE194))*COS(RADIANS(AF194)) -> -340.9856785 | AI194: =camera!$B$5*COS(RADIANS(AE194))*SIN(RADIANS(AF194)) -> 154.8048161 | AJ194: =camera!$B$5*SIN(RADIANS(AE194)) -> 331.3068607 | AL194: =TRANSPOSE(MMULT(camera!$A$12:$C$14,MMULT(camera!$A$16:$C$18,TRANSPOSE(AH194:AJ194)))) -> -347.8922209 | AM194: 353.1802538 | AN194: 65.07465709 | AP194: =camera!$B$5*AM194/AN194 -> 2713.654359 | AQ194: =camera!$B$5*AL194/AN194 -> -2673.02385 | AS194: =IF( AND( (camera!$B$3) > (AQ194+camera!$B$3/2), 0 < (AQ194+camera!$B$3/2), AN194 >= 0 ), AQ194+camera!$B$3/2, 0)*-1+camera!$B$3 -> 1000 | AT194: =IF( AND( (camera!$B$4) > (AP194+camera!$B$4/2), 0 < (AP194+camera!$B$4/2), AN194 >= 0 ), AP194+camera!$B$4/2, 0) -> 0 | AX194: -129.1358 | AY194: 385.4941 | AZ194: 2632.0719 | BB194: =MMULT( MMULT(AX194:AZ194-$B$2:$D$2, TRANSPOSE($A$16:$C$18)), TRANSPOSE($A$12:$C$14)) -> -1950.27836 | BC194: -4893.822755 | BD194: 4172.67465 | BF194: -586.4131721 | BG194: -233.6964325 | BI194: 733.6964325 | BJ194: 0
U195: 68.3432 | V195: 562.1622 | Z195: '' | AB195: 19.209225 | AC195: 67.661541 | AE195: =AC195 -> 67.661541 | AF195: =IF(AB195*15/1>180, (AB195*15/1)-360, AB195*15/1) -> -71.861625 | AH195: =camera!$B$5*COS(RADIANS(AE195))*COS(RADIANS(AF195)) -> 59.16146991 | AI195: =camera!$B$5*COS(RADIANS(AE195))*SIN(RADIANS(AF195)) -> -180.5950512 | AJ195: =camera!$B$5*SIN(RADIANS(AE195)) -> 462.4774026 | AL195: =TRANSPOSE(MMULT(camera!$A$12:$C$14,MMULT(camera!$A$16:$C$18,TRANSPOSE(AH195:AJ195)))) -> -425.1060399 | AM195: -74.67623848 | AN195: -252.4050598 | AP195: =camera!$B$5*AM195/AN195 -> 147.9293611 | AQ195: =camera!$B$5*AL195/AN195 -> 842.1107726 | AS195: =IF( AND( (camera!$B$3) > (AQ195+camera!$B$3/2), 0 < (AQ195+camera!$B$3/2), AN195 >= 0 ), AQ195+camera!$B$3/2, 0)*-1+camera!$B$3 -> 1000 | AT195: =IF( AND( (camera!$B$4) > (AP195+camera!$B$4/2), 0 < (AP195+camera!$B$4/2), AN195 >= 0 ), AP195+camera!$B$4/2, 0) -> 0 | AX195: -208.7605 | AY195: 369.0033 | AZ195: 2632.0719 | BB195: =MMULT( MMULT(AX195:AZ195-$B$2:$D$2, TRANSPOSE($A$16:$C$18)), TRANSPOSE($A$12:$C$14)) -> -1946.220584 | BC195: -4815.938319 | BD195: 4149.661862 | BF195: -580.2808131 | BG195: -234.5035148 | BI195: 734.5035148 | BJ195: 0
U196: 69.2944 | V196: 34.3062 | Z196: '' | AB196: 18.293793 | AC196: -36.761686 | AE196: -36.761686 | AF196: -85.593105 | AH196: =camera!$B$5*COS(RADIANS(AE196))*COS(RADIANS(AF196)) -> 30.77908709 | AI196: =camera!$B$5*COS(RADIANS(AE196))*SIN(RADIANS(AF196)) -> -399.3816131 | AJ196: =camera!$B$5*SIN(RADIANS(AE196)) -> -299.2440056 | AL196: =TRANSPOSE(MMULT(camera!$A$12:$C$14,MMULT(camera!$A$16:$C$18,TRANSPOSE(AH196:AJ196)))) -> 363.3199771 | AM196: -65.4703645 | AN196: -337.212434 | AP196: =camera!$B$5*AM196/AN196 -> 97.07584582 | AQ196: =camera!$B$5*AL196/AN196 -> -538.7108251 | AS196: =IF( AND( (camera!$B$3) > (AQ196+camera!$B$3/2), 0 < (AQ196+camera!$B$3/2), AN196 >= 0 ), AQ196+camera!$B$3/2, 0)*-1+camera!$B$3 -> 1000 | AT196: =IF( AND( (camera!$B$4) > (AP196+camera!$B$4/2), 0 < (AP196+camera!$B$4/2), AN196 >= 0 ), AP196+camera!$B$4/2, 0) -> 0 | AX196: -217.4291 | AY196: 389.9311 | AZ196: 2513.6864 | BB196: =MMULT( MMULT(AX196:AZ196-$B$2:$D$2, TRANSPOSE($A$16:$C$18)), TRANSPOSE($A$12:$C$14)) -> -1833.122677 | BC196: -4805.478728 | BD196: 4190.006681 | BF196: =$B$5*BC196/BD196 -> -573.4452345 | BG196: =$B$5*BB196/BD196 -> -218.749374 | BI196: =IF( AND( ($B$3) > (BG196+$B$3/2), 0 < (BG196+$B$3/2), BD196 >= 0 ), BG196+$B$3/2, 0)*-1+$B$3 -> 718.749374 | BJ196: =IF( AND( ($B$4) > (BF196+$B$4/2), 0 < (BF196+$B$4/2), BD196 >= 0 ), BF196+$B$4/2, 0) -> 0
U197: 69.2944 | V197: 444.3062 | Z197: '' | AB197: 8.92323 | AC197: 5.945563 | AE197: 5.945563 | AF197: 133.84845 | AH197: =camera!$B$5*COS(RADIANS(AE197))*COS(RADIANS(AF197)) -> -344.5133845 | AI197: =camera!$B$5*COS(RADIANS(AE197))*SIN(RADIANS(AF197)) -> 358.6476567 | AJ197: =camera!$B$5*SIN(RADIANS(AE197)) -> 51.79175806 | AL197: =TRANSPOSE(MMULT(camera!$A$12:$C$14,MMULT(camera!$A$16:$C$18,TRANSPOSE(AH197:AJ197)))) -> -107.8324326 | AM197: 374.46061 | AN197: 313.2912671 | AP197: =camera!$B$5*AM197/AN197 -> 597.62376 | AQ197: =camera!$B$5*AL197/AN197 -> -172.0961354 | AS197: =IF( AND( (camera!$B$3) > (AQ197+camera!$B$3/2), 0 < (AQ197+camera!$B$3/2), AN197 >= 0 ), AQ197+camera!$B$3/2, 0)*-1+camera!$B$3 -> 672.0961354 | AT197: =IF( AND( (camera!$B$4) > (AP197+camera!$B$4/2), 0 < (AP197+camera!$B$4/2), AN197 >= 0 ), AP197+camera!$B$4/2, 0) -> 0 | AX197: -129.1358 | AY197: 408.2172 | AZ197: 2513.6864 | BB197: =MMULT( MMULT(AX197:AZ197-$B$2:$D$2, TRANSPOSE($A$16:$C$18)), TRANSPOSE($A$12:$C$14)) -> -1837.622211 | BC197: -4891.842307 | BD197: 4215.524807 | BF197: -580.2174736 | BG197: -217.9588895 | BI197: 717.9588895 | BJ197: 0
U198: 69.9943 | V198: 68.0957 | Z198: '' | AB198: 10.827079 | AC198: -16.193648 | AE198: -16.193648 | AF198: 162.406185 | AH198: =camera!$B$5*COS(RADIANS(AE198))*COS(RADIANS(AF198)) -> -457.701898 | AI198: =camera!$B$5*COS(RADIANS(AE198))*SIN(RADIANS(AF198)) -> 145.1372162 | AJ198: =camera!$B$5*SIN(RADIANS(AE198)) -> -139.4423215 | AL198: =TRANSPOSE(MMULT(camera!$A$12:$C$14,MMULT(camera!$A$16:$C$18,TRANSPOSE(AH198:AJ198)))) -> 119.1440305 | AM198: 468.609746 | AN198: 127.3169508 | AP198: =camera!$B$5*AM198/AN198 -> 1840.3274 | AQ198: =camera!$B$5*AL198/AN198 -> 467.9032518 | AS198: =IF( AND( (camera!$B$3) > (AQ198+camera!$B$3/2), 0 < (AQ198+camera!$B$3/2), AN198 >= 0 ), AQ198+camera!$B$3/2, 0)*-1+camera!$B$3 -> 32.09674815 | AT198: =IF( AND( (camera!$B$4) > (AP198+camera!$B$4/2), 0 < (AP198+camera!$B$4/2), AN198 >= 0 ), AP198+camera!$B$4/2, 0) -> 0 | AX198: -129.1358 | AY198: 469.7312 | AZ198: 2851.5058 | BB198: =MMULT( MMULT(AX198:AZ198-$B$2:$D$2, TRANSPOSE($A$16:$C$18)), TRANSPOSE($A$12:$C$14)) -> -2180.950522 | BC198: -4886.481008 | BD198: 4217.212025 | BF198: -579.3496959 | BG198: -258.577291 | BI198: 758.577291 | BJ198: 0
U199: 69.9943 | V199: 478.0957 | Z199: '' | AB199: 11.596363 | AC199: -63.019841 | AE199: -63.019841 | AF199: 173.945445 | AH199: =camera!$B$5*COS(RADIANS(AE199))*COS(RADIANS(AF199)) -> -225.5756247 | AI199: =camera!$B$5*COS(RADIANS(AE199))*SIN(RADIANS(AF199)) -> 23.92613311 | AJ199: =camera!$B$5*SIN(RADIANS(AE199)) -> -445.5818417 | AL199: =TRANSPOSE(MMULT(camera!$A$12:$C$14,MMULT(camera!$A$16:$C$18,TRANSPOSE(AH199:AJ199)))) -> 438.0874928 | AM199: 226.8025413 | AN199: 81.48592491 | AP199: =camera!$B$5*AM199/AN199 -> 1391.666975 | AQ199: =camera!$B$5*AL199/AN199 -> 2688.117569 | AS199: =IF( AND( (camera!$B$3) > (AQ199+camera!$B$3/2), 0 < (AQ199+camera!$B$3/2), AN199 >= 0 ), AQ199+camera!$B$3/2, 0)*-1+camera!$B$3 -> 1000 | AT199: =IF( AND( (camera!$B$4) > (AP199+camera!$B$4/2), 0 < (AP199+camera!$B$4/2), AN199 >= 0 ), AP199+camera!$B$4/2, 0) -> 0 | AX199: -240.8958 | AY199: 446.5849 | AZ199: 2851.5058 | BB199: =MMULT( MMULT(AX199:AZ199-$B$2:$D$2, TRANSPOSE($A$16:$C$18)), TRANSPOSE($A$12:$C$14)) -> -2175.255079 | BC199: -4777.163622 | BD199: 4184.911564 | BF199: -570.760403 | BG199: -259.8925982 | BI199: 759.8925982 | BJ199: 0
U200: 70.058 | V200: 137.1622 | Z200: '' | AB200: 20.626116 | AC200: -47.291502 | AE200: -47.291502 | AF200: -50.60826 | AH200: =camera!$B$5*COS(RADIANS(AE200))*COS(RADIANS(AF200)) -> 215.2211265 | AI200: =camera!$B$5*COS(RADIANS(AE200))*SIN(RADIANS(AF200)) -> -262.091514 | AJ200: =camera!$B$5*SIN(RADIANS(AE200)) -> -367.4070019 | AL200: =TRANSPOSE(MMULT(camera!$A$12:$C$14,MMULT(camera!$A$16:$C$18,TRANSPOSE(AH200:AJ200)))) -> 403.9065416 | AM200: -237.2449257 | AN200: -174.8552284 | AP200: =camera!$B$5*AM200/AN200 -> 678.4038653 | AQ200: =camera!$B$5*AL200/AN200 -> -1154.974161 | AS200: =IF( AND( (camera!$B$3) > (AQ200+camera!$B$3/2), 0 < (AQ200+camera!$B$3/2), AN200 >= 0 ), AQ200+camera!$B$3/2, 0)*-1+camera!$B$3 -> 1000 | AT200: =IF( AND( (camera!$B$4) > (AP200+camera!$B$4/2), 0 < (AP200+camera!$B$4/2), AN200 >= 0 ), AP200+camera!$B$4/2, 0) -> 0 | AX200: -217.4291 | AY200: 389.9311 | AZ200: 2750.4574 | BB200: =MMULT( MMULT(AX200:AZ200-$B$2:$D$2, TRANSPOSE($A$16:$C$18)), TRANSPOSE($A$12:$C$14)) -> -2066.296594 | BC200: -4805.478728 | BD200: 4148.891828 | BF200: -579.1279848 | BG200: -249.0178919 | BI200: 749.0178919 | BJ200: 0
... 946 more rows
